,Directorate,Supplier Name,Supplier Invoice No,Payment Date,Gross Invoice Value,Vat Amount,Vendor Id,Purpose of Expenditure,Description,Redact flag,Year,Period
1,Community and Housing,SOUTHPARK RESIDENTIAL HOME,847485,05-Jul-22,2965.2,0,19,Older People Placements - East,321017              Social Community Care Supplies & Services - Adult,A,2022,4
2,Community and Housing,SOUTHPARK RESIDENTIAL HOME,847729,05-Jul-22,2965.2,0,19,Older People Placements - East,321017              Social Community Care Supplies & Services - Adult,A,2022,4
3,Community and Housing,SOUTHPARK RESIDENTIAL HOME,847835,05-Jul-22,2965.2,0,19,Older People Placements - East,321017              Social Community Care Supplies & Services - Adult,A,2022,4
4,Community and Housing,POLISH CITIZENS COMMITTEE,847572,05-Jul-22,2937.76,0,71,Older People Placements - East,321017              Nursing & Residential Care Homes,A,2022,4
5,Community and Housing,ST TERESA`S HOME FOR THE ELDERLY,847589,05-Jul-22,3080,0,362,Older People Placements - East,321017              Nursing & Residential Care Homes,A,2022,4
6,Community and Housing,ST TERESA`S HOME FOR THE ELDERLY,847816,05-Jul-22,2443.16,0,362,Older People Placements - East,321017              Nursing & Residential Care Homes,A,2022,4
7,Corporate Services,KAPPA LAMBDA SQUARED LTD,13353,27-Jul-22,3380.71,563.45,506,Business Systems,270000              Information Communication Technology,A,2022,4
8,Community and Housing,THE WHITE HOUSE NURSING HOME,847810,05-Jul-22,3396,0,611,Older People Placements - East,321000              Social Community Care Supplies & Services - Adult,A,2022,4
9,"Children, Schools and Family",BLOSSOM HOUSE SCHOOL,8552,12-Jul-22,14450,0,777,Non-Delegated Statements,170000              Education,A,2022,4
10,"Children, Schools and Family",BLOSSOM HOUSE SCHOOL,8559,12-Jul-22,14850,0,777,Non-Delegated Statements,170000              Education,A,2022,4
11,"Children, Schools and Family",BLOSSOM HOUSE SCHOOL,8569,12-Jul-22,14450,0,777,Non-Delegated Statements,170000              Education,A,2022,4
12,"Children, Schools and Family",BLOSSOM HOUSE SCHOOL,8580,12-Jul-22,12350,0,777,Non-Delegated Statements,170000              Education,A,2022,4
13,"Children, Schools and Family",BLOSSOM HOUSE SCHOOL,8551,12-Jul-22,15250,0,777,Non-Delegated Statements,170000              Education,A,2022,4
14,"Children, Schools and Family",BLOSSOM HOUSE SCHOOL,8558,12-Jul-22,16750,0,777,Non-Delegated Statements,170000              Education,A,2022,4
15,"Children, Schools and Family",BLOSSOM HOUSE SCHOOL,8568,12-Jul-22,16750,0,777,Non-Delegated Statements,170000              Education,A,2022,4
16,"Children, Schools and Family",BLOSSOM HOUSE SCHOOL,8579,12-Jul-22,15250,0,777,Non-Delegated Statements,170000              Education,A,2022,4
17,"Children, Schools and Family",BLOSSOM HOUSE SCHOOL,8550,12-Jul-22,15250,0,777,Non-Delegated Statements,170000              Education,A,2022,4
18,"Children, Schools and Family",BLOSSOM HOUSE SCHOOL,8557,12-Jul-22,14850,0,777,Non-Delegated Statements,170000              Education,A,2022,4
19,"Children, Schools and Family",BLOSSOM HOUSE SCHOOL,8567,12-Jul-22,12350,0,777,Non-Delegated Statements,170000              Education,A,2022,4
20,"Children, Schools and Family",BLOSSOM HOUSE SCHOOL,8576,12-Jul-22,15950,0,777,Non-Delegated Statements,170000              Education,A,2022,4
21,"Children, Schools and Family",BLOSSOM HOUSE SCHOOL,8548,12-Jul-22,15950,0,777,Non-Delegated Statements,170000              Education,A,2022,4
22,"Children, Schools and Family",BLOSSOM HOUSE SCHOOL,8556,12-Jul-22,16750,0,777,Non-Delegated Statements,170000              Education,A,2022,4
23,"Children, Schools and Family",BLOSSOM HOUSE SCHOOL,8564,12-Jul-22,12750,0,777,Non-Delegated Statements,170000              Education,A,2022,4
24,"Children, Schools and Family",BLOSSOM HOUSE SCHOOL,8574,12-Jul-22,13150,0,777,Non-Delegated Statements,170000              Education,A,2022,4
25,"Children, Schools and Family",BLOSSOM HOUSE SCHOOL,8547,12-Jul-22,13150,0,777,Non-Delegated Statements,170000              Education,A,2022,4
26,"Children, Schools and Family",BLOSSOM HOUSE SCHOOL,8555,12-Jul-22,15950,0,777,Non-Delegated Statements,170000              Education,A,2022,4
27,"Children, Schools and Family",BLOSSOM HOUSE SCHOOL,8562,12-Jul-22,12350,0,777,Non-Delegated Statements,170000              Education,A,2022,4
28,"Children, Schools and Family",BLOSSOM HOUSE SCHOOL,8573,12-Jul-22,15250,0,777,Non-Delegated Statements,170000              Education,A,2022,4
29,"Children, Schools and Family",BLOSSOM HOUSE SCHOOL,8546,12-Jul-22,12350,0,777,Non-Delegated Statements,170000              Education,A,2022,4
30,"Children, Schools and Family",BLOSSOM HOUSE SCHOOL,8554,12-Jul-22,15950,0,777,Non-Delegated Statements,170000              Education,A,2022,4
31,"Children, Schools and Family",BLOSSOM HOUSE SCHOOL,8561,12-Jul-22,15250,0,777,Non-Delegated Statements,170000              Education,A,2022,4
32,"Children, Schools and Family",BLOSSOM HOUSE SCHOOL,8572,12-Jul-22,16750,0,777,Non-Delegated Statements,170000              Education,A,2022,4
33,"Children, Schools and Family",BLOSSOM HOUSE SCHOOL,8553,12-Jul-22,16750,0,777,Non-Delegated Statements,170000              Education,A,2022,4
34,"Children, Schools and Family",BLOSSOM HOUSE SCHOOL,8560,12-Jul-22,13750,0,777,Non-Delegated Statements,170000              Education,A,2022,4
35,"Children, Schools and Family",BLOSSOM HOUSE SCHOOL,8570,12-Jul-22,15950,0,777,Non-Delegated Statements,170000              Education,A,2022,4
36,"Children, Schools and Family",BLOSSOM HOUSE SCHOOL,8602,12-Jul-22,13150,0,777,Non-Delegated Statements,170000              Education,A,2022,4
37,"Children, Schools and Family",BLOSSOM HOUSE SCHOOL,8612,12-Jul-22,12350,0,777,Non-Delegated Statements,170000              Education,A,2022,4
38,"Children, Schools and Family",BLOSSOM HOUSE SCHOOL,8588,12-Jul-22,13150,0,777,Non-Delegated Statements,170000              Education,A,2022,4
39,"Children, Schools and Family",BLOSSOM HOUSE SCHOOL,8592,12-Jul-22,16750,0,777,Non-Delegated Statements,170000              Education,A,2022,4
40,"Children, Schools and Family",BLOSSOM HOUSE SCHOOL,8601,12-Jul-22,16750,0,777,Non-Delegated Statements,170000              Education,A,2022,4
41,"Children, Schools and Family",BLOSSOM HOUSE SCHOOL,8611,12-Jul-22,12750,0,777,Non-Delegated Statements,170000              Education,A,2022,4
42,"Children, Schools and Family",BLOSSOM HOUSE SCHOOL,8587,12-Jul-22,11950,0,777,Non-Delegated Statements,170000              Education,A,2022,4
43,"Children, Schools and Family",BLOSSOM HOUSE SCHOOL,8600,12-Jul-22,13150,0,777,Non-Delegated Statements,170000              Education,A,2022,4
44,"Children, Schools and Family",BLOSSOM HOUSE SCHOOL,8610,12-Jul-22,13150,0,777,Non-Delegated Statements,170000              Education,A,2022,4
45,"Children, Schools and Family",BLOSSOM HOUSE SCHOOL,8586,12-Jul-22,14450,0,777,Non-Delegated Statements,170000              Education,A,2022,4
46,"Children, Schools and Family",BLOSSOM HOUSE SCHOOL,8599,12-Jul-22,20000,0,777,Non-Delegated Statements,170000              Education,A,2022,4
47,"Children, Schools and Family",BLOSSOM HOUSE SCHOOL,8608,12-Jul-22,15950,0,777,Non-Delegated Statements,170000              Education,A,2022,4
48,"Children, Schools and Family",BLOSSOM HOUSE SCHOOL,8585,12-Jul-22,16750,0,777,Non-Delegated Statements,170000              Education,A,2022,4
49,"Children, Schools and Family",BLOSSOM HOUSE SCHOOL,8598,12-Jul-22,14850,0,777,Non-Delegated Statements,170000              Education,A,2022,4
50,"Children, Schools and Family",BLOSSOM HOUSE SCHOOL,8607,12-Jul-22,13150,0,777,Non-Delegated Statements,170000              Education,A,2022,4
51,"Children, Schools and Family",BLOSSOM HOUSE SCHOOL,8584,12-Jul-22,15950,0,777,Non-Delegated Statements,170000              Education,A,2022,4
52,"Children, Schools and Family",BLOSSOM HOUSE SCHOOL,8591,12-Jul-22,20583.33,0,777,Non-Delegated Statements,170000              Education,A,2022,4
53,"Children, Schools and Family",BLOSSOM HOUSE SCHOOL,8597,12-Jul-22,14450,0,777,Non-Delegated Statements,170000              Education,A,2022,4
54,"Children, Schools and Family",BLOSSOM HOUSE SCHOOL,8605,12-Jul-22,20000,0,777,Non-Delegated Statements,170000              Education,A,2022,4
55,"Children, Schools and Family",BLOSSOM HOUSE SCHOOL,8582,12-Jul-22,14350,0,777,Non-Delegated Statements,170000              Education,A,2022,4
56,"Children, Schools and Family",BLOSSOM HOUSE SCHOOL,8583,12-Jul-22,15250,0,777,Non-Delegated Statements,170000              Education,A,2022,4
57,"Children, Schools and Family",BLOSSOM HOUSE SCHOOL,8590,12-Jul-22,12350,0,777,Non-Delegated Statements,170000              Education,A,2022,4
58,"Children, Schools and Family",BLOSSOM HOUSE SCHOOL,8596,12-Jul-22,16750,0,777,Non-Delegated Statements,170000              Education,A,2022,4
59,"Children, Schools and Family",BLOSSOM HOUSE SCHOOL,8604,12-Jul-22,15250,0,777,Non-Delegated Statements,170000              Education,A,2022,4
60,"Children, Schools and Family",BLOSSOM HOUSE SCHOOL,8613,12-Jul-22,16750,0,777,Non-Delegated Statements,170000              Education,A,2022,4
61,"Children, Schools and Family",BLOSSOM HOUSE SCHOOL,8581,12-Jul-22,15950,0,777,Non-Delegated Statements,170000              Education,A,2022,4
62,"Children, Schools and Family",BLOSSOM HOUSE SCHOOL,8589,12-Jul-22,15950,0,777,Non-Delegated Statements,170000              Education,A,2022,4
63,"Children, Schools and Family",BLOSSOM HOUSE SCHOOL,8593,12-Jul-22,15950,0,777,Non-Delegated Statements,170000              Education,A,2022,4
64,"Children, Schools and Family",BLOSSOM HOUSE SCHOOL,8578,12-Jul-22,19575,0,777,Non-Delegated Statements,170000              Education,A,2022,4
65,"Children, Schools and Family",BLOSSOM HOUSE SCHOOL,8766,12-Jul-22,12750,0,777,Non-Delegated Statements,170000              Education,A,2022,4
66,"Children, Schools and Family",BLOSSOM HOUSE SCHOOL,8565,25-Jul-22,17250,0,777,Non-Delegated Statements,170000              Education,A,2022,4
67,"Children, Schools and Family",BLOSSOM HOUSE SCHOOL,8549,25-Jul-22,17250,0,777,Non-Delegated Statements,170000              Education,A,2022,4
68,"Children, Schools and Family",BLOSSOM HOUSE SCHOOL,8563,25-Jul-22,17750,0,777,Non-Delegated Statements,170000              Education,A,2022,4
69,"Children, Schools and Family",BLOSSOM HOUSE SCHOOL,8575,25-Jul-22,17250,0,777,Non-Delegated Statements,170000              Education,A,2022,4
70,"Children, Schools and Family",BLOSSOM HOUSE SCHOOL,8577,25-Jul-22,17250,0,777,Non-Delegated Statements,170000              Education,A,2022,4
71,"Children, Schools and Family",BLOSSOM HOUSE SCHOOL,8594,25-Jul-22,17250,0,777,Non-Delegated Statements,170000              Education,A,2022,4
72,"Children, Schools and Family",BLOSSOM HOUSE SCHOOL,8595,25-Jul-22,22500,0,777,Non-Delegated Statements,170000              Education,A,2022,4
73,"Children, Schools and Family",BLOSSOM HOUSE SCHOOL,8603,25-Jul-22,17250,0,777,Non-Delegated Statements,170000              Education,A,2022,4
74,"Children, Schools and Family",BLOSSOM HOUSE SCHOOL,8606,25-Jul-22,17250,0,777,Non-Delegated Statements,170000              Education,A,2022,4
75,"Children, Schools and Family",BLOSSOM HOUSE SCHOOL,8614,25-Jul-22,17250,0,777,Non-Delegated Statements,170000              Education,A,2022,4
76,"Children, Schools and Family",BLOSSOM HOUSE SCHOOL,8615,25-Jul-22,17250,0,777,Non-Delegated Statements,170000              Education,A,2022,4
77,"Children, Schools and Family",BLOSSOM HOUSE SCHOOL,8616,25-Jul-22,17250,0,777,Non-Delegated Statements,170000              Education,A,2022,4
78,"Children, Schools and Family",BLOSSOM HOUSE SCHOOL,8617,25-Jul-22,17250,0,777,Non-Delegated Statements,170000              Education,A,2022,4
79,Corporate Services,Quadient,92879652,18-Jul-22,2321.65,386.94,793,Post services,300000              Mail Services,A,2022,4
80,Corporate Services,The Wimbledon Guild of Social Welfare,WG SUPERMKT VCH,01-Jul-22,3450,0,802,Household Support Grant,190000              Facilities & Management Services,A,2022,4
81,Community and Housing,The Wimbledon Guild of Social Welfare,WG MERTON MOVES,01-Jul-22,15000,0,802,Covid-19 Clinical E Vulnerable,190000              Facilities & Management Services,A,2022,4
82,Unassigned,PERSEID SCHOOL,SCHOOLS 2223/4 A,07-Jul-22,503059.94,0,983,Schools,170000              Education,A,2022,4
83,Community and Housing,FAMILY STAR LTD,857677,20-Jul-22,8396.18,0,1160,Older People Placements - East,321017              Nursing & Residential Care Homes,A,2022,4
84,Community and Housing,SUTTON NURSING HOMES LTD,847440,05-Jul-22,3056.44,0,1208,Older People Placements - East,321017              Nursing & Residential Care Homes,A,2022,4
85,Community and Housing,SUTTON NURSING HOMES LTD,847524,05-Jul-22,3087.16,0,1208,Older People Placements - East,321017              Nursing & Residential Care Homes,A,2022,4
86,Community and Housing,SUTTON NURSING HOMES LTD,849809,05-Jul-22,713,0,1208,Older People Placements - East,321017              Nursing & Residential Care Homes,A,2022,4
87,Environment and Regeneration,LONDON BOROUGH OF CROYDON,3017416,25-Jul-22,181626.89,28606.85,1258,PARK OPERATIONS,OLA,A,2022,4
88,Corporate Services,L.B OF RICHMOND UPON THAMES,RC376792128M03D,11-Jul-22,2600,0,1353,SLLP Client Income,OLA,A,2022,4
89,Unassigned,MELROSE SPECIAL SCHOOL,SCHOOLS 2223/4 A,07-Jul-22,233011.23,0,1393,Schools,170000              Education,A,2022,4
90,"Children, Schools and Family",MELROSE SPECIAL SCHOOL,HAFSUM22-P1,25-Jul-22,1440,0,1393,Holiday Act Food Prog grntfnd,170000              Education,A,2022,4
91,Unassigned,WILLIAM MORRIS PRIMARY SCHOOL,SCHOOLS 2223/4 A,07-Jul-22,199762.87,0,1416,Schools,170000              Education,A,2022,4
92,"Children, Schools and Family",ST THOMAS OF CANTERBURY PRIMARY,182,08-Jul-22,900,0,1418,School Improvement Dedelegated,170000              Education,A,2022,4
93,Unassigned,ST THOMAS OF CANTERBURY PRIMARY,SCHOOLS 2223/4 A,07-Jul-22,259544.25,0,1418,Schools,170000              Education,A,2022,4
94,Unassigned,PRIORY C OF E MIDDLE SCHOOL,SCHOOLS 2223/4 A,07-Jul-22,129398.5,0,1420,Schools,170000              Education,A,2022,4
95,Unassigned,LIBERTY PRIMARY SCHOOL,SCHOOLS 2223/4 A,07-Jul-22,281935.36,0,1424,Schools,170000              Education,A,2022,4
96,Unassigned,HILLCROSS PRIMARY SCHOOL,SCHOOLS 2223/4 A,07-Jul-22,251781.69,0,1425,Schools,170000              Education,A,2022,4
97,"Children, Schools and Family",HILLCROSS PRIMARY SCHOOL,HPS0037,19-Jul-22,750,0,1425,School Improvement Dedelegated,170000              Education,A,2022,4
98,Unassigned,CRANMER PRIMARY SCHOOL,SCHOOLS 2223/4 A,07-Jul-22,321451.7,0,1426,Schools,170000              Education,A,2022,4
99,Unassigned,WIMBLEDON COLLEGE SCHOOL,SCHOOLS 2223/4 A,07-Jul-22,622301.31,0,1428,Schools,170000              Education,A,2022,4
100,Unassigned,URSULINE HIGH SCHOOL,SCHOOLS 2223/4 A,07-Jul-22,680823.97,0,1429,Schools,170000              Education,A,2022,4
101,Environment and Regeneration,URSULINE HIGH SCHOOL,UHS000336,08-Jul-22,1000,0,1429,Crime and Strategy Team,170000              Education,A,2022,4
102,"Children, Schools and Family",URSULINE HIGH SCHOOL,HAFSUM22-P1,25-Jul-22,3600,0,1429,Holiday Act Food Prog grntfnd,170000              Education,A,2022,4
103,Unassigned,RUTLISH SCHOOL,SCHOOLS 2223/4 A,07-Jul-22,715580.25,0,1431,Schools,170000              Education,A,2022,4
104,Unassigned,RICARDS LODGE SECONDARY SCHOOL,SCHOOLS 2223/4 A,07-Jul-22,670215.15,0,1433,Schools,170000              Education,A,2022,4
105,"Children, Schools and Family",WIMBLEDON PARK PRIMARY SCHOOL,LBM2201,05-Jul-22,2250,0,1436,School Improvement Dedelegated,170000              Education,A,2022,4
106,Unassigned,WIMBLEDON PARK PRIMARY SCHOOL,SCHOOLS 2223/4 A,07-Jul-22,317017.96,0,1436,Schools,170000              Education,A,2022,4
107,"Children, Schools and Family",ST TERESA'S R C PRIMARY SCHOOL,ST000151,06-Jul-22,900,0,1438,School Improvement Dedelegated,170000              Education,A,2022,4
108,Unassigned,ST TERESA'S R C PRIMARY SCHOOL,SCHOOLS 2223/4 A,07-Jul-22,253151.69,0,1438,Schools,170000              Education,A,2022,4
109,Unassigned,ST MARYS CATHOLIC PRIMARY SCHOOL,SCHOOLS 2223/4 A,07-Jul-22,210931.81,0,1439,Schools,170000              Education,A,2022,4
110,Unassigned,ST MARKS PRIMARY SCHOOL,SCHOOLS 2223/4 A,07-Jul-22,143790,0,1440,Schools,170000              Education,A,2022,4
111,"Children, Schools and Family",ST MARKS PRIMARY SCHOOL,97,11-Jul-22,1050,0,1440,School Improvement Dedelegated,170000              Education,A,2022,4
112,Unassigned,ST JOHN FISHER RC PRIMARY SCH.,SCHOOLS 2223/4 A,07-Jul-22,207661.06,0,1441,Schools,170000              Education,A,2022,4
113,Unassigned,SINGLEGATE PRIMARY SCHOOL,SCHOOLS 2223/4 A,07-Jul-22,351847.39,0,1442,Schools,170000              Education,A,2022,4
114,Unassigned,SHERWOOD PRIMARY SCHOOL,SCHOOLS 2223/4 A,07-Jul-22,193289.53,0,1443,Schools,170000              Education,A,2022,4
115,Unassigned,POPLAR PRIMARY SCHOOL,SCHOOLS 2223/4 A,07-Jul-22,370370.5,0,1444,Schools,170000              Education,A,2022,4
116,"Children, Schools and Family",PELHAM PRIMARY SCHOOL,1067,06-Jul-22,1200,0,1445,School Improvement Dedelegated,170000              Education,A,2022,4
117,Unassigned,PELHAM PRIMARY SCHOOL,SCHOOLS 2223/4 A,07-Jul-22,276952.89,0,1445,Schools,170000              Education,A,2022,4
118,Unassigned,MORDEN PRIMARY SCHOOL,SCHOOLS 2223/4 A,07-Jul-22,140259.67,0,1446,Schools,170000              Education,A,2022,4
119,Unassigned,MERTON PARK PRIMARY SCHOOL,SCHOOLS 2223/4 A,07-Jul-22,114528.69,0,1447,Schools,170000              Education,A,2022,4
120,Unassigned,MERTON ABBEY PRIMARY SCHOOL,SCHOOLS 2223/4 A,07-Jul-22,146762.1,0,1448,Schools,170000              Education,A,2022,4
121,Unassigned,LONESOME PRIMARY SCHOOL,SCHOOLS 2223/4 A,07-Jul-22,227660.06,0,1450,Schools,170000              Education,A,2022,4
122,Unassigned,LINKS PRIMARY SCHOOL,SCHOOLS 2223/4 A,07-Jul-22,228532.92,0,1451,Schools,170000              Education,A,2022,4
123,"Children, Schools and Family",LINKS PRIMARY SCHOOL,HAFSUM22-P1,25-Jul-22,2400,0,1451,Holiday Act Food Prog grntfnd,170000              Education,A,2022,4
124,Unassigned,JOSEPH HOOD PRIMARY SCHOOL,SCHOOLS 2223/4 A,07-Jul-22,222479.84,0,1452,Schools,170000              Education,A,2022,4
125,Unassigned,HOLY TRINITY C OF E PRIMARY SCHOOL,SCHOOLS 2223/4 A,07-Jul-22,230750.22,0,1453,Schools,170000              Education,A,2022,4
126,Unassigned,HOLLYMOUNT PRIMARY SCHOOL,SCHOOLS 2223/4 A,07-Jul-22,243242.79,0,1454,Schools,170000              Education,A,2022,4
127,"Children, Schools and Family",HOLLYMOUNT PRIMARY SCHOOL,HS00302,18-Jul-22,1500,0,1454,School Improvement Dedelegated,170000              Education,A,2022,4
128,Unassigned,HATFEILD PRIMARY SCHOOL,SCHOOLS 2223/4 A,07-Jul-22,275532.79,0,1455,Schools,170000              Education,A,2022,4
129,"Children, Schools and Family",HASLEMERE PRIMARY SCHOOL,50722,05-Jul-22,1050,0,1456,School Improvement Dedelegated,170000              Education,A,2022,4
130,Unassigned,HASLEMERE PRIMARY SCHOOL,SCHOOLS 2223/4 A,07-Jul-22,248493.23,0,1456,Schools,170000              Education,A,2022,4
131,Unassigned,GARFIELD PRIMARY SCHOOL,SCHOOLS 2223/4 A,07-Jul-22,190661.81,0,1460,Schools,170000              Education,A,2022,4
132,Unassigned,BOND PRIMARY SCHOOL,SCHOOLS 2223/4 A,07-Jul-22,231796.65,0,1462,Schools,170000              Education,A,2022,4
133,Unassigned,BISHOP GILPIN C OF E PRIMARY,SCHOOLS 2223/4 A,07-Jul-22,248275.13,0,1463,Schools,170000              Education,A,2022,4
134,Unassigned,ABBOTSBURY PRIMARY SCHOOL,SCHOOLS 2223/4 A,07-Jul-22,232224.42,0,1467,Schools,170000              Education,A,2022,4
135,Unassigned,WIMBLEDON CHASE PRIMARY SCHOOL,SCHOOLS 2223/4 A,07-Jul-22,350844.13,0,1469,Schools,170000              Education,A,2022,4
136,Unassigned,GORRINGE PARK PRIMARY SCHOOL,SCHOOLS 2223/4 A,07-Jul-22,239888.22,0,1470,Schools,170000              Education,A,2022,4
137,Unassigned,RAYNES PARK SECONDARY SCHOOL,SCHOOLS 2223/4 A,07-Jul-22,660571.44,0,1471,Schools,170000              Education,A,2022,4
138,Unassigned,SS PETER AND PAUL RC PRIMARY SCH,SCHOOLS 2223/4 A,07-Jul-22,209525.79,0,1472,Schools,170000              Education,A,2022,4
139,Unassigned,DUNDONALD PRIMARY SCHOOL,SCHOOLS 2223/4 A,07-Jul-22,234438,0,1473,Schools,170000              Education,A,2022,4
140,"Children, Schools and Family",MERTON MENCAP,HAFSUM22-P1,25-Jul-22,1600,0,1519,Holiday Act Food Prog grntfnd,200000              Financial Services,A,2022,4
141,Unassigned,ALL SAINTS C OF E PRIMARY SCH,SCHOOLS 2223/4 A,07-Jul-22,212436.76,0,1680,Schools,170000              Education,A,2022,4
142,"Children, Schools and Family",ALL SAINTS C OF E PRIMARY SCH,AS04CFADV,11-Jul-22,50000,0,1680,Delegated Primary Schools,170000              Education,A,2022,4
143,"Children, Schools and Family",REDACTED PERSONAL DATA,848064,01-Jul-22,514.75,0,1801,Placements Under 18,321100              Social Community Care Supplies & Services - Children,R,2022,4
144,"Children, Schools and Family",REDACTED PERSONAL DATA,852852,08-Jul-22,514.75,0,1801,Placements Under 18,321100              Social Community Care Supplies & Services - Children,R,2022,4
145,"Children, Schools and Family",REDACTED PERSONAL DATA,854626,15-Jul-22,514.75,0,1801,Placements Under 18,321100              Social Community Care Supplies & Services - Children,R,2022,4
146,"Children, Schools and Family",REDACTED PERSONAL DATA,858007,21-Jul-22,514.75,0,1801,Placements Under 18,321100              Social Community Care Supplies & Services - Children,R,2022,4
147,"Children, Schools and Family",REDACTED PERSONAL DATA,859643,29-Jul-22,665.5,0,1801,Placements Under 18,321100              Social Community Care Supplies & Services - Children,R,2022,4
148,"Children, Schools and Family",REDACTED PERSONAL DATA,859659,29-Jul-22,714.75,0,1801,Placements Under 18,321100              Social Community Care Supplies & Services - Children,R,2022,4
149,Corporate Services,CIVICA UK LIMITED,M/RB102076,11-Jul-22,189987.1,31664.53,1873,Business Systems,270000              Information Communication Technology,A,2022,4
150,Corporate Services,CIVICA UK LIMITED,C/BN247455,29-Jul-22,790.01,131.67,1873,Local Taxation Services,270000              Information Communication Technology,A,2022,4
151,"Children, Schools and Family",THE CHILDRENS TRUST,4417,25-Jul-22,6149.78,0,1980,Non-Delegated Statements,170000              Education,A,2022,4
152,"Children, Schools and Family",THE CHILDRENS TRUST,4416,25-Jul-22,3237.33,0,1980,Non-Delegated Statements,170000              Education,A,2022,4
153,"Children, Schools and Family",THE CHILDRENS TRUST,4415,25-Jul-22,7805.18,0,1980,Non-Delegated Statements,170000              Education,A,2022,4
154,"Children, Schools and Family",THE CHILDRENS TRUST,4323,29-Jul-22,3471,0,1980,Child Disabilities - Placement,170000              Education,A,2022,4
155,"Children, Schools and Family",THE CHILDRENS TRUST,3822,29-Jul-22,3216,0,1980,Child Disabilities - Placement,170000              Education,A,2022,4
156,Community and Housing,THE FRANCES TAYLOR FOUNDATION,847507,05-Jul-22,3812.04,0,2011,Learning Disabilities Placemnt,321017              Nursing & Residential Care Homes,A,2022,4
157,Unassigned,SACRED HEART R C PRIMARY SCH.,SCHOOLS 2223/4 A,07-Jul-22,191416.4,0,2076,Schools,170000              Education,A,2022,4
158,Community and Housing,GENEVA ROAD LIMITED,300622JW,08-Jul-22,721.01,120.17,2198,Older People Placements - East,321000              Social Community Care Supplies & Services - Adult,A,2022,4
159,Community and Housing,GENEVA ROAD LIMITED,310522JW,08-Jul-22,721.01,120.17,2198,Older People Placements - East,321000              Social Community Care Supplies & Services - Adult,A,2022,4
160,Corporate Services,LONDON BOROUGH OF SUTTON,SLLPINCOMEM0322,11-Jul-22,9382.48,0,2313,SLLP Client Income,OLA,A,2022,4
161,Unassigned,LONDON BOROUGH OF SUTTON,GROVEHALL,13-Jul-22,850,0,2313,Corporate Services,OLA,A,2022,4
162,Unassigned,LONDON BOROUGH OF SUTTON,9KIMPTON,13-Jul-22,850,0,2313,Corporate Services,OLA,A,2022,4
163,Unassigned,LONDON BOROUGH OF SUTTON,RADCLIFFE,13-Jul-22,3660,0,2313,Corporate Services,OLA,A,2022,4
164,Corporate Services,GREENHAM TRADING LTD,07/468289,01-Aug-22,2065.44,344.24,2445,Corporate Contracts - FM,130000              Cleaning & Janitorial,A,2022,4
165,Community and Housing,FREEWAYS TRUST LTD,847418,05-Jul-22,3265.6,0,2474,Learning Disabilities Placemnt,321017              Nursing & Residential Care Homes,A,2022,4
166,Environment and Regeneration,ACTIVITY WORKWEAR LIMITED,20456,29-Jul-22,744,124,2752,Waste Enforcement,140000              Clothing,A,2022,4
167,Community and Housing,CLOYDA LTD,847686,05-Jul-22,3294.48,0,10762,Older People Placements - East,321017              Nursing & Residential Care Homes,A,2022,4
168,Community and Housing,CHEGWORTH N.H. (BAYSWIFT LTD),847642,05-Jul-22,3056.4,0,11057,Learning Disabilities Placemnt,321000              Social Community Care Supplies & Services - Adult,A,2022,4
169,"Children, Schools and Family",REDACTED PERSONAL DATA,848022,01-Jul-22,580.36,0,11130,Placements Under 18,321100              Social Community Care Supplies & Services - Children,R,2022,4
170,"Children, Schools and Family",REDACTED PERSONAL DATA,852804,08-Jul-22,580.36,0,11130,Placements Under 18,321100              Social Community Care Supplies & Services - Children,R,2022,4
171,"Children, Schools and Family",REDACTED PERSONAL DATA,854577,15-Jul-22,580.36,0,11130,Placements Under 18,321100              Social Community Care Supplies & Services - Children,R,2022,4
172,"Children, Schools and Family",REDACTED PERSONAL DATA,857960,21-Jul-22,580.36,0,11130,Placements Under 18,321100              Social Community Care Supplies & Services - Children,R,2022,4
173,"Children, Schools and Family",REDACTED PERSONAL DATA,859613,29-Jul-22,780.36,0,11130,Placements Under 18,321100              Social Community Care Supplies & Services - Children,R,2022,4
174,"Children, Schools and Family",ST DOMINIC'S SCHOOL,DI112104122,22-Jul-22,10096.15,0,11569,Non-Delegated Statements,170000              Education,A,2022,4
175,"Children, Schools and Family",ST DOMINIC'S SCHOOL,DI112104121,22-Jul-22,10096.15,0,11569,Non-Delegated Statements,170000              Education,A,2022,4
176,Community and Housing,ASHCROFT CARE SERVICES,847641,05-Jul-22,6161.24,0,13287,Learning Disabilities Placemnt,321017              Nursing & Residential Care Homes,A,2022,4
177,"Children, Schools and Family",SHARE COMMUNITY LTD,230360,05-Jul-22,544,0,13487,Non-Maintained Post 16 SEN,321017              Nursing & Residential Care Homes,A,2022,4
178,Community and Housing,SHARE COMMUNITY LTD,230343,04-Jul-22,560.32,0,13487,Learning Disabilities Placemnt,321017              Nursing & Residential Care Homes,A,2022,4
179,Community and Housing,SHARE COMMUNITY LTD,230346,04-Jul-22,734.52,0,13487,Learning Disabilities Placemnt,321017              Nursing & Residential Care Homes,A,2022,4
180,Community and Housing,SHARE COMMUNITY LTD,230352,04-Jul-22,535.6,0,13487,Learning Disabilities Placemnt,321017              Nursing & Residential Care Homes,A,2022,4
181,Community and Housing,SHARE COMMUNITY LTD,230357,04-Jul-22,780,0,13487,Learning Disabilities Placemnt,321017              Nursing & Residential Care Homes,A,2022,4
182,Community and Housing,SHARE COMMUNITY LTD,230361,04-Jul-22,1040,0,13487,Learning Disabilities Placemnt,321017              Nursing & Residential Care Homes,A,2022,4
183,Community and Housing,SHARE COMMUNITY LTD,230378,05-Jul-22,840.48,0,13487,Learning Disabilities Placemnt,321017              Nursing & Residential Care Homes,A,2022,4
184,Community and Housing,FITZROY SUPPORT,847753,05-Jul-22,8304.28,0,13535,Learning Disabilities Placemnt,321017              Nursing & Residential Care Homes,A,2022,4
185,Community and Housing,CANTERBURY OAST TRUST LTD,847432,05-Jul-22,2541.24,0,13566,Learning Disabilities Placemnt,321017              Nursing & Residential Care Homes,A,2022,4
186,Community and Housing,MACINTYRE,847445,05-Jul-22,5776,0,13585,Learning Disabilities Placemnt,321017              Nursing & Residential Care Homes,A,2022,4
187,Community and Housing,MACINTYRE,847616,05-Jul-22,5641.36,0,13585,Learning Disabilities Placemnt,321017              Nursing & Residential Care Homes,A,2022,4
188,Community and Housing,MACINTYRE,847750,05-Jul-22,4825.24,0,13585,Learning Disabilities Placemnt,321017              Nursing & Residential Care Homes,A,2022,4
189,Community and Housing,MACINTYRE,849829,05-Jul-22,5641.36,0,13585,Older People Placements - East,321017              Nursing & Residential Care Homes,A,2022,4
190,Community and Housing,KENT AUTISTIC TRUST,847730,05-Jul-22,7494.72,0,13670,Learning Disabilities Placemnt,321017              Nursing & Residential Care Homes,A,2022,4
191,Environment and Regeneration,ROBERT MORGAN AND SONS LTD,STOUTHALLRENTJUN,12-Jul-22,4125,0,14355,Other Misc Props,200000              Financial Services,A,2022,4
192,Community and Housing,UNITED RESPONSE,VSMR775066-RH,19-Jul-22,4134.62,689.1,14616,Learning Disabilities Placemnt,321000              Social Community Care Supplies & Services - Adult,A,2022,4
193,Community and Housing,UNITED RESPONSE,VSMR775066-DH,19-Jul-22,3842.88,640.48,14616,Learning Disabilities Placemnt,321000              Social Community Care Supplies & Services - Adult,A,2022,4
194,Community and Housing,UNITED RESPONSE,VSMR775066-HM,19-Jul-22,4572.24,762.04,14616,Learning Disabilities Placemnt,321000              Social Community Care Supplies & Services - Adult,A,2022,4
195,Community and Housing,UNITED RESPONSE,VSMR775066-BS,19-Jul-22,4086.05,681.01,14616,Learning Disabilities Placemnt,321000              Social Community Care Supplies & Services - Adult,A,2022,4
196,Community and Housing,UNITED RESPONSE,VSMR775066-CFW,19-Jul-22,4766.4,794.4,14616,Learning Disabilities Placemnt,321000              Social Community Care Supplies & Services - Adult,A,2022,4
197,Community and Housing,UNITED RESPONSE,VSMR776192- BA,22-Jul-22,4837.78,806.3,14616,Learning Disabilities Placemnt,321000              Social Community Care Supplies & Services - Adult,A,2022,4
198,Community and Housing,UNITED RESPONSE,VSMR776192- BO,22-Jul-22,4837.78,806.3,14616,Learning Disabilities Placemnt,321000              Social Community Care Supplies & Services - Adult,A,2022,4
199,Community and Housing,UNITED RESPONSE,VSMR776192- ST,22-Jul-22,4837.78,806.3,14616,Learning Disabilities Placemnt,321000              Social Community Care Supplies & Services - Adult,A,2022,4
200,Community and Housing,UNITED RESPONSE,VSMR776192- SV,22-Jul-22,4837.78,806.3,14616,Learning Disabilities Placemnt,321000              Social Community Care Supplies & Services - Adult,A,2022,4
201,Community and Housing,UNITED RESPONSE,VSMR776192- RW,22-Jul-22,4837.78,806.3,14616,Learning Disabilities Placemnt,321000              Social Community Care Supplies & Services - Adult,A,2022,4
202,"Children, Schools and Family",CROYDON COLLEGE,IJ/000553,25-Jul-22,821.47,0,15734,Non-Maintained Post 16 SEN,200000              Financial Services,A,2022,4
203,Corporate Services,KINGSTON CORPORATION,37310846,05-Jul-22,2407.62,141.27,21573,HR TRANSACTIONS,180000              Environmental Services,A,2022,4
204,Corporate Services,KINGSTON CORPORATION,MO3LEGAL22/23,11-Jul-22,1650,0,21573,SLLP Client Income,180000              Environmental Services,A,2022,4
205,Corporate Services,I J BEIM AND ASSOCIATES LTD,12143,14-Jul-22,2766.42,454.22,24949,SLLP - Disbursements,280000              Legal Services,A,2022,4
206,Capital,MITCHAM COMMON CONSERVATORS,7,25-Jul-22,1755,0,28571,Wimbledon Park Lake and Waters,190000              Facilities & Management Services,A,2022,4
207,Community and Housing,TRINITY COURT NURSING HOME,848087,01-Jul-22,2137.23,0,30306,Older People Placements - East,321017              Nursing & Residential Care Homes,A,2022,4
208,Community and Housing,TRINITY COURT NURSING HOME,847438,05-Jul-22,2516.23,0,30306,Older People Placements - East,321017              Nursing & Residential Care Homes,A,2022,4
209,Community and Housing,TRINITY COURT NURSING HOME,847481,05-Jul-22,2861.6,0,30306,Older People Placements - East,321017              Nursing & Residential Care Homes,A,2022,4
210,Community and Housing,TRINITY COURT NURSING HOME,847565,05-Jul-22,875.22,0,30306,Older People Placements - East,321017              Nursing & Residential Care Homes,A,2022,4
211,Community and Housing,TRINITY COURT NURSING HOME,847577,05-Jul-22,3063.24,0,30306,Older People Placements - East,321017              Nursing & Residential Care Homes,A,2022,4
212,Community and Housing,TRINITY COURT NURSING HOME,847617,05-Jul-22,2985.6,0,30306,Older People Placements - East,321017              Nursing & Residential Care Homes,A,2022,4
213,Community and Housing,TRINITY COURT NURSING HOME,847663,05-Jul-22,3313.84,0,30306,Phys/Sens Placements - East,321017              Nursing & Residential Care Homes,A,2022,4
214,Community and Housing,TRINITY COURT NURSING HOME,847667,05-Jul-22,3063.24,0,30306,Phys/Sens Placements - East,321017              Nursing & Residential Care Homes,A,2022,4
215,Community and Housing,TRINITY COURT NURSING HOME,847687,05-Jul-22,3135.72,0,30306,Older People Placements - East,321017              Nursing & Residential Care Homes,A,2022,4
216,Community and Housing,TRINITY COURT NURSING HOME,847728,05-Jul-22,2985.6,0,30306,Older People Placements - East,321017              Nursing & Residential Care Homes,A,2022,4
217,Community and Housing,TRINITY COURT NURSING HOME,847735,05-Jul-22,2861.6,0,30306,Older People Placements - East,321017              Nursing & Residential Care Homes,A,2022,4
218,Community and Housing,TRINITY COURT NURSING HOME,847805,05-Jul-22,2985.6,0,30306,Older People Placements - East,321017              Nursing & Residential Care Homes,A,2022,4
219,Community and Housing,TRINITY COURT NURSING HOME,847840,05-Jul-22,2876.32,0,30306,Older People Placements - East,321017              Nursing & Residential Care Homes,A,2022,4
220,Community and Housing,TRINITY COURT NURSING HOME,847841,05-Jul-22,3149.6,0,30306,Older People Placements - East,321017              Nursing & Residential Care Homes,A,2022,4
221,Community and Housing,TRINITY COURT NURSING HOME,847843,05-Jul-22,2521.12,0,30306,Older People Placements - East,321017              Nursing & Residential Care Homes,A,2022,4
222,Community and Housing,HAYDON PARK LODGE,847439,05-Jul-22,4680,0,31434,Learning Disabilities Placemnt,321017              Nursing & Residential Care Homes,A,2022,4
223,Community and Housing,HAYDON PARK LODGE,847570,05-Jul-22,3485,0,31434,Learning Disabilities Placemnt,321017              Nursing & Residential Care Homes,A,2022,4
224,Community and Housing,HAYDON PARK LODGE,847597,05-Jul-22,4591.44,0,31434,Learning Disabilities Placemnt,321017              Nursing & Residential Care Homes,A,2022,4
225,Community and Housing,HAYDON PARK LODGE,847670,05-Jul-22,5070.76,0,31434,Learning Disabilities Placemnt,321017              Nursing & Residential Care Homes,A,2022,4
226,Community and Housing,HAYDON PARK LODGE,847678,05-Jul-22,6911.12,0,31434,Learning Disabilities Placemnt,321017              Nursing & Residential Care Homes,A,2022,4
227,Community and Housing,HAYDON PARK LODGE,847719,05-Jul-22,4420.08,0,31434,Learning Disabilities Placemnt,321017              Nursing & Residential Care Homes,A,2022,4
228,Community and Housing,Barchester Healthcare Wimbledon Beaumont,847541,05-Jul-22,4805.48,0,33384,Older People Placements - East,321017              Nursing & Residential Care Homes,A,2022,4
229,Community and Housing,COMFORT CARE SERVICES (UK) LTD,SU0091/262,08-Jul-22,871.36,0,34932,Mental Health Placements,321000              Social Community Care Supplies & Services - Adult,A,2022,4
230,Community and Housing,COMFORT CARE SERVICES (UK) LTD,SU1041/745,25-Jul-22,1632.15,0,34932,Mental Health Placements,321000              Social Community Care Supplies & Services - Adult,A,2022,4
231,Unassigned,ST MATTHEW'S C OF E PRIMARY,SCHOOLS 2223/4 A,07-Jul-22,102613.37,0,36050,Schools,170000              Education,A,2022,4
232,"Children, Schools and Family",REDACTED PERSONAL DATA,859610,29-Jul-22,684,0,36376,Placements Under 18,321100              Social Community Care Supplies & Services - Children,R,2022,4
233,Unassigned,I AND  J BUSHELL LTD,4591,28-Jul-22,948,158,42221,Mitcham Common Conservators,"390000              Works - Construction, Repair & Maintenance",A,2022,4
234,Community and Housing,JESMUND CARE LTD,847790,05-Jul-22,3600,0,46751,Older People Placements - East,321017              Nursing & Residential Care Homes,A,2022,4
235,Community and Housing,JESMUND CARE LTD,856947,20-Jul-22,13330.2,0,46751,Older People Placements - East,321017              Nursing & Residential Care Homes,A,2022,4
236,Corporate Services,EXPERIAN LTD,IAA3002616099,22-Jul-22,522.12,87.02,49765,Local Taxation Services,200000              Financial Services,A,2022,4
237,Community and Housing,REDACTED PERSONAL DATA,855409,20-Jul-22,4900.28,0,50448,Older People Placements - East,DIRECT PAYMENTS,R,2022,4
238,Community and Housing,LINKAGE COMMUNITY TR.LONG-STAY,847708,05-Jul-22,3154,0,52552,Learning Disabilities Placemnt,321017              Nursing & Residential Care Homes,A,2022,4
239,Community and Housing,RUTLAND HOUSE CARE HOME,847745,05-Jul-22,1578,0,53424,Older People Placements - East,321017              Nursing & Residential Care Homes,A,2022,4
240,Community and Housing,RUTLAND HOUSE CARE HOME,856949,20-Jul-22,1578,0,53424,Older People Placements - East,321017              Nursing & Residential Care Homes,A,2022,4
241,Community and Housing,RUTLAND HOUSE CARE HOME,857683,20-Jul-22,1465.29,0,53424,Older People Placements - East,321017              Nursing & Residential Care Homes,A,2022,4
242,Community and Housing,CLIFTON MANOR,847827,05-Jul-22,4022.16,0,56118,Learning Disabilities Placemnt,321017              Nursing & Residential Care Homes,A,2022,4
243,Community and Housing,PARK LODGE,847551,05-Jul-22,2940,0,56878,Learning Disabilities Placemnt,321017              Nursing & Residential Care Homes,A,2022,4
244,Community and Housing,PARK LODGE,847647,05-Jul-22,3026.8,0,56878,Learning Disabilities Placemnt,321017              Nursing & Residential Care Homes,A,2022,4
245,Unassigned,CRICKET GREEN SCHOOL,SCHOOLS 2223/4 A,07-Jul-22,389998.59,0,57057,Schools,170000              Education,A,2022,4
246,Community and Housing,KENWARD TRUST,857104,20-Jul-22,4794,0,57058,Substance Misuse Placements,321000              Social Community Care Supplies & Services - Children,A,2022,4
247,Community and Housing,MERTON VOLUNTARY SERV COUNCIL,MC COMMUNITY ACC,25-Jul-22,49550,0,57560,Covid-19 Clinical E Vulnerable,190000              Facilities & Management Services,A,2022,4
248,Corporate Services,MERTON VOLUNTARY SERV COUNCIL,5167,25-Jul-22,10416.67,0,57560,Healthwatch,190000              Facilities & Management Services,A,2022,4
249,Corporate Services,JADE SECURITY SERVICE LTD,3778,22-Jul-22,2468.69,411.45,57563,Cash Collections,200000              Financial Services,A,2022,4
250,Community and Housing,WALSINGHAM,847526,05-Jul-22,5486.52,0,58466,Learning Disabilities Placemnt,321017              Nursing & Residential Care Homes,A,2022,4
251,Community and Housing,WALSINGHAM,847706,05-Jul-22,5486.4,0,58466,Learning Disabilities Placemnt,321017              Nursing & Residential Care Homes,A,2022,4
252,Community and Housing,WALSINGHAM,847762,05-Jul-22,5552.64,0,58466,Learning Disabilities Placemnt,321017              Nursing & Residential Care Homes,A,2022,4
253,Community and Housing,WALSINGHAM,847767,05-Jul-22,5476.12,0,58466,Learning Disabilities Placemnt,321017              Nursing & Residential Care Homes,A,2022,4
254,Community and Housing,CARE UK,847416,05-Jul-22,3229.52,0,58851,Older People Placements - East,321017              Nursing & Residential Care Homes,A,2022,4
255,Community and Housing,CARE UK,847436,05-Jul-22,3800,0,58851,Older People Placements - East,321017              Nursing & Residential Care Homes,A,2022,4
256,Community and Housing,CARE UK,847595,05-Jul-22,3264.32,0,58851,Older People Placements - East,321017              Nursing & Residential Care Homes,A,2022,4
257,Community and Housing,CARE UK,847669,05-Jul-22,3229.52,0,58851,Mental Health Placements,321017              Nursing & Residential Care Homes,A,2022,4
258,Community and Housing,CARE UK,847697,05-Jul-22,3229.52,0,58851,Older People Placements - East,321017              Nursing & Residential Care Homes,A,2022,4
259,Community and Housing,CARE UK,847774,05-Jul-22,3736,0,58851,Older People Placements - East,321017              Nursing & Residential Care Homes,A,2022,4
260,Community and Housing,CARE UK,847788,05-Jul-22,3049.6,0,58851,Older People Placements - East,321017              Nursing & Residential Care Homes,A,2022,4
261,Community and Housing,CARE UK,847829,05-Jul-22,3143.16,0,58851,Older People Placements - East,321017              Nursing & Residential Care Homes,A,2022,4
262,Capital,BARCHAM TREES P.L.C.,131500,27-Jul-22,1555.2,0,62024,Wimbledon Area Regeneration,240000              Horticultural,A,2022,4
263,Community and Housing,BARONS LODGE NURSING HOME,847478,05-Jul-22,1716,0,62371,Mental Health Placements,321017              Nursing & Residential Care Homes,A,2022,4
264,Community and Housing,BARONS LODGE NURSING HOME,847664,05-Jul-22,3502,0,62371,Mental Health Placements,321017              Nursing & Residential Care Homes,A,2022,4
265,Community and Housing,BARONS LODGE NURSING HOME,847677,05-Jul-22,4200,0,62371,Mental Health Placements,321017              Nursing & Residential Care Homes,A,2022,4
266,Community and Housing,BARONS LODGE NURSING HOME,847734,05-Jul-22,2678,0,62371,Learning Disabilities Placemnt,321017              Nursing & Residential Care Homes,A,2022,4
267,Community and Housing,BARONS LODGE NURSING HOME,847738,05-Jul-22,4360,0,62371,Mental Health Placements,321017              Nursing & Residential Care Homes,A,2022,4
268,Community and Housing,BARONS LODGE NURSING HOME,847743,05-Jul-22,4360,0,62371,Older People Placements - East,321017              Nursing & Residential Care Homes,A,2022,4
269,Community and Housing,BARONS LODGE NURSING HOME,847744,05-Jul-22,3807.2,0,62371,Learning Disabilities Placemnt,321017              Nursing & Residential Care Homes,A,2022,4
270,Community and Housing,BARONS LODGE NURSING HOME,847783,05-Jul-22,3502,0,62371,Older People Placements - East,321017              Nursing & Residential Care Homes,A,2022,4
271,Environment and Regeneration,ATTIC THEATRE COMPANY,INV0036,27-Jul-22,16000,0,62620,Theatres,190000              Facilities & Management Services,A,2022,4
272,Community and Housing,SANCTUARY CARE LTD,847447,05-Jul-22,3117.52,0,63458,Learning Disabilities Placemnt,321017              Nursing & Residential Care Homes,A,2022,4
273,Community and Housing,THE REGARD PARTNERSHIP LTD,847430,05-Jul-22,6220.72,0,63796,Learning Disabilities Placemnt,321017              Nursing & Residential Care Homes,A,2022,4
274,Community and Housing,THE REGARD PARTNERSHIP LTD,847523,05-Jul-22,6010.48,0,63796,Learning Disabilities Placemnt,321017              Nursing & Residential Care Homes,A,2022,4
275,Community and Housing,THE REGARD PARTNERSHIP LTD,847538,05-Jul-22,9681.96,0,63796,Learning Disabilities Placemnt,321017              Nursing & Residential Care Homes,A,2022,4
276,Community and Housing,THE REGARD PARTNERSHIP LTD,847549,05-Jul-22,5765,0,63796,Learning Disabilities Placemnt,321017              Nursing & Residential Care Homes,A,2022,4
277,Community and Housing,THE REGARD PARTNERSHIP LTD,847653,05-Jul-22,6126.52,0,63796,Learning Disabilities Placemnt,321017              Nursing & Residential Care Homes,A,2022,4
278,Community and Housing,THE REGARD PARTNERSHIP LTD,847763,05-Jul-22,4901.24,0,63796,Learning Disabilities Placemnt,321017              Nursing & Residential Care Homes,A,2022,4
279,Community and Housing,NAS SERVICES LIMITED,ASU2377458,14-Jul-22,4546.8,757.8,68929,Mental Health Placements,321100              Social Community Care Supplies & Services - Children,A,2022,4
280,"Children, Schools and Family",ETHELBERT SPECIALIST HOMES LTD,LL/0622/265,08-Jul-22,14547.77,0,72942,Placements Under 18,321100              Social Community Care Supplies & Services - Children,A,2022,4
281,"Children, Schools and Family",ETHELBERT SPECIALIST HOMES LTD,BH/0622/342,08-Jul-22,6568.63,0,72942,Placements Under 18,321100              Social Community Care Supplies & Services - Children,A,2022,4
282,Community and Housing,BRANDON TRUST,847442,05-Jul-22,4054,0,76126,Learning Disabilities Placemnt,321017              Nursing & Residential Care Homes,A,2022,4
283,"Children, Schools and Family",NESCOT,321945,20-Jul-22,9250,0,76517,Non-Maintained Post 16 SEN,170000              Education,A,2022,4
284,"Children, Schools and Family",NESCOT,321890,20-Jul-22,1841.49,0,76517,Non-Maintained Post 16 SEN,170000              Education,A,2022,4
285,"Children, Schools and Family",NESCOT,321907,20-Jul-22,1841.49,0,76517,Non-Maintained Post 16 SEN,170000              Education,A,2022,4
286,"Children, Schools and Family",NESCOT,323298,25-Jul-22,1841.49,0,76517,Non-Maintained Post 16 SEN,170000              Education,A,2022,4
287,Unassigned,LONDON BOROUGH OF SUTTON,BAILIFFJUNE2022,12-Jul-22,85583.79,0,76615,Corporate Services,OLA,A,2022,4
288,Unassigned,POST OFFICE LTD,MERTON22/23PO6A,06-Jul-22,19992.35,0,77066,Adults Social Care,200000              Financial Services,A,2022,4
289,Unassigned,POST OFFICE LTD,MERT 22/23 PO7,26-Jul-22,19396.4,0,77066,Adults Social Care,200000              Financial Services,A,2022,4
290,Environment and Regeneration,SIGNWAY SUPPLIES,53458,22-Jul-22,1588.99,264.83,77568,Reactive Maintenance,100000              Building Construction Materials,A,2022,4
291,Community and Housing,ABBEY HOUSE RESIDENTIAL HOMES,847443,05-Jul-22,2700,0,78937,Older People Placements - East,321017              Nursing & Residential Care Homes,A,2022,4
292,Community and Housing,ABBEY HOUSE RESIDENTIAL HOMES,847463,05-Jul-22,3151.8,0,78937,Older People Placements - East,321017              Nursing & Residential Care Homes,A,2022,4
293,Community and Housing,ABBEY HOUSE RESIDENTIAL HOMES,847465,05-Jul-22,5520,0,78937,Mental Health Placements,321017              Nursing & Residential Care Homes,A,2022,4
294,Unassigned,TRANSPORT FOR LONDON,MERTONQ12022,21-Jul-22,268398.4,0,79197,Capital,PRECEPT,A,2022,4
295,Community and Housing,REDACTED PERSONAL DATA,855043,20-Jul-22,5088.12,0,81639,Older People Placements - East,DIRECT PAYMENTS,R,2022,4
296,Corporate Services,IRON MOUNTAIN (UK) LTD,17147071,22-Jul-22,850.54,141.76,82409,IT-Telecomms,270000              Information Communication Technology,A,2022,4
297,Environment and Regeneration,S.GRUNDON (WASTE) LTD.,W157821,19-Jul-22,2466.72,411.12,82593,Waste Disposal,180000              Environmental Services,A,2022,4
298,Community and Housing,ASKEWS AND HOLTS LIBRARY SRV LTD,6717247,22-Jul-22,766.78,0,82770,Media Fund,200000              Financial Services,A,2022,4
299,Community and Housing,ASKEWS AND HOLTS LIBRARY SRV LTD,6717258,22-Jul-22,541.86,0,82770,Media Fund,200000              Financial Services,A,2022,4
300,Community and Housing,ASKEWS AND HOLTS LIBRARY SRV LTD,6717318,22-Jul-22,649.79,0,82770,Media Fund,200000              Financial Services,A,2022,4
301,Community and Housing,ASKEWS AND HOLTS LIBRARY SRV LTD,6717341,19-Jul-22,545.24,0,82770,Media Fund,200000              Financial Services,A,2022,4
302,"Children, Schools and Family",GREATER LONDON AUTHORITY,1800011005,29-Jul-22,5700,950,83050,Policy Planning & Performance,PRECEPT,A,2022,4
303,Corporate Services,REDACTED PERSONAL DATA,INVJD145,22-Jul-22,2310,385,83383,SLLP - Disbursements,280000              Legal Services,R,2022,4
304,Corporate Services,REDACTED PERSONAL DATA,INVJD147,22-Jul-22,2100,350,83383,SLLP - Disbursements,280000              Legal Services,R,2022,4
305,"Children, Schools and Family",MALMESBURY PRIMARY SCHOOL,E20120203,06-Jul-22,1050,0,83593,School Improvement Dedelegated,170000              Education,A,2022,4
306,Unassigned,MALMESBURY PRIMARY SCHOOL,SCHOOLS 2223/4 A,07-Jul-22,256352.76,0,83593,Schools,170000              Education,A,2022,4
307,Community and Housing,YOUNG EPILEPSY,INV010374,29-Jul-22,20453.33,0,84094,Learning Disabilities Placemnt,170000              Education,A,2022,4
308,Environment and Regeneration,NEWSQUEST MEDIA GROUP LTD,40005749,07-Jul-22,2201.58,366.93,85566,CPZ Implementation & Consult,190000              Facilities & Management Services,A,2022,4
309,Environment and Regeneration,NEWSQUEST MEDIA GROUP LTD,40412400,01-Aug-22,2397.28,399.55,85566,CPZ Implementation & Consult,190000              Facilities & Management Services,A,2022,4
310,Environment and Regeneration,NEWSQUEST MEDIA GROUP LTD,40412962,01-Aug-22,1565.57,260.93,85566,CPZ Implementation & Consult,190000              Facilities & Management Services,A,2022,4
311,Capital,NEWSQUEST MEDIA GROUP LTD,40412146,01-Aug-22,3522.53,587.09,85566,Highways & Footways,190000              Facilities & Management Services,A,2022,4
312,Corporate Services,AXIS ELEVATORS LTD,NV204649,27-Jul-22,940.8,156.8,89013,Civic Centre,190000              Facilities & Management Services,A,2022,4
313,"Children, Schools and Family",CITY OF WESTMINSTER,3660070576,15-Jul-22,5500,0,89641,Care Experienced Over 18,OLA,A,2022,4
314,"Children, Schools and Family",LONDON GRID FOR LEARNING TRUST,2020012275,25-Jul-22,1438.8,239.8,90449, Schools IT Support,270000              Information Communication Technology,A,2022,4
315,"Children, Schools and Family",LONDON GRID FOR LEARNING TRUST,2020012358,25-Jul-22,1558.8,259.8,90449, Schools IT Support,270000              Information Communication Technology,A,2022,4
316,Community and Housing,SUPREME CARE SERVICES LIMITED,85405,29-Jul-22,2988.16,0,91840,Older People Placements - East,321000              Social Community Care Supplies & Services - Adult,A,2022,4
317,Community and Housing,SUPREME CARE SERVICES LIMITED,85407,29-Jul-22,838.8,0,91840,Older People Placements - East,321000              Social Community Care Supplies & Services - Adult,A,2022,4
318,"Children, Schools and Family",OWN LIFE LTD - 14+ Team - FC,220624,28-Jul-22,1594.28,265.71,92197,CIC Care Exp under 18 staffing,321100              Social Community Care Supplies & Services - Children,A,2022,4
319,Community and Housing,Libraries Connected,2427,27-Jul-22,653.59,0,92250,Media Fund,200000              Financial Services,A,2022,4
320,Community and Housing,THE GARWOOD FOUNDATION,BHF/3006,25-Jul-22,737.4,0,92268,Older People Placements - East,321000              Social Community Care Supplies & Services - Adult,A,2022,4
321,Community and Housing,THE GARWOOD FOUNDATION,BHF/2091,25-Jul-22,737.4,0,92268,Older People Placements - East,321000              Social Community Care Supplies & Services - Adult,A,2022,4
322,Community and Housing,THE GARWOOD FOUNDATION,BHF/2076,25-Jul-22,737.4,0,92268,Older People Placements - East,321000              Social Community Care Supplies & Services - Adult,A,2022,4
323,Community and Housing,THE GARWOOD FOUNDATION,BHF/2061,25-Jul-22,737.4,0,92268,Older People Placements - East,321000              Social Community Care Supplies & Services - Adult,A,2022,4
324,Community and Housing,Allied Healthcare,2640040036930A,01-Jul-22,3488.86,0,92896,Older People Placements - East,321000              Social Community Care Supplies & Services - Adult,A,2022,4
325,Community and Housing,Allied Healthcare,AHC/18,08-Jul-22,2548.5,0,92896,Older People Placements - East,321000              Social Community Care Supplies & Services - Adult,A,2022,4
326,Community and Housing,Allied Healthcare,AHC/80,08-Jul-22,611.28,0,92896,Older People Placements - East,321000              Social Community Care Supplies & Services - Adult,A,2022,4
327,Community and Housing,Allied Healthcare,AHC/10,08-Jul-22,517.48,0,92896,Learning Disabilities Placemnt,321000              Social Community Care Supplies & Services - Adult,A,2022,4
328,Community and Housing,Allied Healthcare,AHC/46,08-Jul-22,593.64,0,92896,Older People Placements - East,321000              Social Community Care Supplies & Services - Adult,A,2022,4
329,Community and Housing,Allied Healthcare,AHC/88,08-Jul-22,733.52,0,92896,Older People Placements - East,321000              Social Community Care Supplies & Services - Adult,A,2022,4
330,Community and Housing,Allied Healthcare,AHC/43,08-Jul-22,1065.88,0,92896,Phys/Sens Placements - East,321000              Social Community Care Supplies & Services - Adult,A,2022,4
331,Community and Housing,Allied Healthcare,AHC/64,08-Jul-22,639.59,0,92896,Older People Placements - East,321000              Social Community Care Supplies & Services - Adult,A,2022,4
332,Community and Housing,Allied Healthcare,AHC/73,08-Jul-22,848.78,0,92896,Older People Placements - East,321000              Social Community Care Supplies & Services - Adult,A,2022,4
333,Community and Housing,Allied Healthcare,AHC/52,08-Jul-22,2744.9,0,92896,Older People Placements - East,321000              Social Community Care Supplies & Services - Adult,A,2022,4
334,Community and Housing,Allied Healthcare,AHC/35,08-Jul-22,1825.2,0,92896,Older People Placements - East,321000              Social Community Care Supplies & Services - Adult,A,2022,4
335,Community and Housing,Allied Healthcare,AHC/26,08-Jul-22,1482.67,0,92896,Learning Disabilities Placemnt,321000              Social Community Care Supplies & Services - Adult,A,2022,4
336,Community and Housing,Allied Healthcare,AHC/40,08-Jul-22,2755.78,0,92896,Older People Placements - East,321000              Social Community Care Supplies & Services - Adult,A,2022,4
337,Community and Housing,Allied Healthcare,AHC/5,08-Jul-22,1589.14,0,92896,Older People Placements - East,321000              Social Community Care Supplies & Services - Adult,A,2022,4
338,Community and Housing,Allied Healthcare,AHC/56,08-Jul-22,665.26,0,92896,Older People Placements - East,321000              Social Community Care Supplies & Services - Adult,A,2022,4
339,Community and Housing,Allied Healthcare,AHC/32,08-Jul-22,2604.83,0,92896,Older People Placements - East,321000              Social Community Care Supplies & Services - Adult,A,2022,4
340,Community and Housing,Allied Healthcare,AHC/63,08-Jul-22,3193.32,0,92896,Older People Placements - East,321000              Social Community Care Supplies & Services - Adult,A,2022,4
341,Community and Housing,Allied Healthcare,AHC/77,08-Jul-22,3130.04,0,92896,Phys/Sens Placements - East,321000              Social Community Care Supplies & Services - Adult,A,2022,4
342,Community and Housing,Allied Healthcare,AHC/13,08-Jul-22,1362.96,0,92896,Older People Placements - East,321000              Social Community Care Supplies & Services - Adult,A,2022,4
343,Community and Housing,Allied Healthcare,AHC/39,08-Jul-22,607.91,0,92896,Older People Placements - East,321000              Social Community Care Supplies & Services - Adult,A,2022,4
344,Community and Housing,Allied Healthcare,AHC/74,08-Jul-22,2533.31,0,92896,Older People Placements - East,321000              Social Community Care Supplies & Services - Adult,A,2022,4
345,Community and Housing,Allied Healthcare,AHC/33,08-Jul-22,1068.2,0,92896,Older People Placements - East,321000              Social Community Care Supplies & Services - Adult,A,2022,4
346,Community and Housing,Allied Healthcare,AHC/4,08-Jul-22,1098.15,0,92896,Older People Placements - East,321000              Social Community Care Supplies & Services - Adult,A,2022,4
347,Community and Housing,Allied Healthcare,AHC/42,08-Jul-22,2326.11,0,92896,Phys/Sens Placements - East,321000              Social Community Care Supplies & Services - Adult,A,2022,4
348,Community and Housing,Allied Healthcare,AHC/22,08-Jul-22,728.09,0,92896,Older People Placements - East,321000              Social Community Care Supplies & Services - Adult,A,2022,4
349,Community and Housing,Allied Healthcare,AHC/23,08-Jul-22,727.38,0,92896,Older People Placements - East,321000              Social Community Care Supplies & Services - Adult,A,2022,4
350,Community and Housing,Allied Healthcare,AHC/84,08-Jul-22,2922.23,0,92896,Older People Placements - East,321000              Social Community Care Supplies & Services - Adult,A,2022,4
351,Community and Housing,Allied Healthcare,AHC/37,08-Jul-22,593.56,0,92896,Older People Placements - East,321000              Social Community Care Supplies & Services - Adult,A,2022,4
352,Community and Housing,Allied Healthcare,AHC/91,08-Jul-22,3348.55,0,92896,Older People Placements - East,321000              Social Community Care Supplies & Services - Adult,A,2022,4
353,Community and Housing,Allied Healthcare,AHC/58,08-Jul-22,785.74,0,92896,Older People Placements - East,321000              Social Community Care Supplies & Services - Adult,A,2022,4
354,Community and Housing,Allied Healthcare,AHC/15,08-Jul-22,530.04,0,92896,Older People Placements - East,321000              Social Community Care Supplies & Services - Adult,A,2022,4
355,Community and Housing,Allied Healthcare,AHC/59,08-Jul-22,646.81,0,92896,Older People Placements - East,321000              Social Community Care Supplies & Services - Adult,A,2022,4
356,Community and Housing,Allied Healthcare,AHC/31,08-Jul-22,1831.45,0,92896,Older People Placements - East,321000              Social Community Care Supplies & Services - Adult,A,2022,4
357,Community and Housing,Allied Healthcare,AHC/51,08-Jul-22,2738.82,0,92896,Older People Placements - East,321000              Social Community Care Supplies & Services - Adult,A,2022,4
358,Community and Housing,Allied Healthcare,AHC/7,08-Jul-22,2592.62,0,92896,Older People Placements - East,321000              Social Community Care Supplies & Services - Adult,A,2022,4
359,Community and Housing,Allied Healthcare,AHC/81,08-Jul-22,1389.36,0,92896,Older People Placements - East,321000              Social Community Care Supplies & Services - Adult,A,2022,4
360,Community and Housing,Allied Healthcare,AHC/71,08-Jul-22,719.47,0,92896,Older People Placements - East,321000              Social Community Care Supplies & Services - Adult,A,2022,4
361,Community and Housing,Allied Healthcare,AHC/87,08-Jul-22,575.79,0,92896,Older People Placements - East,321000              Social Community Care Supplies & Services - Adult,A,2022,4
362,Community and Housing,Allied Healthcare,AHC/67,08-Jul-22,627.24,0,92896,Older People Placements - East,321000              Social Community Care Supplies & Services - Adult,A,2022,4
363,Community and Housing,Allied Healthcare,AHC/86,08-Jul-22,2729.1,0,92896,Older People Placements - East,321000              Social Community Care Supplies & Services - Adult,A,2022,4
364,Community and Housing,Allied Healthcare,AHC/27,08-Jul-22,1175.97,0,92896,Older People Placements - East,321000              Social Community Care Supplies & Services - Adult,A,2022,4
365,Community and Housing,Allied Healthcare,AHC/53,08-Jul-22,825.89,0,92896,Older People Placements - East,321000              Social Community Care Supplies & Services - Adult,A,2022,4
366,Community and Housing,Allied Healthcare,AHC/79,08-Jul-22,1056.73,0,92896,Older People Placements - East,321000              Social Community Care Supplies & Services - Adult,A,2022,4
367,Community and Housing,Allied Healthcare,AHC/8,08-Jul-22,1972.5,0,92896,Older People Placements - East,321000              Social Community Care Supplies & Services - Adult,A,2022,4
368,Community and Housing,Allied Healthcare,AHC/3,08-Jul-22,857.96,0,92896,Older People Placements - East,321000              Social Community Care Supplies & Services - Adult,A,2022,4
369,Community and Housing,Allied Healthcare,AHC/82,08-Jul-22,2087.74,0,92896,Older People Placements - East,321000              Social Community Care Supplies & Services - Adult,A,2022,4
370,Community and Housing,Allied Healthcare,BH 02-03/06/22,26-Jul-22,1926.65,0,92896,Older People Placements - East,321000              Social Community Care Supplies & Services - Adult,A,2022,4
371,Community and Housing,CARE MANAGEMENT GROUP,847422,05-Jul-22,4593.88,0,93533,Mental Health Placements,321017              Nursing & Residential Care Homes,A,2022,4
372,Community and Housing,CARE MANAGEMENT GROUP,847472,05-Jul-22,6572.16,0,93533,Learning Disabilities Placemnt,321017              Nursing & Residential Care Homes,A,2022,4
373,Community and Housing,CARE MANAGEMENT GROUP,847488,05-Jul-22,6279.2,0,93533,Learning Disabilities Placemnt,321017              Nursing & Residential Care Homes,A,2022,4
374,Community and Housing,CARE MANAGEMENT GROUP,847591,05-Jul-22,5936.6,0,93533,Learning Disabilities Placemnt,321017              Nursing & Residential Care Homes,A,2022,4
375,Community and Housing,CARE MANAGEMENT GROUP,847632,05-Jul-22,8733.64,0,93533,Phys/Sens Placements - East,321017              Nursing & Residential Care Homes,A,2022,4
376,Community and Housing,CARE MANAGEMENT GROUP,847665,05-Jul-22,7712.12,0,93533,Learning Disabilities Placemnt,321017              Nursing & Residential Care Homes,A,2022,4
377,Community and Housing,CARE MANAGEMENT GROUP,847797,05-Jul-22,7974.36,0,93533,Learning Disabilities Placemnt,321017              Nursing & Residential Care Homes,A,2022,4
378,Community and Housing,CARE MANAGEMENT GROUP,397000602,14-Jul-22,4961.72,0,93533,Learning Disabilities Placemnt,321017              Nursing & Residential Care Homes,A,2022,4
379,Community and Housing,CARE MANAGEMENT GROUP,613000571,14-Jul-22,6353.48,0,93533,Learning Disabilities Placemnt,321017              Nursing & Residential Care Homes,A,2022,4
380,Community and Housing,CARE MANAGEMENT GROUP,255001437,19-Jul-22,8725.64,0,93533,Learning Disabilities Placemnt,321017              Nursing & Residential Care Homes,A,2022,4
381,Community and Housing,A AND R CARE LTD,847480,05-Jul-22,3300,0,94357,Older People Placements - East,321017              Nursing & Residential Care Homes,A,2022,4
382,Community and Housing,A AND R CARE LTD,847731,05-Jul-22,3400,0,94357,Older People Placements - East,321017              Nursing & Residential Care Homes,A,2022,4
383,Community and Housing,A AND R CARE LTD,847760,05-Jul-22,3809.6,0,94357,Older People Placements - East,321017              Nursing & Residential Care Homes,A,2022,4
384,Community and Housing,A AND R CARE LTD,847831,05-Jul-22,3824.32,0,94357,Phys/Sens Placements - East,321017              Nursing & Residential Care Homes,A,2022,4
385,Community and Housing,COMMONSIDE COMMUNITY DEV TRUST,CCDT UKRAINE WEL,08-Jul-22,65000,0,95839,UKRAINE,321000              Social Community Care Supplies & Services - Adult,A,2022,4
386,Community and Housing,COMMONSIDE COMMUNITY DEV TRUST,CCDT SUMMER UKRA,08-Jul-22,26740,0,95839,UKRAINE,321000              Social Community Care Supplies & Services - Adult,A,2022,4
387,Environment and Regeneration,COMMONSIDE COMMUNITY DEV TRUST,9797,18-Jul-22,2000,0,95839,Crime and Strategy Team,321000              Social Community Care Supplies & Services - Adult,A,2022,4
388,"Children, Schools and Family",COMMONSIDE COMMUNITY DEV TRUST,HAFSUM22-P1,25-Jul-22,4000,0,95839,Holiday Act Food Prog grntfnd,321000              Social Community Care Supplies & Services - Adult,A,2022,4
389,Community and Housing,Aspens Charities Ltd,33430,04-Jul-22,16353.52,0,96019,Learning Disabilities Placemnt,321017              Nursing & Residential Care Homes,A,2022,4
390,Community and Housing,Aspens Charities Ltd,33363,04-Jul-22,16353.52,0,96019,Learning Disabilities Placemnt,321017              Nursing & Residential Care Homes,A,2022,4
391,Community and Housing,Aspens Charities Ltd,847615,05-Jul-22,8954.32,0,96019,Learning Disabilities Placemnt,321017              Nursing & Residential Care Homes,A,2022,4
392,Community and Housing,Aspens Charities Ltd,33473,21-Jul-22,16353.52,0,96019,Learning Disabilities Placemnt,321017              Nursing & Residential Care Homes,A,2022,4
393,Community and Housing,REDACTED PERSONAL DATA,855035,20-Jul-22,4260.16,0,96859,Learning Disabilities Placemnt,DIRECT PAYMENTS,R,2022,4
394,Community and Housing,Rosenmanor Ltd,847611,05-Jul-22,2924.24,0,97808,Mental Health Placements,321017              Nursing & Residential Care Homes,A,2022,4
395,Community and Housing,MERTON COMMUNITY TRANSPORT,16517,22-Jul-22,1310.48,218.48,98164,Learning Disabilities Placemnt,360000              Passenger Transport,A,2022,4
396,Community and Housing,MERTON COMMUNITY TRANSPORT,16529,22-Jul-22,648,108,98164,Learning Disabilities Placemnt,360000              Passenger Transport,A,2022,4
397,Unassigned,BEECHOLME PRIMARY ACADEMY,SCHOOLS 2223/4 A,07-Jul-22,10995,0,98168,Schools,170000              Education,A,2022,4
398,Community and Housing,Evolve Housing + Support,3042,11-Jul-22,24985.25,0,98536,Supporting People (HRS),321000              Social Community Care Supplies & Services - Adult,A,2022,4
399,Community and Housing,Evolve Housing + Support,3041,11-Jul-22,22732.75,0,98536,Supporting People (HRS),321000              Social Community Care Supplies & Services - Adult,A,2022,4
400,"Children, Schools and Family",Evolve Housing + Support,3045,08-Jul-22,2750,0,98536,UASC Care Leavers Over 18,321000              Social Community Care Supplies & Services - Adult,A,2022,4
401,"Children, Schools and Family",Evolve Housing + Support,3049,08-Jul-22,1850,0,98536,Placements Over 18,321000              Social Community Care Supplies & Services - Adult,A,2022,4
402,"Children, Schools and Family",Evolve Housing + Support,3048,08-Jul-22,1850,0,98536,UASC Care Leavers Over 18,321000              Social Community Care Supplies & Services - Adult,A,2022,4
403,"Children, Schools and Family",Evolve Housing + Support,3046,08-Jul-22,2750,0,98536,UASC Care Leavers Over 18,321000              Social Community Care Supplies & Services - Adult,A,2022,4
404,"Children, Schools and Family",Evolve Housing + Support,3047,08-Jul-22,2750,0,98536,UASC Care Leavers Over 18,321000              Social Community Care Supplies & Services - Adult,A,2022,4
405,Community and Housing,ROYAL MENCAP SOCIETY,3695398,05-Jul-22,2163.64,0,98713,Learning Disabilities Placemnt,321000              Social Community Care Supplies & Services - Adult,A,2022,4
406,Community and Housing,ROYAL MENCAP SOCIETY,3695399,05-Jul-22,2468.72,0,98713,Learning Disabilities Placemnt,321000              Social Community Care Supplies & Services - Adult,A,2022,4
407,Community and Housing,ROYAL MENCAP SOCIETY,3701977,29-Jul-22,2163.64,0,98713,Learning Disabilities Placemnt,321000              Social Community Care Supplies & Services - Adult,A,2022,4
408,Capital,AQUANEED LIMITED,SI22083,18-Jul-22,7833,0,100408,Disabled Facilities Grant,200000              Financial Services,A,2022,4
409,"Children, Schools and Family",REDACTED PERSONAL DATA,848427,04-Jul-22,869.5,0,101120,Fostering Recruit/Assessment,290000              Arts & Leisure Services,R,2022,4
410,"Children, Schools and Family",REDACTED PERSONAL DATA,855717,19-Jul-22,869.5,0,101120,Fostering Recruit/Assessment,290000              Arts & Leisure Services,R,2022,4
411,Unassigned,WEST WIMBLEDON PRIMARY SCHOOL,SCHOOLS 2223/4 A,07-Jul-22,236570.55,0,101674,Schools,170000              Education,A,2022,4
412,Community and Housing,HILLDALE AND NORTHVIEW,847578,05-Jul-22,2072.52,0,103592,Older People Placements - East,321000              Social Community Care Supplies & Services - Adult,A,2022,4
413,Community and Housing,BUPA CARE HOMES,847448,05-Jul-22,3154.12,0,105027,Older People Placements - East,321017              Nursing & Residential Care Homes,A,2022,4
414,Community and Housing,BUPA CARE HOMES,847454,05-Jul-22,3289.24,0,105027,Older People Placements - East,321017              Nursing & Residential Care Homes,A,2022,4
415,Community and Housing,BUPA CARE HOMES,847457,05-Jul-22,3289.24,0,105027,Older People Placements - East,321017              Nursing & Residential Care Homes,A,2022,4
416,Community and Housing,BUPA CARE HOMES,847479,05-Jul-22,3154.12,0,105027,Older People Placements - East,321017              Nursing & Residential Care Homes,A,2022,4
417,Community and Housing,BUPA CARE HOMES,847531,05-Jul-22,3289.24,0,105027,Older People Placements - East,321017              Nursing & Residential Care Homes,A,2022,4
418,Community and Housing,BUPA CARE HOMES,847540,05-Jul-22,3154.12,0,105027,Older People Placements - East,321017              Nursing & Residential Care Homes,A,2022,4
419,Community and Housing,BUPA CARE HOMES,847586,05-Jul-22,3154.12,0,105027,Older People Placements - East,321017              Nursing & Residential Care Homes,A,2022,4
420,Community and Housing,BUPA CARE HOMES,847640,05-Jul-22,3154.12,0,105027,Older People Placements - East,321017              Nursing & Residential Care Homes,A,2022,4
421,Community and Housing,BUPA CARE HOMES,847654,05-Jul-22,3289.24,0,105027,Older People Placements - East,321017              Nursing & Residential Care Homes,A,2022,4
422,Community and Housing,BUPA CARE HOMES,847657,05-Jul-22,1013.82,0,105027,Older People Placements - East,321017              Nursing & Residential Care Homes,A,2022,4
423,Community and Housing,BUPA CARE HOMES,847702,05-Jul-22,3289.24,0,105027,Older People Placements - East,321017              Nursing & Residential Care Homes,A,2022,4
424,Community and Housing,BUPA CARE HOMES,847704,05-Jul-22,3289.24,0,105027,Older People Placements - East,321017              Nursing & Residential Care Homes,A,2022,4
425,Community and Housing,BUPA CARE HOMES,847712,05-Jul-22,4321.08,0,105027,Phys/Sens Placements - East,321017              Nursing & Residential Care Homes,A,2022,4
426,Community and Housing,BUPA CARE HOMES,847724,05-Jul-22,3569.4,0,105027,Older People Placements - East,321017              Nursing & Residential Care Homes,A,2022,4
427,Community and Housing,BUPA CARE HOMES,847757,05-Jul-22,3154.12,0,105027,Older People Placements - East,321017              Nursing & Residential Care Homes,A,2022,4
428,Community and Housing,BUPA CARE HOMES,847777,05-Jul-22,4249.6,0,105027,Older People Placements - East,321017              Nursing & Residential Care Homes,A,2022,4
429,Community and Housing,BUPA CARE HOMES,847836,05-Jul-22,3289.24,0,105027,Older People Placements - East,321017              Nursing & Residential Care Homes,A,2022,4
430,Community and Housing,BUPA CARE HOMES,847849,05-Jul-22,3154.12,0,105027,Older People Placements - East,321017              Nursing & Residential Care Homes,A,2022,4
431,Community and Housing,BUPA CARE HOMES,849819,05-Jul-22,3041.47,0,105027,Older People Placements - East,321017              Nursing & Residential Care Homes,A,2022,4
432,Community and Housing,BUPA CARE HOMES,849823,05-Jul-22,2140.3,0,105027,Older People Placements - East,321017              Nursing & Residential Care Homes,A,2022,4
433,Community and Housing,BUPA CARE HOMES,857100,20-Jul-22,788.53,0,105027,Older People Placements - East,321017              Nursing & Residential Care Homes,A,2022,4
434,Community and Housing,REDACTED PERSONAL DATA,855113,20-Jul-22,2689.24,0,105300,Learning Disabilities Placemnt,DIRECT PAYMENTS,R,2022,4
435,Community and Housing,REDACTED PERSONAL DATA,858338,25-Jul-22,789.04,0,110403,MH Housing Support Placements,321000              Social Community Care Supplies & Services - Adult,R,2022,4
436,Community and Housing,REDACTED PERSONAL DATA,858340,25-Jul-22,1052.04,0,110403,Learning Disabilities Placemnt,321000              Social Community Care Supplies & Services - Adult,R,2022,4
437,Community and Housing,REDACTED PERSONAL DATA,858341,25-Jul-22,780.68,0,110403,MH Housing Support Placements,321000              Social Community Care Supplies & Services - Adult,R,2022,4
438,Community and Housing,REDACTED PERSONAL DATA,858354,25-Jul-22,780.68,0,110403,MH Housing Support Placements,321000              Social Community Care Supplies & Services - Adult,R,2022,4
439,Community and Housing,REDACTED PERSONAL DATA,858355,25-Jul-22,789.04,0,110403,MH Housing Support Placements,321000              Social Community Care Supplies & Services - Adult,R,2022,4
440,Community and Housing,REDACTED PERSONAL DATA,858363,25-Jul-22,1235.28,0,110403,Phys/Sens Placements - East,321000              Social Community Care Supplies & Services - Adult,R,2022,4
441,Community and Housing,REDACTED PERSONAL DATA,858366,25-Jul-22,780.68,0,110403,Mental Health Placements,321000              Social Community Care Supplies & Services - Adult,R,2022,4
442,Community and Housing,REDACTED PERSONAL DATA,858369,25-Jul-22,780.68,0,110403,MH Housing Support Placements,321000              Social Community Care Supplies & Services - Adult,R,2022,4
443,Community and Housing,REDACTED PERSONAL DATA,858379,25-Jul-22,780.68,0,110403,MH Housing Support Placements,321000              Social Community Care Supplies & Services - Adult,R,2022,4
444,Community and Housing,REDACTED PERSONAL DATA,858380,25-Jul-22,780.68,0,110403,Mental Health Placements,321000              Social Community Care Supplies & Services - Adult,R,2022,4
445,Community and Housing,REDACTED PERSONAL DATA,858382,25-Jul-22,520.48,0,110403,MH Housing Support Placements,321000              Social Community Care Supplies & Services - Adult,R,2022,4
446,Community and Housing,REDACTED PERSONAL DATA,858383,25-Jul-22,1040.92,0,110403,Phys/Sens Placements - East,321000              Social Community Care Supplies & Services - Adult,R,2022,4
447,Community and Housing,REDACTED PERSONAL DATA,858386,25-Jul-22,2240,0,110403,Mental Health Placements,321000              Social Community Care Supplies & Services - Adult,R,2022,4
448,Community and Housing,REDACTED PERSONAL DATA,858346,25-Jul-22,780.68,0,110406,LD Housing Support Placements,321000              Social Community Care Supplies & Services - Adult,R,2022,4
449,Corporate Services,LEXIS NEXIS,AD106653,07-Jul-22,1440,240,111141,Legal Shared Service,270000              Information Communication Technology,A,2022,4
450,"Children, Schools and Family",REDACTED PERSONAL DATA,859603,29-Jul-22,634.75,0,111277,Placements Under 18,321100              Social Community Care Supplies & Services - Children,R,2022,4
451,"Children, Schools and Family",REDACTED PERSONAL DATA,859646,29-Jul-22,634.75,0,111277,Placements Under 18,321100              Social Community Care Supplies & Services - Children,R,2022,4
452,"Children, Schools and Family",REDACTED PERSONAL DATA,848462,04-Jul-22,580.68,0,112660,Fostering Recruit/Assessment,321100              Social Community Care Supplies & Services - Children,R,2022,4
453,"Children, Schools and Family",REDACTED PERSONAL DATA,855752,19-Jul-22,580.68,0,112660,Fostering Recruit/Assessment,321100              Social Community Care Supplies & Services - Children,R,2022,4
454,Community and Housing,MEADBANK NURSING CENTRE,847636,05-Jul-22,3984.68,0,113139,Phys/Sens Placements - East,321017              Nursing & Residential Care Homes,A,2022,4
455,Community and Housing,MEADBANK NURSING CENTRE,847828,05-Jul-22,2880.08,0,113139,Older People Placements - East,321017              Nursing & Residential Care Homes,A,2022,4
456,"Children, Schools and Family",REDACTED PERSONAL DATA,848418,04-Jul-22,561.24,0,113452,Fostering Recruit/Assessment,321100              Social Community Care Supplies & Services - Children,R,2022,4
457,"Children, Schools and Family",REDACTED PERSONAL DATA,855708,19-Jul-22,561.24,0,113452,Fostering Recruit/Assessment,321100              Social Community Care Supplies & Services - Children,R,2022,4
458,Community and Housing,REDACTED PERSONAL DATA,858348,25-Jul-22,780.68,0,114970,MH Housing Support Placements,321000              Social Community Care Supplies & Services - Adult,R,2022,4
459,Community and Housing,REDACTED PERSONAL DATA,858350,25-Jul-22,1783,0,114970,Mental Health Placements,321000              Social Community Care Supplies & Services - Adult,R,2022,4
460,Community and Housing,REDACTED PERSONAL DATA,858364,25-Jul-22,1511.64,0,114970,Mental Health Placements,321000              Social Community Care Supplies & Services - Adult,R,2022,4
461,Community and Housing,REDACTED PERSONAL DATA,858375,25-Jul-22,1052.08,0,114970,MH Housing Support Placements,321000              Social Community Care Supplies & Services - Adult,R,2022,4
462,Community and Housing,REDACTED PERSONAL DATA,858365,28-Jul-22,1040.92,0,114970,Hospital To Home,321000              Social Community Care Supplies & Services - Adult,R,2022,4
463,Community and Housing,ASTRA HOMES,MJ/07/22,20-Jul-22,1816.76,0,114991,Mental Health Placements,321000              Social Community Care Supplies & Services - Adult,A,2022,4
464,Community and Housing,ASTRA HOMES,MJ/06/22,20-Jul-22,1816.76,0,114991,Mental Health Placements,321000              Social Community Care Supplies & Services - Adult,A,2022,4
465,Community and Housing,ASTRA HOMES,EC/08/22,20-Jul-22,2071.68,0,114991,Mental Health Placements,321000              Social Community Care Supplies & Services - Adult,A,2022,4
466,Community and Housing,ASTRA HOMES,EC/07/22,20-Jul-22,2071.68,0,114991,Mental Health Placements,321000              Social Community Care Supplies & Services - Adult,A,2022,4
467,Community and Housing,ASTRA HOMES,EC/06/22,20-Jul-22,2071.68,0,114991,Mental Health Placements,321000              Social Community Care Supplies & Services - Adult,A,2022,4
468,Community and Housing,ASTRA HOMES,GB/08/22,20-Jul-22,1978.12,0,114991,Mental Health Placements,321000              Social Community Care Supplies & Services - Adult,A,2022,4
469,Community and Housing,ASTRA HOMES,GB/07/22,20-Jul-22,1978.12,0,114991,Mental Health Placements,321000              Social Community Care Supplies & Services - Adult,A,2022,4
470,Community and Housing,ASTRA HOMES,GB/06/22,20-Jul-22,1978.12,0,114991,Mental Health Placements,321000              Social Community Care Supplies & Services - Adult,A,2022,4
471,Community and Housing,ASTRA HOMES,AK/0822,20-Jul-22,2034.24,0,114991,Mental Health Placements,321000              Social Community Care Supplies & Services - Adult,A,2022,4
472,Community and Housing,ASTRA HOMES,AK/0722,20-Jul-22,2034.24,0,114991,Mental Health Placements,321000              Social Community Care Supplies & Services - Adult,A,2022,4
473,Community and Housing,ASTRA HOMES,AK/0622,20-Jul-22,2034.24,0,114991,Mental Health Placements,321000              Social Community Care Supplies & Services - Adult,A,2022,4
474,Community and Housing,ASTRA HOMES,MJ/08/22,22-Jul-22,1816.76,0,114991,Mental Health Placements,321000              Social Community Care Supplies & Services - Adult,A,2022,4
475,Community and Housing,GRANGE COTTAGE LIMITED,847487,05-Jul-22,2680,0,117931,Older People Placements - East,321017              Nursing & Residential Care Homes,A,2022,4
476,Community and Housing,GRANGE COTTAGE LIMITED,847504,05-Jul-22,1942.86,0,117931,Older People Placements - East,321017              Nursing & Residential Care Homes,A,2022,4
477,Community and Housing,GRANGE COTTAGE LIMITED,847539,05-Jul-22,2680,0,117931,Older People Placements - East,321017              Nursing & Residential Care Homes,A,2022,4
478,Community and Housing,GRANGE COTTAGE LIMITED,847650,05-Jul-22,3600,0,117931,Older People Placements - East,321017              Nursing & Residential Care Homes,A,2022,4
479,Community and Housing,GRANGE COTTAGE LIMITED,847742,05-Jul-22,2680,0,117931,Older People Placements - East,321017              Nursing & Residential Care Homes,A,2022,4
480,Community and Housing,GRANGE COTTAGE LIMITED,856950,20-Jul-22,1257.14,0,117931,Older People Placements - East,321017              Nursing & Residential Care Homes,A,2022,4
481,Community and Housing,REDACTED PERSONAL DATA,858344,25-Jul-22,789.04,0,117970,MH Housing Support Placements,321000              Social Community Care Supplies & Services - Adult,R,2022,4
482,Community and Housing,REDACTED PERSONAL DATA,858357,25-Jul-22,1052.08,0,117970,Mental Health Placements,321000              Social Community Care Supplies & Services - Adult,R,2022,4
483,Community and Housing,REDACTED PERSONAL DATA,858373,25-Jul-22,1052.08,0,117970,Mental Health Placements,321000              Social Community Care Supplies & Services - Adult,R,2022,4
484,Community and Housing,L'ARCHE,847771,05-Jul-22,3094.6,0,118483,Learning Disabilities Placemnt,321017              Nursing & Residential Care Homes,A,2022,4
485,Community and Housing,Alexander House,847502,05-Jul-22,3100,0,119109,Older People Placements - East,321017              Nursing & Residential Care Homes,A,2022,4
486,Community and Housing,REDACTED PERSONAL DATA,854850,20-Jul-22,1412.4,0,124097,Older People Placements - East,DIRECT PAYMENTS,R,2022,4
487,Community and Housing,UNITED RESPONSE,847461,05-Jul-22,7455.89,1242.65,125227,Learning Disabilities Placemnt,321000              Social Community Care Supplies & Services - Adult,A,2022,4
488,Community and Housing,UNITED RESPONSE,847494,05-Jul-22,7455.89,1242.65,125227,Learning Disabilities Placemnt,321000              Social Community Care Supplies & Services - Adult,A,2022,4
489,Community and Housing,UNITED RESPONSE,847510,05-Jul-22,7455.89,1242.65,125227,Learning Disabilities Placemnt,321000              Social Community Care Supplies & Services - Adult,A,2022,4
490,Community and Housing,UNITED RESPONSE,847568,05-Jul-22,7455.89,1242.65,125227,Learning Disabilities Placemnt,321000              Social Community Care Supplies & Services - Adult,A,2022,4
491,Community and Housing,UNITED RESPONSE,847609,05-Jul-22,7455.89,1242.65,125227,Learning Disabilities Placemnt,321000              Social Community Care Supplies & Services - Adult,A,2022,4
492,Community and Housing,UNITED RESPONSE,847722,05-Jul-22,7455.89,1242.65,125227,Learning Disabilities Placemnt,321000              Social Community Care Supplies & Services - Adult,A,2022,4
493,Community and Housing,REDACTED PERSONAL DATA,854927,20-Jul-22,1336.44,0,125642,Phys/Sens Placements - East,DIRECT PAYMENTS,R,2022,4
494,Environment and Regeneration,LARAC Ltd,223138,18-Jul-22,534,89,125891,Waste Management,200000              Financial Services,A,2022,4
495,Community and Housing,REDACTED PERSONAL DATA,854997,20-Jul-22,890.96,0,126189,Older People Placements - East,DIRECT PAYMENTS,R,2022,4
496,Community and Housing,KELSTONE COURT NURSING HOME,847856,01-Jul-22,1071.43,0,126473,Older People Placements - East,321017              Nursing & Residential Care Homes,A,2022,4
497,Community and Housing,KELSTONE COURT NURSING HOME,848084,01-Jul-22,535.71,0,126473,Older People Placements - East,321017              Nursing & Residential Care Homes,A,2022,4
498,Community and Housing,KELSTONE COURT NURSING HOME,847420,05-Jul-22,2920,0,126473,Older People Placements - East,321017              Nursing & Residential Care Homes,A,2022,4
499,Community and Housing,KELSTONE COURT NURSING HOME,847619,05-Jul-22,2920,0,126473,Older People Placements - East,321017              Nursing & Residential Care Homes,A,2022,4
500,Community and Housing,KELSTONE COURT NURSING HOME,847658,05-Jul-22,2920,0,126473,Older People Placements - East,321017              Nursing & Residential Care Homes,A,2022,4
501,Community and Housing,KELSTONE COURT NURSING HOME,847660,05-Jul-22,3000,0,126473,Older People Placements - East,321017              Nursing & Residential Care Homes,A,2022,4
502,Community and Housing,KELSTONE COURT NURSING HOME,847661,05-Jul-22,2920,0,126473,Older People Placements - East,321017              Nursing & Residential Care Homes,A,2022,4
503,Community and Housing,KELSTONE COURT NURSING HOME,847696,05-Jul-22,2944.32,0,126473,Older People Placements - East,321017              Nursing & Residential Care Homes,A,2022,4
504,Community and Housing,KELSTONE COURT NURSING HOME,847703,05-Jul-22,3000,0,126473,Older People Placements - East,321017              Nursing & Residential Care Homes,A,2022,4
505,Community and Housing,KELSTONE COURT NURSING HOME,847739,05-Jul-22,2920,0,126473,Older People Placements - East,321017              Nursing & Residential Care Homes,A,2022,4
506,Community and Housing,KELSTONE COURT NURSING HOME,847779,05-Jul-22,2920,0,126473,Older People Placements - East,321017              Nursing & Residential Care Homes,A,2022,4
507,Community and Housing,KELSTONE COURT NURSING HOME,847782,05-Jul-22,2920,0,126473,Older People Placements - East,321017              Nursing & Residential Care Homes,A,2022,4
508,Community and Housing,KELSTONE COURT NURSING HOME,847784,05-Jul-22,3000,0,126473,Older People Placements - East,321017              Nursing & Residential Care Homes,A,2022,4
509,Community and Housing,KELSTONE COURT NURSING HOME,847794,05-Jul-22,2920,0,126473,Older People Placements - East,321017              Nursing & Residential Care Homes,A,2022,4
510,Community and Housing,KELSTONE COURT NURSING HOME,847798,05-Jul-22,2920,0,126473,Older People Placements - East,321017              Nursing & Residential Care Homes,A,2022,4
511,Community and Housing,KELSTONE COURT NURSING HOME,847813,05-Jul-22,2920,0,126473,Older People Placements - East,321017              Nursing & Residential Care Homes,A,2022,4
512,Community and Housing,KELSTONE COURT NURSING HOME,847819,05-Jul-22,2920,0,126473,Older People Placements - East,321017              Nursing & Residential Care Homes,A,2022,4
513,Community and Housing,KELSTONE COURT NURSING HOME,847822,05-Jul-22,3000,0,126473,Older People Placements - East,321017              Nursing & Residential Care Homes,A,2022,4
514,Community and Housing,KELSTONE COURT NURSING HOME,847852,05-Jul-22,2920,0,126473,Older People Placements - East,321017              Nursing & Residential Care Homes,A,2022,4
515,Community and Housing,REDACTED PERSONAL DATA,854724,20-Jul-22,668.24,0,127266,Phys/Sens Placements - East,DIRECT PAYMENTS,R,2022,4
516,"Children, Schools and Family",EAGLE HOUSE SCHOOL,EHM22/004,12-Jul-22,21180.33,0,128617,Non-Delegated Statements,170000              Education,A,2022,4
517,"Children, Schools and Family",EAGLE HOUSE SCHOOL,EHM22/010,12-Jul-22,20253.33,0,128617,Non-Delegated Statements,170000              Education,A,2022,4
518,"Children, Schools and Family",EAGLE HOUSE SCHOOL,EHM22/017,15-Jul-22,19286.67,0,128617,Non-Delegated Statements,170000              Education,A,2022,4
519,"Children, Schools and Family",EAGLE HOUSE SCHOOL,EHM22/015,15-Jul-22,17748,0,128617,Non-Delegated Statements,170000              Education,A,2022,4
520,"Children, Schools and Family",EAGLE HOUSE SCHOOL,EHM22/014,12-Jul-22,21180.33,0,128617,Non-Delegated Statements,170000              Education,A,2022,4
521,"Children, Schools and Family",EAGLE HOUSE SCHOOL,EHM22/012,15-Jul-22,18883.67,0,128617,Non-Delegated Statements,170000              Education,A,2022,4
522,"Children, Schools and Family",EAGLE HOUSE SCHOOL,EHM22/022,12-Jul-22,20324.33,0,128617,Non-Delegated Statements,170000              Education,A,2022,4
523,"Children, Schools and Family",EAGLE HOUSE SCHOOL,EHM22/023,15-Jul-22,19286.67,0,128617,Non-Delegated Statements,170000              Education,A,2022,4
524,"Children, Schools and Family",EAGLE HOUSE SCHOOL,EHM22/011,12-Jul-22,20324.33,0,128617,Non-Delegated Statements,170000              Education,A,2022,4
525,"Children, Schools and Family",EAGLE HOUSE SCHOOL,EHM22/005,12-Jul-22,20824,0,128617,Non-Delegated Statements,170000              Education,A,2022,4
526,"Children, Schools and Family",EAGLE HOUSE SCHOOL,EHM22/013,12-Jul-22,21180.33,0,128617,Non-Delegated Statements,170000              Education,A,2022,4
527,"Children, Schools and Family",EAGLE HOUSE SCHOOL,EHM22/008,15-Jul-22,18540.67,0,128617,Non-Delegated Statements,170000              Education,A,2022,4
528,"Children, Schools and Family",EAGLE HOUSE SCHOOL,EHM22/003,12-Jul-22,21180.33,0,128617,Non-Delegated Statements,170000              Education,A,2022,4
529,"Children, Schools and Family",EAGLE HOUSE SCHOOL,EHM22/007,15-Jul-22,17473,0,128617,Non-Delegated Statements,170000              Education,A,2022,4
530,"Children, Schools and Family",EAGLE HOUSE SCHOOL,EHM22/020,12-Jul-22,22111.67,0,128617,Non-Delegated Statements,170000              Education,A,2022,4
531,"Children, Schools and Family",EAGLE HOUSE SCHOOL,EHM22/006,12-Jul-22,20324.33,0,128617,Non-Delegated Statements,170000              Education,A,2022,4
532,"Children, Schools and Family",EAGLE HOUSE SCHOOL,EHM22/019,12-Jul-22,20084.33,0,128617,Non-Delegated Statements,170000              Education,A,2022,4
533,"Children, Schools and Family",EAGLE HOUSE SCHOOL,EHM22/009,12-Jul-22,20759.67,0,128617,Non-Delegated Statements,170000              Education,A,2022,4
534,"Children, Schools and Family",EAGLE HOUSE SCHOOL,EHM22/016,15-Jul-22,18540.67,0,128617,Non-Delegated Statements,170000              Education,A,2022,4
535,Environment and Regeneration,TRL LIMITED,11616262,08-Jul-22,630.28,105.05,128700,Environmental Health-Pollution,180000              Environmental Services,A,2022,4
536,Environment and Regeneration,TRL LIMITED,11616263,08-Jul-22,1285.2,214.2,128700,LBR - Pollution,180000              Environmental Services,A,2022,4
537,Environment and Regeneration,TRL LIMITED,11616264,08-Jul-22,4345.04,724.17,128700,Wandsworth Air Quality,180000              Environmental Services,A,2022,4
538,"Children, Schools and Family",REDACTED PERSONAL DATA,859577,29-Jul-22,634.75,0,128736,Placements Under 18,321100              Social Community Care Supplies & Services - Children,R,2022,4
539,Community and Housing,BUPA CARE HOMES,847809,05-Jul-22,6141.52,0,130491,Phys/Sens Placements - East,321017              Nursing & Residential Care Homes,A,2022,4
540,Environment and Regeneration,TFL SURFACE TRANSPORT,1800062235,29-Jul-22,84814.59,0,131451,Traffic Signals,360000              Passenger Transport,A,2022,4
541,Environment and Regeneration,DOMINO 4 LIMITED,D.44217,20-Jul-22,577.5,96.25,132991,Spatial Policy,190000              Facilities & Management Services                                                          Confirmed,A,2022,4
542,Community and Housing,VOYAGE CARE LTD,847534,05-Jul-22,6393.92,0,133700,Learning Disabilities Placemnt,321017              Nursing & Residential Care Homes,A,2022,4
543,Community and Housing,VOYAGE CARE LTD,847638,05-Jul-22,7174.48,0,133700,Learning Disabilities Placemnt,321017              Nursing & Residential Care Homes,A,2022,4
544,Community and Housing,VOYAGE CARE LTD,847721,05-Jul-22,7246.76,0,133700,Learning Disabilities Placemnt,321017              Nursing & Residential Care Homes,A,2022,4
545,Community and Housing,HOMECARE SERVICES LTD,27439,08-Jul-22,4454.8,0,134594,Phys/Sens Placements - East,321100              Social Community Care Supplies & Services - Children,A,2022,4
546,Community and Housing,Sunrise Rehabilitation Centre,847452,05-Jul-22,4923.4,0,135093,Learning Disabilities Placemnt,321017              Nursing & Residential Care Homes,A,2022,4
547,Community and Housing,Sunrise Rehabilitation Centre,847477,05-Jul-22,4923.4,0,135093,Learning Disabilities Placemnt,321017              Nursing & Residential Care Homes,A,2022,4
548,Community and Housing,Sunrise Rehabilitation Centre,847633,05-Jul-22,4873.96,0,135093,Learning Disabilities Placemnt,321017              Nursing & Residential Care Homes,A,2022,4
549,Community and Housing,Sunrise Rehabilitation Centre,847725,05-Jul-22,3272.32,0,135093,Learning Disabilities Placemnt,321017              Nursing & Residential Care Homes,A,2022,4
550,Community and Housing,Sunrise Rehabilitation Centre,847758,05-Jul-22,4762.72,0,135093,Learning Disabilities Placemnt,321017              Nursing & Residential Care Homes,A,2022,4
551,Community and Housing,Sunrise Rehabilitation Centre,847761,05-Jul-22,4886.32,0,135093,Learning Disabilities Placemnt,321017              Nursing & Residential Care Homes,A,2022,4
552,Community and Housing,Sunrise Rehabilitation Centre,847781,05-Jul-22,4923.4,0,135093,Learning Disabilities Placemnt,321017              Nursing & Residential Care Homes,A,2022,4
553,Community and Housing,Sunrise Rehabilitation Centre,847854,05-Jul-22,4120,0,135093,Learning Disabilities Placemnt,321017              Nursing & Residential Care Homes,A,2022,4
554,Community and Housing,MERTON VISION,MV ADDITIONAL CA,01-Jul-22,40000,0,135428,Covid-19 Clinical E Vulnerable,260000              Human Resources,A,2022,4
555,Community and Housing,MERTON VISION,INV1894,22-Jul-22,5864.81,0,135428,Physical/Sensory Contracts,260000              Human Resources,A,2022,4
556,Unassigned,DAC BEACHCROFT LLP,03-10123273,11-Jul-22,2761,0,135458,Corporate Accountancy,200000              Financial Services,A,2022,4
557,Corporate Services,Lbox Communications (Beta Dist.South),326847,22-Jul-22,7796.4,1299.4,135590,Press and Public Relations,190000              Facilities & Management Services,A,2022,4
558,Community and Housing,REDACTED PERSONAL DATA,855141,20-Jul-22,1275.96,0,135784,Phys/Sens Placements - East,DIRECT PAYMENTS,R,2022,4
559,"Children, Schools and Family",REDACTED PERSONAL DATA,848527,04-Jul-22,554.92,0,135795,Fostering Recruit/Assessment,321100              Social Community Care Supplies & Services - Children,R,2022,4
560,"Children, Schools and Family",REDACTED PERSONAL DATA,855818,19-Jul-22,554.92,0,135795,Fostering Recruit/Assessment,321100              Social Community Care Supplies & Services - Children,R,2022,4
561,Community and Housing,REDACTED PERSONAL DATA,855513,20-Jul-22,1463.72,0,137843,Phys/Sens Placements - East,DIRECT PAYMENTS,R,2022,4
562,Community and Housing,REDACTED PERSONAL DATA,854773,20-Jul-22,1003.32,0,139365,Phys/Sens Placements - East,DIRECT PAYMENTS,R,2022,4
563,Community and Housing,REDACTED PERSONAL DATA,855408,20-Jul-22,509.12,0,140662,Phys/Sens Placements - East,DIRECT PAYMENTS,R,2022,4
564,Community and Housing,REDACTED PERSONAL DATA,855110,20-Jul-22,4263.88,0,140759,Phys/Sens Placements - East,DIRECT PAYMENTS,R,2022,4
565,Community and Housing,REDACTED PERSONAL DATA,855201,20-Jul-22,792.32,0,140759,Phys/Sens Placements - East,DIRECT PAYMENTS,R,2022,4
566,Community and Housing,SURREY AND BORDERS PARTNERSHIP,847600,05-Jul-22,11448.72,0,140911,Learning Disabilities Placemnt,321017              Nursing & Residential Care Homes,A,2022,4
567,Community and Housing,GARWOOD FOUNDATION,847482,05-Jul-22,2755.48,0,142358,Phys/Sens Placements - East,321017              Nursing & Residential Care Homes,A,2022,4
568,Community and Housing,GARWOOD FOUNDATION,847587,05-Jul-22,2755.48,0,142358,Older People Placements - East,321017              Nursing & Residential Care Homes,A,2022,4
569,Community and Housing,CHHG LTD T/A GRETTON HOMES,847804,05-Jul-22,7961.72,0,142442,Learning Disabilities Placemnt,321017              Nursing & Residential Care Homes,A,2022,4
570,Community and Housing,EVERGREEN PARTNERSHIP,847529,05-Jul-22,11775,0,142455,Learning Disabilities Placemnt,321017              Nursing & Residential Care Homes,A,2022,4
571,Community and Housing,EVERGREEN PARTNERSHIP,847542,05-Jul-22,6629.16,0,142455,Learning Disabilities Placemnt,321017              Nursing & Residential Care Homes,A,2022,4
572,Community and Housing,REDACTED PERSONAL DATA,858358,25-Jul-22,1052.08,0,143597,MH Housing Support Placements,321000              Social Community Care Supplies & Services - Adult,R,2022,4
573,Community and Housing,REDACTED PERSONAL DATA,858370,25-Jul-22,1315.04,0,143597,LD Housing Support Placements,321000              Social Community Care Supplies & Services - Adult,R,2022,4
574,Community and Housing,REDACTED PERSONAL DATA,858388,25-Jul-22,1462.32,0,143597,Learning Disabilities Placemnt,321000              Social Community Care Supplies & Services - Adult,R,2022,4
575,Community and Housing,REDACTED PERSONAL DATA,855095,20-Jul-22,3731.72,0,144689,Learning Disabilities Placemnt,DIRECT PAYMENTS,R,2022,4
576,Community and Housing,CRAEGMOOR FACILITIES - WINDSOR,847583,05-Jul-22,6834.88,0,145152,Learning Disabilities Placemnt,321017              Nursing & Residential Care Homes,A,2022,4
577,Community and Housing,REDACTED PERSONAL DATA,855285,20-Jul-22,4454.8,0,145882,Learning Disabilities Placemnt,DIRECT PAYMENTS,R,2022,4
578,"Children, Schools and Family",SPEECH CENTRE,110300,01-Jul-22,1999.99,333.33,147920,Head of Corporate Parenting,270000              Information Communication Technology,A,2022,4
579,Community and Housing,SPEECH CENTRE,110394,06-Jul-22,786,131,147920,Locality Team 2,270000              Information Communication Technology,A,2022,4
580,Community and Housing,GENERATE,9357,19-Jul-22,659.2,0,148332,Learning Disabilities Placemnt,321000              Social Community Care Supplies & Services - Adult,A,2022,4
581,Community and Housing,GENERATE,9355,19-Jul-22,727.2,0,148332,Learning Disabilities Placemnt,321000              Social Community Care Supplies & Services - Adult,A,2022,4
582,Community and Housing,GENERATE,9356,25-Jul-22,2884,0,148332,Learning Disabilities Placemnt,321000              Social Community Care Supplies & Services - Adult,A,2022,4
583,Community and Housing,CHICHESTER HALL CARE HOME LTD,847792,05-Jul-22,2637.2,0,148358,Older People Placements - East,321017              Nursing & Residential Care Homes,A,2022,4
584,Unassigned,Canterbury Campus,SCHOOLS 2223/4 A,07-Jul-22,193728.4,0,150054,Schools,170000              Education,A,2022,4
585,Capital,SOUTHERN GAS NETWORKS PLC,1305411,27-Jul-22,66858.98,11143.16,150831,Highways & Footways,370000              Utilities,A,2022,4
586,Community and Housing,REDACTED PERSONAL DATA,855072,20-Jul-22,2544.32,0,151002,Older People Placements - East,DIRECT PAYMENTS,R,2022,4
587,Community and Housing,AIMS CARE PARTNERSHIP,847533,05-Jul-22,10560,0,151592,Learning Disabilities Placemnt,321017              Nursing & Residential Care Homes,A,2022,4
588,Community and Housing,AIMS CARE PARTNERSHIP,847571,05-Jul-22,3114.72,0,151592,Learning Disabilities Placemnt,321017              Nursing & Residential Care Homes,A,2022,4
589,Community and Housing,REDACTED PERSONAL DATA,855073,20-Jul-22,2269.96,0,151790,Phys/Sens Placements - East,DIRECT PAYMENTS,R,2022,4
590,Community and Housing,HOLISTIC COMMUNITY CARE - FC,3023,20-Jul-22,5080,0,151996,Older People Placements - East,321000              Social Community Care Supplies & Services - Adult,A,2022,4
591,Community and Housing,HOLISTIC COMMUNITY CARE - FC,3022,20-Jul-22,4454.8,0,151996,Learning Disabilities Placemnt,321000              Social Community Care Supplies & Services - Adult,A,2022,4
592,Community and Housing,HOLISTIC COMMUNITY CARE - FC,M222304/7,28-Jul-22,1063.28,0,151996,Older People Placements - East,321000              Social Community Care Supplies & Services - Adult,A,2022,4
593,Community and Housing,HOLISTIC COMMUNITY CARE - FC,M222304/33,28-Jul-22,630.85,0,151996,Older People Placements - East,321000              Social Community Care Supplies & Services - Adult,A,2022,4
594,Community and Housing,HOLISTIC COMMUNITY CARE - FC,M222304/2,28-Jul-22,2976.16,0,151996,Older People Placements - East,321000              Social Community Care Supplies & Services - Adult,A,2022,4
595,Community and Housing,HOLISTIC COMMUNITY CARE - FC,M222304/21,28-Jul-22,1362.27,0,151996,Older People Placements - East,321000              Social Community Care Supplies & Services - Adult,A,2022,4
596,Community and Housing,HOLISTIC COMMUNITY CARE - FC,M222304/4,28-Jul-22,2113.16,0,151996,Older People Placements - East,321000              Social Community Care Supplies & Services - Adult,A,2022,4
597,Community and Housing,HOLISTIC COMMUNITY CARE - FC,M222304/20,28-Jul-22,2752.04,0,151996,Older People Placements - East,321000              Social Community Care Supplies & Services - Adult,A,2022,4
598,Community and Housing,HOLISTIC COMMUNITY CARE - FC,M222304/9,28-Jul-22,738.82,0,151996,Older People Placements - East,321000              Social Community Care Supplies & Services - Adult,A,2022,4
599,Community and Housing,HOLISTIC COMMUNITY CARE - FC,M222304/15,28-Jul-22,800.19,0,151996,Older People Placements - East,321000              Social Community Care Supplies & Services - Adult,A,2022,4
600,Community and Housing,HOLISTIC COMMUNITY CARE - FC,M222304/16,28-Jul-22,1375.43,0,151996,Older People Placements - East,321000              Social Community Care Supplies & Services - Adult,A,2022,4
601,Community and Housing,HOLISTIC COMMUNITY CARE - FC,M222304/36,28-Jul-22,1155.14,0,151996,Older People Placements - East,321000              Social Community Care Supplies & Services - Adult,A,2022,4
602,Community and Housing,HOLISTIC COMMUNITY CARE - FC,M222304/24,28-Jul-22,737.92,0,151996,Older People Placements - East,321000              Social Community Care Supplies & Services - Adult,A,2022,4
603,Community and Housing,HOLISTIC COMMUNITY CARE - FC,M222304/35,28-Jul-22,1126.36,0,151996,Older People Placements - East,321000              Social Community Care Supplies & Services - Adult,A,2022,4
604,Community and Housing,HOLISTIC COMMUNITY CARE - FC,M222304/39,28-Jul-22,683.21,0,151996,Older People Placements - East,321000              Social Community Care Supplies & Services - Adult,A,2022,4
605,Community and Housing,HOLISTIC COMMUNITY CARE - FC,M222304/28,28-Jul-22,747.04,0,151996,Older People Placements - East,321000              Social Community Care Supplies & Services - Adult,A,2022,4
606,Community and Housing,HOLISTIC COMMUNITY CARE - FC,M222304/6,28-Jul-22,1758.54,0,151996,Older People Placements - East,321000              Social Community Care Supplies & Services - Adult,A,2022,4
607,Community and Housing,REDACTED PERSONAL DATA,851576,08-Jul-22,538.48,0,152015,Older People Placements - East,321000              Social Community Care Supplies & Services - Adult,R,2022,4
608,Community and Housing,REDACTED PERSONAL DATA,855588,20-Jul-22,7434,0,152015,Older People Placements - East,321000              Social Community Care Supplies & Services - Adult,R,2022,4
609,Corporate Services,WANDSWORTH CORPORATION,WC376792128M03D,11-Jul-22,1043.46,0,152180,SLLP Client Income,OLA,A,2022,4
610,Community and Housing,REDACTED PERSONAL DATA,855441,20-Jul-22,954.6,0,152709,Older People Placements - East,DIRECT PAYMENTS,R,2022,4
611,Capital,G B SERVICES,27607,18-Jul-22,15282.96,0,152986,Disabled Facilities Grant,"390000              Works - Construction, Repair & Maintenance",A,2022,4
612,Community and Housing,REDACTED PERSONAL DATA,855022,20-Jul-22,1587.84,0,152990,Learning Disabilities Placemnt,DIRECT PAYMENTS,R,2022,4
613,Community and Housing,LYNTON HALL NURSING HOME,847429,05-Jul-22,2985.6,0,153795,Older People Placements - East,321017              Nursing & Residential Care Homes,A,2022,4
614,Community and Housing,LYNTON HALL NURSING HOME,847435,05-Jul-22,2876.32,0,153795,Older People Placements - East,321017              Nursing & Residential Care Homes,A,2022,4
615,Community and Housing,LYNTON HALL NURSING HOME,847607,05-Jul-22,3249.6,0,153795,Older People Placements - East,321017              Nursing & Residential Care Homes,A,2022,4
616,Community and Housing,C AND P HYGIENE,722104,01-Aug-22,900,150,154469,Older People Placements - East,130000              Cleaning & Janitorial,A,2022,4
617,Community and Housing,REDACTED PERSONAL DATA,854109,14-Jul-22,9751.56,0,156181,Phys/Sens Placements - East,DIRECT PAYMENTS,R,2022,4
618,Community and Housing,LONDON BOROUGH OF CAMDEN,24510726,05-Jul-22,2750,0,159338,Housing Strategy,OLA,A,2022,4
619,Community and Housing,REDACTED PERSONAL DATA,854772,20-Jul-22,636.4,0,159412,Mental Health Placements,DIRECT PAYMENTS,R,2022,4
620,Community and Housing,REDACTED PERSONAL DATA,854964,20-Jul-22,979.36,0,159542,Phys/Sens Placements - East,DIRECT PAYMENTS,R,2022,4
621,Corporate Services,ADVANCED BUSINESS SOLUTIONS,INV-25466,11-Jul-22,2620.8,436.8,159966,AD Resources,270000              Information Communication Technology,A,2022,4
622,Community and Housing,REDACTED PERSONAL DATA,855459,20-Jul-22,3220,0,160044,Phys/Sens Placements - East,DIRECT PAYMENTS,R,2022,4
623,"Children, Schools and Family",REDACTED PERSONAL DATA,853048,12-Jul-22,2485.98,0,160147,Child Disabilities - Placement,CSF-DIRECT PAYMENTS,R,2022,4
624,"Children, Schools and Family",REDACTED PERSONAL DATA,856643,19-Jul-22,1104.88,0,160147,Child Disabilities - Placement,CSF-DIRECT PAYMENTS,R,2022,4
625,Community and Housing,REDACTED PERSONAL DATA,855258,20-Jul-22,1272.8,0,160244,Phys/Sens Placements - East,DIRECT PAYMENTS,R,2022,4
626,Community and Housing,REDACTED PERSONAL DATA,855260,20-Jul-22,604.6,0,160273,Learning Disabilities Placemnt,DIRECT PAYMENTS,R,2022,4
627,Community and Housing,REDACTED PERSONAL DATA,855063,20-Jul-22,1018.24,0,160279,Phys/Sens Placements - East,DIRECT PAYMENTS,R,2022,4
628,"Children, Schools and Family",FLEET EDUCATION SERVICES LTD,16214,11-Jul-22,2452.8,408.8,160300,Non-Delegated Statements,260000              Human Resources,A,2022,4
629,Community and Housing,REDACTED PERSONAL DATA,855038,20-Jul-22,693.36,0,160450,Phys/Sens Placements - East,DIRECT PAYMENTS,R,2022,4
630,"Children, Schools and Family",THE NATIONAL FOSTERING AGENCY,394037,22-Jul-22,5519.4,0,160464,Placements Under 18,321100              Social Community Care Supplies & Services - Children,A,2022,4
631,"Children, Schools and Family",THE NATIONAL FOSTERING AGENCY,394039,22-Jul-22,3407.1,0,160464,Placements Under 18,321100              Social Community Care Supplies & Services - Children,A,2022,4
632,"Children, Schools and Family",THE NATIONAL FOSTERING AGENCY,394038,22-Jul-22,5519.4,0,160464,Placements Under 18,321100              Social Community Care Supplies & Services - Children,A,2022,4
633,"Children, Schools and Family",THE NATIONAL FOSTERING AGENCY,394034,22-Jul-22,5871.3,0,160464,Placements Under 18,321100              Social Community Care Supplies & Services - Children,A,2022,4
634,Community and Housing,WILLOW LODGE NURSING HOME,847519,05-Jul-22,2768,0,160658,Older People Placements - East,321017              Nursing & Residential Care Homes,A,2022,4
635,Community and Housing,WILLOW LODGE NURSING HOME,847621,05-Jul-22,13365.44,0,160658,Older People Placements - East,321017              Nursing & Residential Care Homes,A,2022,4
636,Community and Housing,THE AVENUES TRUST GROUP,1001174,22-Jul-22,2131.76,0,160730,Learning Disabilities Placemnt,321017              Nursing & Residential Care Homes,A,2022,4
637,Environment and Regeneration,CITY OF LONDON CORPORATION,4313244,25-Jul-22,2580,430,160895,Licensing - RSP,180000              Environmental Services,A,2022,4
638,Community and Housing,REDACTED PERSONAL DATA,855578,20-Jul-22,739.29,0,160909,Older People Placements - East,DIRECT PAYMENTS,R,2022,4
639,"Children, Schools and Family",REDACTED PERSONAL DATA,848006,01-Jul-22,514.75,0,161094,Placements Under 18,321100              Social Community Care Supplies & Services - Children,R,2022,4
640,"Children, Schools and Family",REDACTED PERSONAL DATA,852788,08-Jul-22,514.75,0,161094,Placements Under 18,321100              Social Community Care Supplies & Services - Children,R,2022,4
641,"Children, Schools and Family",REDACTED PERSONAL DATA,854562,15-Jul-22,514.75,0,161094,Placements Under 18,321100              Social Community Care Supplies & Services - Children,R,2022,4
642,"Children, Schools and Family",REDACTED PERSONAL DATA,857945,21-Jul-22,514.75,0,161094,Placements Under 18,321100              Social Community Care Supplies & Services - Children,R,2022,4
643,"Children, Schools and Family",REDACTED PERSONAL DATA,859566,29-Jul-22,665.5,0,161094,UASC LAC Under 18,321100              Social Community Care Supplies & Services - Children,R,2022,4
644,"Children, Schools and Family",REDACTED PERSONAL DATA,859598,29-Jul-22,714.75,0,161094,Placements Under 18,321100              Social Community Care Supplies & Services - Children,R,2022,4
645,"Children, Schools and Family",FOSTER CARE ASSOCIATES LTD,630379002,08-Jul-22,3632.4,0,161261,Placements Under 18,321100              Social Community Care Supplies & Services - Children,A,2022,4
646,"Children, Schools and Family",FOSTER CARE ASSOCIATES LTD,630381695,26-Jul-22,3753.48,0,161261,Placements Under 18,321100              Social Community Care Supplies & Services - Children,A,2022,4
647,Environment and Regeneration,QUARTIX  LTD,638127,29-Jul-22,1053,175.5,162608,Civil Enforcement Officers,270000              Information Communication Technology,A,2022,4
648,Corporate Services,DATA INTERCHANGE PLC,UKSI-1-2-68,25-Jul-22,991.8,165.3,162623,Local Taxation Bailiffs,270000              Information Communication Technology,A,2022,4
649,"Children, Schools and Family",THE NATIONAL AUTISTIC SOCIETY,VNG8375198,06-Jul-22,12222.33,0,162644,Non-Delegated Statements,260000              Human Resources,A,2022,4
650,"Children, Schools and Family",THE NATIONAL AUTISTIC SOCIETY,VNG8375176,06-Jul-22,12222.33,0,162644,Non-Delegated Statements,260000              Human Resources,A,2022,4
651,Community and Housing,REDACTED PERSONAL DATA,854845,20-Jul-22,1562.56,0,163392,Learning Disabilities Placemnt,DIRECT PAYMENTS,R,2022,4
652,Capital,D N H PROPERTY MAINTENANCE,2102DNH,28-Jul-22,2880,480,163395,Works to other buildings,"390000              Works - Construction, Repair & Maintenance",A,2022,4
653,"Children, Schools and Family",D N H PROPERTY MAINTENANCE,2067DNH,13-Jul-22,3744,624,163395, Children's Centres Support,"390000              Works - Construction, Repair & Maintenance",A,2022,4
654,Environment and Regeneration,D N H PROPERTY MAINTENANCE,211DNH,14-Jul-22,1872,312,163395,Greenspaces Team (General),"390000              Works - Construction, Repair & Maintenance",A,2022,4
655,Capital,D N H PROPERTY MAINTENANCE,2032DNH,21-Jul-22,2940,490,163395,Melrose Whatley Ave SEN,"390000              Works - Construction, Repair & Maintenance",A,2022,4
656,"Children, Schools and Family",REDACTED PERSONAL DATA,848024,01-Jul-22,785.52,0,163471,Placements Under 18,200000              Financial Services,R,2022,4
657,"Children, Schools and Family",REDACTED PERSONAL DATA,852806,08-Jul-22,785.52,0,163471,Placements Under 18,200000              Financial Services,R,2022,4
658,"Children, Schools and Family",REDACTED PERSONAL DATA,854579,15-Jul-22,785.52,0,163471,Placements Under 18,200000              Financial Services,R,2022,4
659,"Children, Schools and Family",REDACTED PERSONAL DATA,857962,21-Jul-22,785.52,0,163471,Placements Under 18,200000              Financial Services,R,2022,4
660,"Children, Schools and Family",REDACTED PERSONAL DATA,859615,29-Jul-22,785.52,0,163471,Placements Under 18,200000              Financial Services,R,2022,4
661,Community and Housing,Active Prospects,847462,05-Jul-22,6103.76,0,163859,Learning Disabilities Placemnt,321017              Nursing & Residential Care Homes,A,2022,4
662,Community and Housing,REDACTED PERSONAL DATA,855566,20-Jul-22,1395.29,0,163971,Phys/Sens Placements - East,DIRECT PAYMENTS,R,2022,4
663,Corporate Services,SME INVOICE FINANCE LTD,17296,01-Aug-22,546.6,91.1,164106,Legal Shared Service,260000              Human Resources,A,2022,4
664,Corporate Services,CLIFFE ENTERPRISE LTD,21517,15-Jul-22,1737.6,289.6,164341,Printing,190000              Facilities & Management Services,A,2022,4
665,Corporate Services,CLIFFE ENTERPRISE LTD,21584,29-Jul-22,16258.8,2709.8,164341,Printing,190000              Facilities & Management Services,A,2022,4
666,Corporate Services,LONDON COUNCILS,4319426,08-Jul-22,38230,0,164343,VOLUNTARY SECTOR COORDINATION,OLA,A,2022,4
667,Community and Housing,LONDON COUNCILS,4319554,13-Jul-22,24480,0,164343,Concessionary Fares,OLA,A,2022,4
668,Community and Housing,ENTERPRISE CARE SUPPORT LTD,19017,01-Jul-22,3279.12,0,164431,Older People Placements - East,321000              Social Community Care Supplies & Services - Adult,A,2022,4
669,Community and Housing,ENTERPRISE CARE SUPPORT LTD,19016,01-Jul-22,1095.64,0,164431,Older People Placements - East,321000              Social Community Care Supplies & Services - Adult,A,2022,4
670,Community and Housing,ENTERPRISE CARE SUPPORT LTD,19014,01-Jul-22,2850.12,0,164431,Older People Placements - East,321000              Social Community Care Supplies & Services - Adult,A,2022,4
671,Community and Housing,ENTERPRISE CARE SUPPORT LTD,19021,04-Jul-22,1398.52,0,164431,Older People Placements - East,321000              Social Community Care Supplies & Services - Adult,A,2022,4
672,Community and Housing,ENTERPRISE CARE SUPPORT LTD,19020,04-Jul-22,701.91,0,164431,Older People Placements - East,321000              Social Community Care Supplies & Services - Adult,A,2022,4
673,Community and Housing,ENTERPRISE CARE SUPPORT LTD,19019,04-Jul-22,766.22,0,164431,Older People Placements - East,321000              Social Community Care Supplies & Services - Adult,A,2022,4
674,Community and Housing,ENTERPRISE CARE SUPPORT LTD,19018,04-Jul-22,1095.64,0,164431,Older People Placements - East,321000              Social Community Care Supplies & Services - Adult,A,2022,4
675,Community and Housing,ENTERPRISE CARE SUPPORT LTD,19022,04-Jul-22,766.22,0,164431,Older People Placements - East,321000              Social Community Care Supplies & Services - Adult,A,2022,4
676,Community and Housing,ENTERPRISE CARE SUPPORT LTD,19024,04-Jul-22,701.91,0,164431,Learning Disabilities Placemnt,321000              Social Community Care Supplies & Services - Adult,A,2022,4
677,Community and Housing,ENTERPRISE CARE SUPPORT LTD,19025,04-Jul-22,839.3,0,164431,Older People Placements - East,321000              Social Community Care Supplies & Services - Adult,A,2022,4
678,Community and Housing,ENTERPRISE CARE SUPPORT LTD,19034A,04-Jul-22,1346.06,0,164431,Older People Placements - East,321000              Social Community Care Supplies & Services - Adult,A,2022,4
679,Community and Housing,ENTERPRISE CARE SUPPORT LTD,19026,04-Jul-22,2191.28,0,164431,Older People Placements - East,321000              Social Community Care Supplies & Services - Adult,A,2022,4
680,Community and Housing,ENTERPRISE CARE SUPPORT LTD,19027,04-Jul-22,1095.64,0,164431,Older People Placements - East,321000              Social Community Care Supplies & Services - Adult,A,2022,4
681,Community and Housing,ENTERPRISE CARE SUPPORT LTD,19029,04-Jul-22,2850.12,0,164431,Older People Placements - East,321000              Social Community Care Supplies & Services - Adult,A,2022,4
682,Community and Housing,ENTERPRISE CARE SUPPORT LTD,19030,04-Jul-22,766.22,0,164431,Older People Placements - East,321000              Social Community Care Supplies & Services - Adult,A,2022,4
683,Community and Housing,ENTERPRISE CARE SUPPORT LTD,19031,04-Jul-22,988.26,0,164431,Older People Placements - East,321000              Social Community Care Supplies & Services - Adult,A,2022,4
684,Community and Housing,ENTERPRISE CARE SUPPORT LTD,19032,04-Jul-22,988.26,0,164431,Older People Placements - East,321000              Social Community Care Supplies & Services - Adult,A,2022,4
685,Community and Housing,ENTERPRISE CARE SUPPORT LTD,19033,04-Jul-22,766.22,0,164431,Older People Placements - East,321000              Social Community Care Supplies & Services - Adult,A,2022,4
686,Community and Housing,ENTERPRISE CARE SUPPORT LTD,19015,04-Jul-22,552.78,0,164431,Older People Placements - East,321000              Social Community Care Supplies & Services - Adult,A,2022,4
687,Community and Housing,ENTERPRISE CARE SUPPORT LTD,19013,04-Jul-22,3402.98,0,164431,Older People Placements - East,321000              Social Community Care Supplies & Services - Adult,A,2022,4
688,Community and Housing,BUPA CARE SERVICES BACS RECEIP,847648,05-Jul-22,8538.76,0,164629,Older People Placements - East,321017              Nursing & Residential Care Homes,A,2022,4
689,Community and Housing,REDACTED PERSONAL DATA,855579,20-Jul-22,1272.8,0,164694,Phys/Sens Placements - East,DIRECT PAYMENTS,R,2022,4
690,"Children, Schools and Family",SYNERGY FOSTERING LTD,INV-3779,08-Jul-22,7688.4,0,165111,Placements Under 18,321100              Social Community Care Supplies & Services - Children,A,2022,4
691,Unassigned,MARSTON GROUP,62260,22-Jul-22,2018.5,0,165202,Corporate Accountancy,200000              Financial Services,A,2022,4
692,Community and Housing,REDACTED PERSONAL DATA,851445,08-Jul-22,2565.74,0,165602,Learning Disabilities Placemnt,DIRECT PAYMENTS,R,2022,4
693,Community and Housing,REDACTED PERSONAL DATA,855446,20-Jul-22,1349.48,0,165602,Learning Disabilities Placemnt,DIRECT PAYMENTS,R,2022,4
694,Community and Housing,REDACTED PERSONAL DATA,854953,20-Jul-22,2228.4,0,165619,Phys/Sens Placements - East,DIRECT PAYMENTS,R,2022,4
695,Community and Housing,REDACTED PERSONAL DATA,855161,20-Jul-22,3538.2,0,165619,Phys/Sens Placements - East,DIRECT PAYMENTS,R,2022,4
696,Community and Housing,BUPA CARE HOMES (ANS) LTD,847839,05-Jul-22,3511.52,0,165704,Phys/Sens Placements - East,321017              Nursing & Residential Care Homes,A,2022,4
697,Capital,HM REVENUE AND CUSTOMS,MERTON CNCL,01-Jul-22,16500,0,165742,Acquisitions Budget,200000              Financial Services,A,2022,4
698,Unassigned,HM REVENUE AND CUSTOMS,1168128493AJUL22,11-Jul-22,199543.57,0,165742,CHAS Balance Sheet,200000              Financial Services,A,2022,4
699,Unassigned,HM REVENUE AND CUSTOMS,XHX08275100783,26-Jul-22,16602.4,0,165742,Corporate Accountancy,200000              Financial Services,A,2022,4
700,Community and Housing,REDACTED PERSONAL DATA,855370,20-Jul-22,1032.8,0,165786,Older People Placements - East,DIRECT PAYMENTS,R,2022,4
701,Community and Housing,REDACTED PERSONAL DATA,855590,20-Jul-22,700.8,0,166085,Learning Disabilities Placemnt,DIRECT PAYMENTS,R,2022,4
702,Community and Housing,REDACTED PERSONAL DATA,855359,20-Jul-22,1588.64,0,166158,Phys/Sens Placements - East,DIRECT PAYMENTS,R,2022,4
703,Community and Housing,REDACTED PERSONAL DATA,854885,20-Jul-22,1209.16,0,166547,Learning Disabilities Placemnt,DIRECT PAYMENTS,R,2022,4
704,"Children, Schools and Family",REDACTED PERSONAL DATA,847956,01-Jul-22,1295.53,0,166742,Placements Under 18,321100              Social Community Care Supplies & Services - Children,R,2022,4
705,"Children, Schools and Family",REDACTED PERSONAL DATA,852741,08-Jul-22,1295.53,0,166742,Placements Under 18,321100              Social Community Care Supplies & Services - Children,R,2022,4
706,"Children, Schools and Family",REDACTED PERSONAL DATA,854514,15-Jul-22,1295.53,0,166742,Placements Under 18,321100              Social Community Care Supplies & Services - Children,R,2022,4
707,"Children, Schools and Family",REDACTED PERSONAL DATA,857898,21-Jul-22,1295.53,0,166742,Placements Under 18,321100              Social Community Care Supplies & Services - Children,R,2022,4
708,"Children, Schools and Family",REDACTED PERSONAL DATA,859551,29-Jul-22,1495.53,0,166742,Placements Under 18,321100              Social Community Care Supplies & Services - Children,R,2022,4
709,Corporate Services,REDACTED PERSONAL DATA,00564-19U0847-A,27-Jul-22,1495,0,166885,Client Finance Affairs,120000              Cemetery & Crematorium,R,2022,4
710,Corporate Services,REDACTED PERSONAL DATA,RET00575-1907347,27-Jul-22,1415,0,166885,Client Finance Affairs,120000              Cemetery & Crematorium,R,2022,4
711,Corporate Services,UNIQUE OFFICE SOLUTIONS LTD,111731,05-Jul-22,843.6,140.6,166889,Legal Shared Service,210000              Furniture & Soft Furnishings,A,2022,4
712,Capital,UNIQUE OFFICE SOLUTIONS LTD,111788,19-Jul-22,68880,11480,166889,Works to other buildings,210000              Furniture & Soft Furnishings,A,2022,4
713,Corporate Services,UNIQUE OFFICE SOLUTIONS LTD,111807,01-Aug-22,756,126,166889,Legal Shared Service,210000              Furniture & Soft Furnishings,A,2022,4
714,Environment and Regeneration,UNIQUE OFFICE SOLUTIONS LTD,111732,28-Jul-22,7420.75,1236.79,166889,Vestry Hall,210000              Furniture & Soft Furnishings,A,2022,4
715,"Children, Schools and Family",REDACTED PERSONAL DATA,856719,21-Jul-22,795.04,0,166972,CWD Placements,CSF-DIRECT PAYMENTS,R,2022,4
716,Environment and Regeneration,IMPERIAL CIVIL ENFORC.SOLUT.,INV0000005097,22-Jul-22,3326.38,554.4,167737,Civil Enforcement Officers,270000              Information Communication Technology,A,2022,4
717,"Children, Schools and Family",RAINBOW FOSTERING SERVICES LTD,RF564,27-Jul-22,3621.42,0,167793,Placements Under 18,321100              Social Community Care Supplies & Services - Children,A,2022,4
718,"Children, Schools and Family",RAINBOW FOSTERING SERVICES LTD,RF565,27-Jul-22,3440.34,0,167793,Placements Under 18,321100              Social Community Care Supplies & Services - Children,A,2022,4
719,Corporate Services,REDACTED PERSONAL DATA,10182649,22-Jul-22,13814.88,2302.48,168092,SLLP - Disbursements,280000              Legal Services,R,2022,4
720,Corporate Services,REDACTED PERSONAL DATA,10185720,22-Jul-22,3387,564.5,168092,SLLP - Disbursements,280000              Legal Services,R,2022,4
721,Corporate Services,REDACTED PERSONAL DATA,10190233,21-Jul-22,27345.6,4557.6,168092,SLLP - Disbursements,280000              Legal Services,R,2022,4
722,Corporate Services,REDACTED PERSONAL DATA,10185720BALANCE,25-Jul-22,16615.78,2769.29,168092,SLLP - Disbursements,280000              Legal Services,R,2022,4
723,Capital,CBS Adaptation Design,1639,11-Jul-22,1226.2,175.2,168147,Disabled Facilities Grant,200000              Financial Services,A,2022,4
724,Capital,CBS Adaptation Design,1651,14-Jul-22,1237.72,176.95,168147,Disabled Facilities Grant,200000              Financial Services,A,2022,4
725,Capital,CBS Adaptation Design,1648,18-Jul-22,1946.99,236.5,168147,Disabled Facilities Grant,200000              Financial Services,A,2022,4
726,Capital,CBS Adaptation Design,1646,18-Jul-22,900.48,120.25,168147,Disabled Facilities Grant,200000              Financial Services,A,2022,4
727,Capital,CBS Adaptation Design,1649,18-Jul-22,2055.25,254.54,168147,Disabled Facilities Grant,200000              Financial Services,A,2022,4
728,Capital,CBS Adaptation Design,1656,18-Jul-22,2715.78,365.13,168147,Disabled Facilities Grant,200000              Financial Services,A,2022,4
729,Capital,CBS Adaptation Design,1655,19-Jul-22,1972.2,241.2,168147,Disabled Facilities Grant,200000              Financial Services,A,2022,4
730,Corporate Services,LANGUAGE BANK,MTS-080622,05-Jul-22,738,123,168229,Translation Service,TRANSLATIONS,A,2022,4
731,Corporate Services,LANGUAGE BANK,MTS-150622,05-Jul-22,732,122,168229,Translation Service,TRANSLATIONS,A,2022,4
732,Corporate Services,LANGUAGE BANK,MTS-100622,05-Jul-22,738,123,168229,Translation Service,TRANSLATIONS,A,2022,4
733,Corporate Services,LANGUAGE BANK,MTS-270622,11-Jul-22,573,95.5,168229,Translation Service,TRANSLATIONS,A,2022,4
734,Corporate Services,LANGUAGE BANK,MTS-200622,11-Jul-22,768,128,168229,Translation Service,TRANSLATIONS,A,2022,4
735,Corporate Services,LANGUAGE BANK,MTS-010722,22-Jul-22,747,124.5,168229,Translation Service,TRANSLATIONS,A,2022,4
736,Community and Housing,REDACTED PERSONAL DATA,854991,20-Jul-22,572.76,0,168403,Learning Disabilities Placemnt,DIRECT PAYMENTS,R,2022,4
737,Capital,HOME CONNECTIONS LETTINGS LTD,INV-1175,22-Jul-22,780,130,168983,Business Systems,270000              Information Communication Technology,A,2022,4
738,Community and Housing,FITZROY SUPPORT,847491,05-Jul-22,6104.92,0,169400,Learning Disabilities Placemnt,321017              Nursing & Residential Care Homes,A,2022,4
739,"Children, Schools and Family",REDACTED PERSONAL DATA,856773,21-Jul-22,594,0,169403,CWD Placements,CSF-DIRECT PAYMENTS,R,2022,4
740,Corporate Services,THE LUCY FAITHFULL FOUNDATION,28109,14-Jul-22,6930,0,169410,SLLP - Disbursements,280000              Legal Services                                                                            Confirmed,A,2022,4
741,Corporate Services,JULIUS RUTHERFOORD AND CO LTD,INV-S145005,22-Jul-22,3044.86,507.48,170092,PDC,130000              Cleaning & Janitorial,A,2022,4
742,"Children, Schools and Family",JULIUS RUTHERFOORD AND CO LTD,INVS145053,22-Jul-22,25962.45,4327.07,170092, PFI Unitary Charges,130000              Cleaning & Janitorial,A,2022,4
743,"Children, Schools and Family",JULIUS RUTHERFOORD AND CO LTD,INV-S143976,19-Jul-22,857.51,142.92,170092,Ivy Garden CC Building,130000              Cleaning & Janitorial,A,2022,4
744,"Children, Schools and Family",JULIUS RUTHERFOORD AND CO LTD,INV-S144459,19-Jul-22,857.51,142.92,170092,Ivy Garden CC Building,130000              Cleaning & Janitorial,A,2022,4
745,"Children, Schools and Family",JULIUS RUTHERFOORD AND CO LTD,INV-S143817,19-Jul-22,734.34,122.39,170092,Church Road Building,130000              Cleaning & Janitorial,A,2022,4
746,"Children, Schools and Family",JULIUS RUTHERFOORD AND CO LTD,INV-S144300,19-Jul-22,734.34,122.39,170092,Church Road Building,130000              Cleaning & Janitorial,A,2022,4
747,"Children, Schools and Family",JULIUS RUTHERFOORD AND CO LTD,INV-S144819,22-Jul-22,734.34,122.39,170092,Church Road Building,130000              Cleaning & Janitorial,A,2022,4
748,"Children, Schools and Family",JULIUS RUTHERFOORD AND CO LTD,INV-S144973,22-Jul-22,857.51,142.92,170092,Ivy Garden CC Building,130000              Cleaning & Janitorial,A,2022,4
749,"Children, Schools and Family",JULIUS RUTHERFOORD AND CO LTD,INV-S143759,19-Jul-22,734.34,122.39,170092,Lower Morden CC Building Mgt,130000              Cleaning & Janitorial,A,2022,4
750,"Children, Schools and Family",JULIUS RUTHERFOORD AND CO LTD,INV-S144247,19-Jul-22,734.34,122.39,170092,Lower Morden CC Building Mgt,130000              Cleaning & Janitorial,A,2022,4
751,"Children, Schools and Family",JULIUS RUTHERFOORD AND CO LTD,INV-S144747,22-Jul-22,734.34,122.39,170092,Lower Morden CC Building Mgt,130000              Cleaning & Janitorial,A,2022,4
752,"Children, Schools and Family",JULIUS RUTHERFOORD AND CO LTD,INV-S145059,22-Jul-22,27334.73,4555.77,170092, PFI Unitary Charges,130000              Cleaning & Janitorial,A,2022,4
753,"Children, Schools and Family",JULIUS RUTHERFOORD AND CO LTD,INV-S145057,22-Jul-22,25451.04,4241.83,170092, PFI Unitary Charges,130000              Cleaning & Janitorial,A,2022,4
754,Community and Housing,INDEPENDENCE HOMES LTD,847754,05-Jul-22,7493.76,0,170527,Learning Disabilities Placemnt,321017              Nursing & Residential Care Homes,A,2022,4
755,Community and Housing,INDEPENDENCE HOMES LTD,CED00043,14-Jul-22,5347.24,0,170527,Learning Disabilities Placemnt,321017              Nursing & Residential Care Homes,A,2022,4
756,"Children, Schools and Family",GREATER LONDON FOSTERING LTD,35590,22-Jul-22,3450,0,170596,Placements Under 18,321100              Social Community Care Supplies & Services - Children,A,2022,4
757,"Children, Schools and Family",GREATER LONDON FOSTERING LTD,35591,22-Jul-22,3450,0,170596,Placements Under 18,321100              Social Community Care Supplies & Services - Children,A,2022,4
758,"Children, Schools and Family",GREATER LONDON FOSTERING LTD,35592,22-Jul-22,3403.5,0,170596,Placements Under 18,321100              Social Community Care Supplies & Services - Children,A,2022,4
759,"Children, Schools and Family",GREATER LONDON FOSTERING LTD,35593,22-Jul-22,3336.9,0,170596,Placements Under 18,321100              Social Community Care Supplies & Services - Children,A,2022,4
760,"Children, Schools and Family",GREATER LONDON FOSTERING LTD,35416,20-Jul-22,3448.13,0,170596,Placements Under 18,321100              Social Community Care Supplies & Services - Children,A,2022,4
761,"Children, Schools and Family",CENMAC,CPSI2069,06-Jul-22,1464,0,170767,Non-Delegated Statements,321100              Social Community Care Supplies & Services - Children,A,2022,4
762,Community and Housing,CHOICE SUPPORT,848066,25-Jul-22,8478,0,170834,Learning Disabilities Placemnt,321000              Social Community Care Supplies & Services - Adult,A,2022,4
763,Community and Housing,CHOICE SUPPORT,ARINV37267MB,19-Jul-22,5056.8,0,170834,Learning Disabilities Placemnt,321000              Social Community Care Supplies & Services - Adult,A,2022,4
764,Community and Housing,CHOICE SUPPORT,ARINV37267PM,19-Jul-22,4283.42,0,170834,Learning Disabilities Placemnt,321000              Social Community Care Supplies & Services - Adult,A,2022,4
765,Community and Housing,CHOICE SUPPORT,ARINV37267TG,19-Jul-22,4736.47,0,170834,Learning Disabilities Placemnt,321000              Social Community Care Supplies & Services - Adult,A,2022,4
766,Community and Housing,CHOICE SUPPORT,ARINV37267EL,19-Jul-22,5610.2,0,170834,Learning Disabilities Placemnt,321000              Social Community Care Supplies & Services - Adult,A,2022,4
767,Community and Housing,CHOICE SUPPORT,ARINV37267RM,19-Jul-22,4412.84,0,170834,Learning Disabilities Placemnt,321000              Social Community Care Supplies & Services - Adult,A,2022,4
768,Community and Housing,CHOICE SUPPORT,ARINV37267DL,19-Jul-22,4283.42,0,170834,Learning Disabilities Placemnt,321000              Social Community Care Supplies & Services - Adult,A,2022,4
769,Community and Housing,CHOICE SUPPORT,ARINV37267RB,19-Jul-22,4736.47,0,170834,Learning Disabilities Placemnt,321000              Social Community Care Supplies & Services - Adult,A,2022,4
770,Community and Housing,CHOICE SUPPORT,ARINV37267PK,19-Jul-22,4930.63,0,170834,Learning Disabilities Placemnt,321000              Social Community Care Supplies & Services - Adult,A,2022,4
771,Community and Housing,CHOICE SUPPORT,ARINV37267LD,19-Jul-22,5060.08,0,170834,Learning Disabilities Placemnt,321000              Social Community Care Supplies & Services - Adult,A,2022,4
772,Community and Housing,CHOICE SUPPORT,ARINV37267GH,19-Jul-22,4445.23,0,170834,Learning Disabilities Placemnt,321000              Social Community Care Supplies & Services - Adult,A,2022,4
773,Community and Housing,CHOICE SUPPORT,ARINV37267FK,19-Jul-22,4930.68,0,170834,Learning Disabilities Placemnt,321000              Social Community Care Supplies & Services - Adult,A,2022,4
774,Community and Housing,CHOICE SUPPORT,ARINV37267YB,19-Jul-22,4283.42,0,170834,Learning Disabilities Placemnt,321000              Social Community Care Supplies & Services - Adult,A,2022,4
775,Community and Housing,CHOICE SUPPORT,ARINV37267EJ,19-Jul-22,4930.63,0,170834,Learning Disabilities Placemnt,321000              Social Community Care Supplies & Services - Adult,A,2022,4
776,Community and Housing,CHOICE SUPPORT,ARINV37267CW,19-Jul-22,4412.84,0,170834,Learning Disabilities Placemnt,321000              Social Community Care Supplies & Services - Adult,A,2022,4
777,Community and Housing,CHOICE SUPPORT,ARINV37267MP,19-Jul-22,4157.12,0,170834,Learning Disabilities Placemnt,321000              Social Community Care Supplies & Services - Adult,A,2022,4
778,Community and Housing,CHOICE SUPPORT,ARINV37267LW,19-Jul-22,4092.4,0,170834,Learning Disabilities Placemnt,321000              Social Community Care Supplies & Services - Adult,A,2022,4
779,Community and Housing,CHOICE SUPPORT,ARINV37267VOID,19-Jul-22,8113.91,0,170834,Learning Disabilities Placemnt,321000              Social Community Care Supplies & Services - Adult,A,2022,4
780,Community and Housing,CHOICE SUPPORT,847769,25-Jul-22,4193,0,170834,Learning Disabilities Placemnt,321000              Social Community Care Supplies & Services - Adult,A,2022,4
781,Community and Housing,REDACTED PERSONAL DATA,855133,20-Jul-22,1591,0,170878,Learning Disabilities Placemnt,DIRECT PAYMENTS,R,2022,4
782,Community and Housing,REDACTED PERSONAL DATA,855003,20-Jul-22,1304.64,0,171056,Phys/Sens Placements - East,DIRECT PAYMENTS,R,2022,4
783,Community and Housing,ST GEORGES RES. CARE HOME,847802,05-Jul-22,4871.4,0,171491,Learning Disabilities Placemnt,321017              Nursing & Residential Care Homes,A,2022,4
784,Community and Housing,ST GEORGES RES. CARE HOME,847833,05-Jul-22,4024.2,0,171491,Learning Disabilities Placemnt,321017              Nursing & Residential Care Homes,A,2022,4
785,Corporate Services,SSD LIMITED,SI-416,06-Jul-22,660,110,171736,Corporate Services Buildings,190000              Facilities & Management Services,A,2022,4
786,Corporate Services,SSD LIMITED,SI-423,12-Jul-22,2029.13,338.19,171736,Civic Centre,190000              Facilities & Management Services,A,2022,4
787,"Children, Schools and Family",REDACTED PERSONAL DATA,856617,21-Jul-22,653.4,0,171943,CWD Placements,CSF-DIRECT PAYMENTS,R,2022,4
788,Community and Housing,REDACTED PERSONAL DATA,854988,20-Jul-22,588.08,0,172070,Learning Disabilities Placemnt,DIRECT PAYMENTS,R,2022,4
789,Community and Housing,NORBURY PROPERTY SERV LDN LTD,SI-7339,25-Jul-22,9037.5,0,172104,Bed & Breakfast - accomm,321000              Social Community Care Supplies & Services - Adult,A,2022,4
790,Community and Housing,EALING COUNCIL,847453,05-Jul-22,2985.92,0,172129,Mental Health Placements,OLA,A,2022,4
791,Community and Housing,CARRICKS BROOK,847466,05-Jul-22,6536.16,0,172297,Learning Disabilities Placemnt,321017              Nursing & Residential Care Homes,A,2022,4
792,Community and Housing,BROADHAM CARE LTD,847517,05-Jul-22,7386.96,0,172298,Learning Disabilities Placemnt,321017              Nursing & Residential Care Homes,A,2022,4
793,Community and Housing,BROADHAM CARE LTD,847785,05-Jul-22,6135.44,0,172298,Learning Disabilities Placemnt,321017              Nursing & Residential Care Homes,A,2022,4
794,Unassigned,KENNEDYS,012200352131M890,18-Jul-22,1448.4,241.4,172486,Corporate Services,280000              Legal Services,A,2022,4
795,"Children, Schools and Family",LINDEN LODGE SCHOOL,INV-0773,12-Jul-22,50697,0,172798,Non-Delegated Statements,170000              Education,A,2022,4
796,Community and Housing,REDACTED PERSONAL DATA,855207,20-Jul-22,845.76,0,172912,Learning Disabilities Placemnt,DIRECT PAYMENTS,R,2022,4
797,Community and Housing,REDACTED PERSONAL DATA,855025,20-Jul-22,890.96,0,172914,Learning Disabilities Placemnt,DIRECT PAYMENTS,R,2022,4
798,"Children, Schools and Family",REDACTED PERSONAL DATA,848480,04-Jul-22,552.32,0,172922,Fostering Recruit/Assessment,321100              Social Community Care Supplies & Services - Children,R,2022,4
799,"Children, Schools and Family",REDACTED PERSONAL DATA,855770,19-Jul-22,552.32,0,172922,Fostering Recruit/Assessment,321100              Social Community Care Supplies & Services - Children,R,2022,4
800,Community and Housing,REDACTED PERSONAL DATA,855621,20-Jul-22,636,0,172936,Phys/Sens Placements - East,DIRECT PAYMENTS,R,2022,4
801,"Children, Schools and Family",EAGLE HOUSE SCHOOL (SUTTON),EHS22/010,11-Jul-22,9225,0,173087,Non-Delegated Statements,170000              Education,A,2022,4
802,"Children, Schools and Family",EAGLE HOUSE SCHOOL (SUTTON),EHS22/007,15-Jul-22,18696.33,0,173087,Non-Delegated Statements,170000              Education,A,2022,4
803,"Children, Schools and Family",EAGLE HOUSE SCHOOL (SUTTON),EHS22/012,15-Jul-22,17473,0,173087,Non-Delegated Statements,170000              Education,A,2022,4
804,"Children, Schools and Family",EAGLE HOUSE SCHOOL (SUTTON),EHS22/022,15-Jul-22,18720,0,173087,Non-Delegated Statements,170000              Education,A,2022,4
805,"Children, Schools and Family",EAGLE HOUSE SCHOOL (SUTTON),EHS22/013,15-Jul-22,18823.67,0,173087,Non-Delegated Statements,170000              Education,A,2022,4
806,"Children, Schools and Family",EAGLE HOUSE SCHOOL (SUTTON),EHS22/020,15-Jul-22,19832.67,0,173087,Non-Delegated Statements,170000              Education,A,2022,4
807,"Children, Schools and Family",EAGLE HOUSE SCHOOL (SUTTON),EHS22/027,15-Jul-22,18823.67,0,173087,Non-Delegated Statements,170000              Education,A,2022,4
808,"Children, Schools and Family",EAGLE HOUSE SCHOOL (SUTTON),EHS22/014,15-Jul-22,17800,0,173087,Non-Delegated Statements,170000              Education,A,2022,4
809,"Children, Schools and Family",EAGLE HOUSE SCHOOL (SUTTON),EHS22/019,15-Jul-22,17312.67,0,173087,Non-Delegated Statements,170000              Education,A,2022,4
810,"Children, Schools and Family",EAGLE HOUSE SCHOOL (SUTTON),EHS22/028,15-Jul-22,18931.33,0,173087,Non-Delegated Statements,170000              Education,A,2022,4
811,"Children, Schools and Family",EAGLE HOUSE SCHOOL (SUTTON),EHS22/011,15-Jul-22,18780.67,0,173087,Non-Delegated Statements,170000              Education,A,2022,4
812,"Children, Schools and Family",EAGLE HOUSE SCHOOL (SUTTON),EHS22/017,15-Jul-22,19351.33,0,173087,Non-Delegated Statements,170000              Education,A,2022,4
813,"Children, Schools and Family",EAGLE HOUSE SCHOOL (SUTTON),EHS22/025,15-Jul-22,19779,0,173087,Non-Delegated Statements,170000              Education,A,2022,4
814,"Children, Schools and Family",EAGLE HOUSE SCHOOL (SUTTON),EHS22/009,12-Jul-22,20609.33,0,173087,Non-Delegated Statements,170000              Education,A,2022,4
815,"Children, Schools and Family",EAGLE HOUSE SCHOOL (SUTTON),EHS22/018,15-Jul-22,19117,0,173087,Non-Delegated Statements,170000              Education,A,2022,4
816,"Children, Schools and Family",EAGLE HOUSE SCHOOL (SUTTON),EHS22/026,12-Jul-22,28423,0,173087,Non-Delegated Statements,170000              Education,A,2022,4
817,"Children, Schools and Family",EAGLE HOUSE SCHOOL (SUTTON),EHS22/006,15-Jul-22,19171.33,0,173087,Non-Delegated Statements,170000              Education,A,2022,4
818,"Children, Schools and Family",EAGLE HOUSE SCHOOL (SUTTON),EHS22/016,15-Jul-22,19117,0,173087,Non-Delegated Statements,170000              Education,A,2022,4
819,"Children, Schools and Family",EAGLE HOUSE SCHOOL (SUTTON),EHM22/024,12-Jul-22,21689.67,0,173087,Non-Delegated Statements,170000              Education,A,2022,4
820,"Children, Schools and Family",EAGLE HOUSE SCHOOL (SUTTON),EHS22/008,15-Jul-22,18885,0,173087,Non-Delegated Statements,170000              Education,A,2022,4
821,"Children, Schools and Family",EAGLE HOUSE SCHOOL (SUTTON),EHS22/015,15-Jul-22,18173,0,173087,Non-Delegated Statements,170000              Education,A,2022,4
822,"Children, Schools and Family",EAGLE HOUSE SCHOOL (SUTTON),EHS22/023,15-Jul-22,17519.33,0,173087,Non-Delegated Statements,170000              Education,A,2022,4
823,Corporate Services,GUARDIAN NEWS AND MEDIA LTD,1284784,25-Jul-22,1170,195,173136,Legal Shared Service,260000              Human Resources,A,2022,4
824,Community and Housing,HAVERING COURT NURSING HOME,847433,05-Jul-22,4678.12,0,173297,Older People Placements - East,321017              Nursing & Residential Care Homes,A,2022,4
825,Community and Housing,REDACTED PERSONAL DATA,854706,20-Jul-22,706.6,0,173308,Phys/Sens Placements - East,DIRECT PAYMENTS,R,2022,4
826,"Children, Schools and Family",REDACTED PERSONAL DATA,848407,04-Jul-22,719.06,0,173600,Fostering Recruit/Assessment,321100              Social Community Care Supplies & Services - Children,R,2022,4
827,"Children, Schools and Family",REDACTED PERSONAL DATA,855697,19-Jul-22,719.06,0,173600,Fostering Recruit/Assessment,321100              Social Community Care Supplies & Services - Children,R,2022,4
828,"Children, Schools and Family",REDACTED PERSONAL DATA,853083,12-Jul-22,7206.48,0,173793,Child Disabilities - Placement,CSF-DIRECT PAYMENTS,R,2022,4
829,"Children, Schools and Family",REDACTED PERSONAL DATA,856721,19-Jul-22,3603.24,0,173793,Child Disabilities - Placement,CSF-DIRECT PAYMENTS,R,2022,4
830,Community and Housing,HARBOUR CARE (UK) LTD,847732,05-Jul-22,6448.68,0,173947,Learning Disabilities Placemnt,321017              Nursing & Residential Care Homes,A,2022,4
831,"Children, Schools and Family",REDACTED PERSONAL DATA,847280,01-Jul-22,1518.56,0,174212, Childrens Short Breaks,CSF-DIRECT PAYMENTS,R,2022,4
832,Community and Housing,ASHINGTON HOUSE,847320,01-Jul-22,13113.64,0,174259,Learning Disabilities Placemnt,321017              Nursing & Residential Care Homes,A,2022,4
833,Community and Housing,ASHINGTON HOUSE,847486,05-Jul-22,4406.68,0,174259,Learning Disabilities Placemnt,321017              Nursing & Residential Care Homes,A,2022,4
834,Community and Housing,REDACTED PERSONAL DATA,854882,20-Jul-22,886.52,0,174449,Phys/Sens Placements - East,DIRECT PAYMENTS,R,2022,4
835,Community and Housing,REDACTED PERSONAL DATA,855418,20-Jul-22,2702,0,174465,Older People Placements - East,DIRECT PAYMENTS,R,2022,4
836,"Children, Schools and Family",REDACTED PERSONAL DATA,859587,29-Jul-22,589.51,0,174483,Placements Under 18,321100              Social Community Care Supplies & Services - Children,R,2022,4
837,Community and Housing,SUPREME HOMES,30051,08-Jul-22,3280,0,174758,Mental Health Placements,321017              Nursing & Residential Care Homes,A,2022,4
838,Community and Housing,SUPREME HOMES,30081,14-Jul-22,3280,0,174758,Mental Health Placements,321017              Nursing & Residential Care Homes,A,2022,4
839,Community and Housing,ALPENBEST LIMITED,26062022-687518,22-Jul-22,534.1,0,174789,Older People Placements - East,321000              Social Community Care Supplies & Services - Adult,A,2022,4
840,Community and Housing,ALPENBEST LIMITED,26062022-510147,22-Jul-22,950.74,0,174789,Older People Placements - East,321000              Social Community Care Supplies & Services - Adult,A,2022,4
841,Community and Housing,ALPENBEST LIMITED,26062022-963516,22-Jul-22,545.57,0,174789,Older People Placements - East,321000              Social Community Care Supplies & Services - Adult,A,2022,4
842,Community and Housing,ALPENBEST LIMITED,10072022-963516,22-Jul-22,557.04,0,174789,Older People Placements - East,321000              Social Community Care Supplies & Services - Adult,A,2022,4
843,Community and Housing,ALPENBEST LIMITED,10072022-510147,22-Jul-22,950.74,0,174789,Older People Placements - East,321000              Social Community Care Supplies & Services - Adult,A,2022,4
844,Community and Housing,ALPENBEST LIMITED,10072022-687518,22-Jul-22,571.4,0,174789,Older People Placements - East,321000              Social Community Care Supplies & Services - Adult,A,2022,4
845,Community and Housing,ALPENBEST LIMITED,3072022-963516,22-Jul-22,557.04,0,174789,Older People Placements - East,321000              Social Community Care Supplies & Services - Adult,A,2022,4
846,Community and Housing,ALPENBEST LIMITED,3072022-687518,22-Jul-22,534.1,0,174789,Older People Placements - East,321000              Social Community Care Supplies & Services - Adult,A,2022,4
847,Community and Housing,ALPENBEST LIMITED,3072022-510147,22-Jul-22,950.74,0,174789,Older People Placements - East,321000              Social Community Care Supplies & Services - Adult,A,2022,4
848,Community and Housing,ALPENBEST LIMITED,17072022-510147,25-Jul-22,950.74,0,174789,Older People Placements - East,321000              Social Community Care Supplies & Services - Adult,A,2022,4
849,Community and Housing,ALPENBEST LIMITED,17072022-963516,25-Jul-22,545.57,0,174789,Older People Placements - East,321000              Social Community Care Supplies & Services - Adult,A,2022,4
850,Community and Housing,SUTTON COURT CARE CENTRE,847530,05-Jul-22,2827.36,0,174833,Older People Placements - East,321017              Nursing & Residential Care Homes,A,2022,4
851,Community and Housing,SUTTON COURT CARE CENTRE,847623,05-Jul-22,3163.36,0,174833,Older People Placements - East,321017              Nursing & Residential Care Homes,A,2022,4
852,Community and Housing,SUTTON COURT CARE CENTRE,847649,05-Jul-22,4049.6,0,174833,Phys/Sens Placements - East,321017              Nursing & Residential Care Homes,A,2022,4
853,Community and Housing,SUTTON COURT CARE CENTRE,847807,05-Jul-22,4097.28,0,174833,Phys/Sens Placements - East,321017              Nursing & Residential Care Homes,A,2022,4
854,Community and Housing,REDACTED PERSONAL DATA,855184,20-Jul-22,636.4,0,174975,Learning Disabilities Placemnt,DIRECT PAYMENTS,R,2022,4
855,"Children, Schools and Family",REDACTED PERSONAL DATA,856678,21-Jul-22,648.56,0,175042,CWD Placements,CSF-DIRECT PAYMENTS,R,2022,4
856,Environment and Regeneration,MERTON NEIGHBOURHOOD WATCH ASS,2017,11-Jul-22,1950,0,175049,Crime and Strategy Team,200000              Financial Services,A,2022,4
857,"Children, Schools and Family",REDACTED PERSONAL DATA,848368,04-Jul-22,539.84,0,175254,Fostering Recruit/Assessment,321100              Social Community Care Supplies & Services - Children,R,2022,4
858,"Children, Schools and Family",REDACTED PERSONAL DATA,855658,19-Jul-22,539.84,0,175254,Fostering Recruit/Assessment,321100              Social Community Care Supplies & Services - Children,R,2022,4
859,"Children, Schools and Family",GLOBAL MEDIATION LTD,INV-94000,27-Jul-22,3960,660,175270,Non-Delegated Statements,260000              Human Resources                                                                           Confirmed,A,2022,4
860,Community and Housing,KISIMUL SCHOOL,847425,05-Jul-22,11109.72,0,175545,Learning Disabilities Placemnt,321017              Nursing & Residential Care Homes,A,2022,4
861,Community and Housing,KISIMUL SCHOOL,847815,05-Jul-22,11826.92,0,175545,Learning Disabilities Placemnt,321017              Nursing & Residential Care Homes,A,2022,4
862,Community and Housing,REDACTED PERSONAL DATA,855016,20-Jul-22,1781.92,0,175782,Phys/Sens Placements - East,DIRECT PAYMENTS,R,2022,4
863,Corporate Services,TWOFOLD LTD,8586,26-Jul-22,5940,990,175861,Business Systems,270000              Information Communication Technology,A,2022,4
864,Community and Housing,REDACTED PERSONAL DATA,855302,20-Jul-22,1336.44,0,175960,Learning Disabilities Placemnt,DIRECT PAYMENTS,R,2022,4
865,Community and Housing,Care for Veterans,847720,05-Jul-22,4294.28,0,176384,Phys/Sens Placements - East,321017              Nursing & Residential Care Homes,A,2022,4
866,Community and Housing,REDACTED PERSONAL DATA,854739,20-Jul-22,572.76,0,176619,Phys/Sens Placements - East,DIRECT PAYMENTS,R,2022,4
867,Community and Housing,REDACTED PERSONAL DATA,855575,20-Jul-22,5593.24,0,176783,Phys/Sens Placements - East,DIRECT PAYMENTS,R,2022,4
868,Community and Housing,REDACTED PERSONAL DATA,855510,20-Jul-22,1813.76,0,176868,Phys/Sens Placements - East,DIRECT PAYMENTS,R,2022,4
869,Community and Housing,SPRING LAKE CARE HOME LTD,847598,05-Jul-22,11418,0,177067,Learning Disabilities Placemnt,321017              Nursing & Residential Care Homes,A,2022,4
870,Community and Housing,SPRING LAKE CARE HOME LTD,847799,05-Jul-22,6468,0,177067,Learning Disabilities Placemnt,321017              Nursing & Residential Care Homes,A,2022,4
871,Community and Housing,REDACTED PERSONAL DATA,855554,20-Jul-22,652.32,0,177115,Phys/Sens Placements - East,DIRECT PAYMENTS,R,2022,4
872,"Children, Schools and Family",REDACTED PERSONAL DATA,848375,04-Jul-22,931,0,177211,Fostering Recruit/Assessment,321100              Social Community Care Supplies & Services - Children,R,2022,4
873,"Children, Schools and Family",REDACTED PERSONAL DATA,855665,19-Jul-22,931,0,177211,Fostering Recruit/Assessment,321100              Social Community Care Supplies & Services - Children,R,2022,4
874,"Children, Schools and Family",HA TUTORS LTD,INV-12508,04-Jul-22,537.6,89.6,177219,PupilPremium- Virtual School,170000              Education,A,2022,4
875,"Children, Schools and Family",HA TUTORS LTD,INV-12495,05-Jul-22,1604.4,267.4,177219,Non-Delegated Statements,170000              Education,A,2022,4
876,"Children, Schools and Family",HA TUTORS LTD,INV-12497,05-Jul-22,4687.2,781.2,177219,Non-Delegated Statements,170000              Education,A,2022,4
877,"Children, Schools and Family",HA TUTORS LTD,INV-12496,05-Jul-22,2016,336,177219,Non-Delegated Statements,170000              Education,A,2022,4
878,"Children, Schools and Family",HA TUTORS LTD,INV-12501,05-Jul-22,2255.12,375.85,177219,Non-Delegated Statements,170000              Education,A,2022,4
879,"Children, Schools and Family",HA TUTORS LTD,INV-12504,05-Jul-22,3074.4,512.4,177219,Non-Delegated Statements,170000              Education,A,2022,4
880,"Children, Schools and Family",HA TUTORS LTD,INV-12499,05-Jul-22,1932,322,177219,Non-Delegated Statements,170000              Education,A,2022,4
881,"Children, Schools and Family",HA TUTORS LTD,INV-12494,05-Jul-22,5602.8,933.8,177219,Non-Delegated Statements,170000              Education,A,2022,4
882,"Children, Schools and Family",HA TUTORS LTD,INV-12500,05-Jul-22,806.4,134.4,177219,Non-Delegated Statements,170000              Education,A,2022,4
883,"Children, Schools and Family",HA TUTORS LTD,INV-12493,05-Jul-22,4972.8,828.8,177219,Non-Delegated Statements,170000              Education,A,2022,4
884,"Children, Schools and Family",HA TUTORS LTD,INV-12503,05-Jul-22,2696.4,449.4,177219,Non-Delegated Statements,170000              Education,A,2022,4
885,"Children, Schools and Family",HA TUTORS LTD,INV-12502,05-Jul-22,520.8,86.8,177219,Non-Delegated Statements,170000              Education,A,2022,4
886,"Children, Schools and Family",HA TUTORS LTD,INV-12492,05-Jul-22,1940.4,323.4,177219,Non-Delegated Statements,170000              Education,A,2022,4
887,"Children, Schools and Family",HA TUTORS LTD,INV-12498,05-Jul-22,4832.81,805.47,177219,Non-Delegated Statements,170000              Education,A,2022,4
888,Corporate Services,EXPERT IN MIND,35415,14-Jul-22,2246.4,374.4,177342,SLLP - Disbursements,280000              Legal Services                                                                            Confirmed,A,2022,4
889,Corporate Services,EXPERT IN MIND,35567,20-Jul-22,653.64,108.94,177342,SLLP - Disbursements,280000              Legal Services                                                                            Confirmed,A,2022,4
890,Corporate Services,EXPERT IN MIND,35376,20-Jul-22,745.2,124.2,177342,SLLP - Disbursements,280000              Legal Services                                                                            Confirmed,A,2022,4
891,Corporate Services,EXPERT IN MIND,35775,28-Jul-22,2117.16,352.86,177342,SLLP - Disbursements,280000              Legal Services                                                                            Confirmed,A,2022,4
892,Community and Housing,HYTYME B AND B,26270,12-Jul-22,14352,2392,177425,Bed & Breakfast - accomm,321000              Social Community Care Supplies & Services - Adult,A,2022,4
893,Community and Housing,REDACTED PERSONAL DATA,854888,20-Jul-22,710.2,0,177453,Phys/Sens Placements - East,DIRECT PAYMENTS,R,2022,4
894,Community and Housing,REDACTED PERSONAL DATA,854856,20-Jul-22,724.72,0,177476,Learning Disabilities Placemnt,DIRECT PAYMENTS,R,2022,4
895,Community and Housing,REDACTED PERSONAL DATA,854743,20-Jul-22,1197.28,0,177502,Phys/Sens Placements - East,DIRECT PAYMENTS,R,2022,4
896,Corporate Services,HPI LIMITED,6.16E+12,18-Jul-22,603.22,100.54,177649,Local Taxation Bailiffs,200000              Financial Services,A,2022,4
897,Community and Housing,REDACTED PERSONAL DATA,855461,20-Jul-22,572.76,0,177739,Phys/Sens Placements - East,DIRECT PAYMENTS,R,2022,4
898,Community and Housing,REDACTED PERSONAL DATA,855393,20-Jul-22,668.2,0,177785,Phys/Sens Placements - East,DIRECT PAYMENTS,R,2022,4
899,Unassigned,EDENRED (UK GROUP) LTD,CV JULY 22,06-Jul-22,800.4,0,177846,Corporate Accountancy,321100              Social Community Care Supplies & Services - Children,A,2022,4
900,Unassigned,EDENRED (UK GROUP) LTD,C/V SERVCHGAUG22,22-Jul-22,800.4,0,177846,Corporate Accountancy,321100              Social Community Care Supplies & Services - Children,A,2022,4
901,Community and Housing,WORKSHOP 305,RAG154,22-Jul-22,762.6,0,177941,Learning Disabilities Placemnt,321000              Social Community Care Supplies & Services - Adult,A,2022,4
902,Community and Housing,WORKSHOP 305,IALA154,25-Jul-22,508.4,0,177941,Learning Disabilities Placemnt,321000              Social Community Care Supplies & Services - Adult,A,2022,4
903,Community and Housing,REDACTED PERSONAL DATA,854729,20-Jul-22,731.4,0,177967,Learning Disabilities Placemnt,DIRECT PAYMENTS,R,2022,4
904,Community and Housing,REDACTED PERSONAL DATA,855316,20-Jul-22,890.96,0,177999,Learning Disabilities Placemnt,DIRECT PAYMENTS,R,2022,4
905,Community and Housing,REDACTED PERSONAL DATA,855349,20-Jul-22,3784,0,178412,Learning Disabilities Placemnt,DIRECT PAYMENTS,R,2022,4
906,Community and Housing,BRAMBLEDOWN CARE HOME,847608,05-Jul-22,7033.8,0,178465,Phys/Sens Placements - East,321017              Nursing & Residential Care Homes,A,2022,4
907,Community and Housing,LOVE WALK RESIDENTIAL HOME,847606,05-Jul-22,3193,0,178620,Phys/Sens Placements - East,321017              Nursing & Residential Care Homes,A,2022,4
908,Community and Housing,KEW HOUSE,847613,05-Jul-22,3289.24,0,178621,Older People Placements - East,321017              Nursing & Residential Care Homes,A,2022,4
909,Community and Housing,KEW HOUSE,847692,05-Jul-22,5800,0,178621,Older People Placements - East,321017              Nursing & Residential Care Homes,A,2022,4
910,Community and Housing,REDACTED PERSONAL DATA,855117,20-Jul-22,919.76,0,178767,Learning Disabilities Placemnt,DIRECT PAYMENTS,R,2022,4
911,Community and Housing,REDACTED PERSONAL DATA,855343,20-Jul-22,1882.52,0,178802,Learning Disabilities Placemnt,DIRECT PAYMENTS,R,2022,4
912,Environment and Regeneration,KEL COMPUTING LTD,11602,13-Jul-22,2793.6,465.6,178858,Property Mgt & Review,270000              Information Communication Technology,A,2022,4
913,Community and Housing,REDACTED PERSONAL DATA,855168,20-Jul-22,1430.44,0,178874,Learning Disabilities Placemnt,DIRECT PAYMENTS,R,2022,4
914,Corporate Services,PENNA PLC,656358,26-Jul-22,19298.4,3216.4,179007,Director of Corporate Services,190000              Facilities & Management Services,A,2022,4
915,Community and Housing,REDACTED PERSONAL DATA,855481,20-Jul-22,1336.44,0,179049,Learning Disabilities Placemnt,DIRECT PAYMENTS,R,2022,4
916,"Children, Schools and Family",HAYS SPECIALIST RECRUITM'T LTD,1012213251,12-Jul-22,4400,733.33,179169,Policy Planning & Performance,260000              Human Resources,A,2022,4
917,"Children, Schools and Family",HAYS SPECIALIST RECRUITM'T LTD,1012213257,12-Jul-22,4620,770,179169,Policy Planning & Performance,260000              Human Resources,A,2022,4
918,Corporate Services,HAYS SPECIALIST RECRUITM'T LTD,1012268588,07-Jul-22,4246.86,707.81,179169,Corporate Accountancy,260000              Human Resources,A,2022,4
919,"Children, Schools and Family",GRAVENEY SCHOOL,GA579,15-Jul-22,14212.68,0,179267,Non-Delegated Statements,170000              Education,A,2022,4
920,Community and Housing,REDACTED PERSONAL DATA,855550,20-Jul-22,1193.28,0,179299,Older People Placements - East,DIRECT PAYMENTS,R,2022,4
921,Community and Housing,REDACTED PERSONAL DATA,855265,20-Jul-22,1739.6,0,179332,Phys/Sens Placements - East,DIRECT PAYMENTS,R,2022,4
922,Community and Housing,REDACTED PERSONAL DATA,854692,20-Jul-22,4318.6,0,179383,Learning Disabilities Placemnt,DIRECT PAYMENTS,R,2022,4
923,"Children, Schools and Family",REDACTED PERSONAL DATA,852807,08-Jul-22,745.28,0,179709,Placements Under 18,321100              Social Community Care Supplies & Services - Children,R,2022,4
924,"Children, Schools and Family",REDACTED PERSONAL DATA,859616,29-Jul-22,634.75,0,179709,Placements Under 18,321100              Social Community Care Supplies & Services - Children,R,2022,4
925,Community and Housing,ELYSIUM CARE PARTNERSHIPS LTD,847513,05-Jul-22,10202.48,0,179734,Learning Disabilities Placemnt,321017              Nursing & Residential Care Homes,A,2022,4
926,Community and Housing,ELYSIUM CARE PARTNERSHIPS LTD,847639,05-Jul-22,9049.16,0,179734,Learning Disabilities Placemnt,321017              Nursing & Residential Care Homes,A,2022,4
927,Community and Housing,ELYSIUM CARE PARTNERSHIPS LTD,847655,05-Jul-22,3462.2,0,179734,Learning Disabilities Placemnt,321017              Nursing & Residential Care Homes,A,2022,4
928,Community and Housing,ELYSIUM CARE PARTNERSHIPS LTD,847772,05-Jul-22,9821,0,179734,Learning Disabilities Placemnt,321017              Nursing & Residential Care Homes,A,2022,4
929,Community and Housing,WESTHOPE LTD,847610,05-Jul-22,5292.32,0,179748,Learning Disabilities Placemnt,321017              Nursing & Residential Care Homes,A,2022,4
930,Community and Housing,SUNNINGDALE HOUSE CARE HOME,847766,05-Jul-22,2575,0,179794,Learning Disabilities Placemnt,321017              Nursing & Residential Care Homes,A,2022,4
931,Community and Housing,SUNLIGHT HOUSE,847546,05-Jul-22,7667.6,0,179813,Learning Disabilities Placemnt,321017              Nursing & Residential Care Homes,A,2022,4
932,Community and Housing,SUNLIGHT HOUSE,847662,05-Jul-22,5140,0,179813,Learning Disabilities Placemnt,321017              Nursing & Residential Care Homes,A,2022,4
933,Capital,SUTTON STAYING PUT,3190366322,18-Jul-22,700,0,179904,Disabled Facilities Grant,200000              Financial Services,A,2022,4
934,Capital,SUTTON STAYING PUT,3190366313,18-Jul-22,583.65,97.27,179904,Disabled Facilities Grant,200000              Financial Services,A,2022,4
935,"Children, Schools and Family",STORMSAVER LTD,6020720,20-Jul-22,923.21,153.87,179980,Acacia IGC Building Management,"390000              Works - Construction, Repair & Maintenance",A,2022,4
936,Community and Housing,BHAKTI SHYAMA CARE CENTRE,847842,05-Jul-22,2985.6,0,179993,Older People Placements - East,321017              Nursing & Residential Care Homes,A,2022,4
937,"Children, Schools and Family",REAMCARE LTD,LHSRPAM072201,08-Jul-22,19457.1,0,180045,Placements Under 18,321100              Social Community Care Supplies & Services - Children Residential,A,2022,4
938,Community and Housing,REDACTED PERSONAL DATA,855512,20-Jul-22,1109.32,0,180174,Older People Placements - East,DIRECT PAYMENTS,R,2022,4
939,Community and Housing,SUNRISE DAY CARE,4236,14-Jul-22,510.24,0,180196,Older People Placements - East,321000              Social Community Care Supplies & Services - Adult,A,2022,4
940,Community and Housing,SUNRISE DAY CARE,4235,14-Jul-22,510.24,0,180196,Older People Placements - East,321000              Social Community Care Supplies & Services - Adult,A,2022,4
941,Community and Housing,SUNRISE DAY CARE,4226,14-Jul-22,637.8,0,180196,Learning Disabilities Placemnt,321000              Social Community Care Supplies & Services - Adult,A,2022,4
942,Community and Housing,SUNRISE DAY CARE,4225,14-Jul-22,510.24,0,180196,Older People Placements - East,321000              Social Community Care Supplies & Services - Adult,A,2022,4
943,Community and Housing,SUNRISE DAY CARE,4221,14-Jul-22,510.24,0,180196,Older People Placements - East,321000              Social Community Care Supplies & Services - Adult,A,2022,4
944,Community and Housing,SUNRISE DAY CARE,DP4681,14-Jul-22,3090.48,0,180196,Phys/Sens Placements - East,321000              Social Community Care Supplies & Services - Adult,A,2022,4
945,Community and Housing,SUNRISE DAY CARE,DP4680,14-Jul-22,2011.56,0,180196,Older People Placements - East,321000              Social Community Care Supplies & Services - Adult,A,2022,4
946,Community and Housing,SUNRISE DAY CARE,DP4679,14-Jul-22,538.86,0,180196,Older People Placements - East,321000              Social Community Care Supplies & Services - Adult,A,2022,4
947,Community and Housing,SUNRISE DAY CARE,DP4678,14-Jul-22,1470.32,0,180196,Older People Placements - East,321000              Social Community Care Supplies & Services - Adult,A,2022,4
948,Community and Housing,SUNRISE DAY CARE,4234,14-Jul-22,510.24,0,180196,Older People Placements - East,321000              Social Community Care Supplies & Services - Adult,A,2022,4
949,Community and Housing,REDACTED PERSONAL DATA,855357,20-Jul-22,4078.89,0,180232,Older People Placements - East,DIRECT PAYMENTS,R,2022,4
950,Community and Housing,REDACTED PERSONAL DATA,855214,20-Jul-22,509.12,0,180242,Phys/Sens Placements - East,DIRECT PAYMENTS,R,2022,4
951,Community and Housing,REDACTED PERSONAL DATA,854732,20-Jul-22,954.6,0,180282,Phys/Sens Placements - East,DIRECT PAYMENTS,R,2022,4
952,Community and Housing,REDACTED PERSONAL DATA,855328,20-Jul-22,510.24,0,180285,Older People Placements - East,DIRECT PAYMENTS,R,2022,4
953,Community and Housing,SEVACARE,55882-514140,14-Jul-22,1251,0,180307,Older People Placements - East,321000              Social Community Care Supplies & Services - Adult,A,2022,4
954,Community and Housing,SEVACARE,55882-752403,14-Jul-22,934.08,0,180307,Older People Placements - East,321000              Social Community Care Supplies & Services - Adult,A,2022,4
955,Community and Housing,SEVACARE,55882-869265,14-Jul-22,542.1,0,180307,Older People Placements - East,321000              Social Community Care Supplies & Services - Adult,A,2022,4
956,Community and Housing,SEVACARE,55882-506355,14-Jul-22,867.36,0,180307,Phys/Sens Placements - East,321000              Social Community Care Supplies & Services - Adult,A,2022,4
957,Community and Housing,SEVACARE,55882-569458,14-Jul-22,1367.76,0,180307,Phys/Sens Placements - East,321000              Social Community Care Supplies & Services - Adult,A,2022,4
958,Community and Housing,SEVACARE,55882-41998,14-Jul-22,550.44,0,180307,Phys/Sens Placements - East,321000              Social Community Care Supplies & Services - Adult,A,2022,4
959,Community and Housing,SEVACARE,55882-52108,14-Jul-22,600.48,0,180307,Learning Disabilities Placemnt,321000              Social Community Care Supplies & Services - Adult,A,2022,4
960,Community and Housing,SEVACARE,55882-505367,14-Jul-22,2301.84,0,180307,Older People Placements - East,321000              Social Community Care Supplies & Services - Adult,A,2022,4
961,Community and Housing,SEVACARE,55882-872605,14-Jul-22,617.16,0,180307,Older People Placements - East,321000              Social Community Care Supplies & Services - Adult,A,2022,4
962,Community and Housing,SEVACARE,55882-79481,14-Jul-22,1438.48,0,180307,Older People Placements - East,321000              Social Community Care Supplies & Services - Adult,A,2022,4
963,Community and Housing,SEVACARE,55882-867847,14-Jul-22,1050.84,0,180307,Older People Placements - East,321000              Social Community Care Supplies & Services - Adult,A,2022,4
964,Community and Housing,SEVACARE,55882-565513,14-Jul-22,2852.28,0,180307,Phys/Sens Placements - East,321000              Social Community Care Supplies & Services - Adult,A,2022,4
965,Community and Housing,SEVACARE,55882-78739,14-Jul-22,667.2,0,180307,Learning Disabilities Placemnt,321000              Social Community Care Supplies & Services - Adult,A,2022,4
966,Community and Housing,SEVACARE,55882-74975,14-Jul-22,1718.04,0,180307,Older People Placements - East,321000              Social Community Care Supplies & Services - Adult,A,2022,4
967,Community and Housing,SEVACARE,55882-38267,14-Jul-22,1034.16,0,180307,Older People Placements - East,321000              Social Community Care Supplies & Services - Adult,A,2022,4
968,Community and Housing,SEVACARE,55882-68278,14-Jul-22,2835.6,0,180307,Learning Disabilities Placemnt,321000              Social Community Care Supplies & Services - Adult,A,2022,4
969,Community and Housing,SEVACARE,55882-72268,14-Jul-22,1301.04,0,180307,Learning Disabilities Placemnt,321000              Social Community Care Supplies & Services - Adult,A,2022,4
970,Community and Housing,SEVACARE,55882-558717,14-Jul-22,2168.4,0,180307,Older People Placements - East,321000              Social Community Care Supplies & Services - Adult,A,2022,4
971,Community and Housing,SEVACARE,55882-732707,14-Jul-22,921.57,0,180307,Older People Placements - East,321000              Social Community Care Supplies & Services - Adult,A,2022,4
972,Community and Housing,SEVACARE,55882-654036,14-Jul-22,600.48,0,180307,Older People Placements - East,321000              Social Community Care Supplies & Services - Adult,A,2022,4
973,Community and Housing,SEVACARE,55882-871695,14-Jul-22,950.76,0,180307,Older People Placements - East,321000              Social Community Care Supplies & Services - Adult,A,2022,4
974,Community and Housing,SEVACARE,55882-503697,14-Jul-22,834,0,180307,Older People Placements - East,321000              Social Community Care Supplies & Services - Adult,A,2022,4
975,Community and Housing,SEVACARE,55882-533922,14-Jul-22,9340.8,0,180307,Older People Placements - East,321000              Social Community Care Supplies & Services - Adult,A,2022,4
976,Community and Housing,SEVACARE,MHC/20,22-Jul-22,1910.17,0,180307,Older People Placements - East,321000              Social Community Care Supplies & Services - Adult,A,2022,4
977,Community and Housing,SEVACARE,MHC/27,22-Jul-22,1041.86,0,180307,Older People Placements - East,321000              Social Community Care Supplies & Services - Adult,A,2022,4
978,Community and Housing,SEVACARE,MHC/14,22-Jul-22,628.06,0,180307,Older People Placements - East,321000              Social Community Care Supplies & Services - Adult,A,2022,4
979,Community and Housing,SEVACARE,MHC/11,22-Jul-22,1142.7,0,180307,Older People Placements - East,321000              Social Community Care Supplies & Services - Adult,A,2022,4
980,Community and Housing,SEVACARE,MHC/8,22-Jul-22,663.74,0,180307,Older People Placements - East,321000              Social Community Care Supplies & Services - Adult,A,2022,4
981,Community and Housing,SEVACARE,MHC/12,22-Jul-22,758.52,0,180307,Older People Placements - East,321000              Social Community Care Supplies & Services - Adult,A,2022,4
982,Community and Housing,SEVACARE,MHC/22,22-Jul-22,2136.4,0,180307,Older People Placements - East,321000              Social Community Care Supplies & Services - Adult,A,2022,4
983,Corporate Services,NETWORK SOLUTIONS INC,LBM227,28-Jul-22,1194,199,180382,Safety Services,270000              Information Communication Technology,A,2022,4
984,"Children, Schools and Family",BURNTWOOD SCHOOL,BTWD000660,11-Jul-22,18006.21,0,180406,Non-Delegated Statements,170000              Education,A,2022,4
985,Environment and Regeneration,UK Power Networks (Faults / Operations),92120385,28-Jul-22,1764,294,180431,Traffic Signs,190000              Facilities & Management Services,A,2022,4
986,Corporate Services,RESTORE PLC,1268604,18-Jul-22,651.48,108.58,180441,Legal Shared Service,190000              Facilities & Management Services,A,2022,4
987,"Children, Schools and Family",RESTORE PLC,1265073,01-Aug-22,744.43,124.07,180441,Head of CSC & Youth Inclusion,190000              Facilities & Management Services,A,2022,4
988,Community and Housing,REDACTED PERSONAL DATA,855474,20-Jul-22,1320.52,0,180447,Older People Placements - East,DIRECT PAYMENTS,R,2022,4
989,Community and Housing,REDACTED PERSONAL DATA,855520,20-Jul-22,500.96,0,180478,Phys/Sens Placements - East,DIRECT PAYMENTS,R,2022,4
990,Corporate Services,ZYLPHA LIMITED,INV-3043,26-Jul-22,15084.9,2514.15,180532,Legal Shared Service,270000              Information Communication Technology                                                      Confirmed,A,2022,4
991,"Children, Schools and Family",Carshalton High School for Girls,CASI100,06-Jul-22,2620.66,0,180576,Non-Delegated Statements,170000              Education,A,2022,4
992,"Children, Schools and Family",Carshalton High School for Girls,CASI99,06-Jul-22,5335.58,0,180576,Non-Delegated Statements,170000              Education,A,2022,4
993,"Children, Schools and Family",REDACTED PERSONAL DATA,859803,29-Jul-22,955.97,0,180579,UASC LAC Under 18,321100              Social Community Care Supplies & Services - Children,R,2022,4
994,"Children, Schools and Family",BRIGHTER FUTURES FOSTER CARE,390457,07-Jul-22,3257.1,0,180716,Placements Under 18,321100              Social Community Care Supplies & Services - Children,A,2022,4
995,Community and Housing,REDACTED PERSONAL DATA,855344,20-Jul-22,1030.16,0,180793,Phys/Sens Placements - East,DIRECT PAYMENTS,R,2022,4
996,Unassigned,LOVE WIMBLEDON LTD BUS.IMP.DIS,4557,18-Jul-22,124047.53,20674.59,180802,Corporate Services,200000              Financial Services,A,2022,4
997,Unassigned,LOVE WIMBLEDON LTD BUS.IMP.DIS,4559,25-Jul-22,25995.04,4332.51,180802,Corporate Services,200000              Financial Services,A,2022,4
998,Community and Housing,REDACTED PERSONAL DATA,855274,20-Jul-22,763.68,0,180804,Learning Disabilities Placemnt,DIRECT PAYMENTS,R,2022,4
999,"Children, Schools and Family",FIVE RIVERS CHILD CARE,96121,22-Jul-22,6214.28,0,180823,Placements Under 18,360000              Passenger Transport                                                                       Confirmed,A,2022,4
1000,Community and Housing,REDACTED PERSONAL DATA,858356,25-Jul-22,749.28,0,180839,LD Housing Support Placements,321000              Social Community Care Supplies & Services - Adult,R,2022,4
1001,Community and Housing,REDACTED PERSONAL DATA,855040,20-Jul-22,576.72,0,180866,Phys/Sens Placements - East,DIRECT PAYMENTS,R,2022,4
1002,Community and Housing,REDACTED PERSONAL DATA,855083,20-Jul-22,1336.44,0,180866,Phys/Sens Placements - East,DIRECT PAYMENTS,R,2022,4
1003,Community and Housing,REDACTED PERSONAL DATA,854982,20-Jul-22,2156,0,180889,Older People Placements - East,DIRECT PAYMENTS,R,2022,4
1004,Community and Housing,SENAD ECCLESBOURNE LODGE,847451,05-Jul-22,9810.88,0,180904,Learning Disabilities Placemnt,321017              Nursing & Residential Care Homes,A,2022,4
1005,Corporate Services,SPECIALIST COMPUTER CENT. PLC,OP/N203848,29-Jul-22,1092.36,182.06,180940,Legal Shared Service,270000              Information Communication Technology,A,2022,4
1006,Community and Housing,REDACTED PERSONAL DATA,854910,20-Jul-22,890.96,0,180999,Older People Placements - East,DIRECT PAYMENTS,R,2022,4
1007,Environment and Regeneration,PREMIER MINICAB SER. UK LTD,60449,11-Jul-22,3168,528,181053,Passenger Transport,360000              Passenger Transport,A,2022,4
1008,Environment and Regeneration,PREMIER MINICAB SER. UK LTD,59908,11-Jul-22,2916,486,181053,Passenger Transport,360000              Passenger Transport,A,2022,4
1009,Corporate Services,BLAKEDOWN LANDSCAPES (SE) LTD,L12096,11-Jul-22,1877.93,312.99,181127,Buildings Maintenance,240000              Horticultural,C,2022,4
1010,Community and Housing,REDACTED PERSONAL DATA,855229,20-Jul-22,3238.48,0,181128,Older People Placements - East,DIRECT PAYMENTS,R,2022,4
1011,Community and Housing,REDACTED PERSONAL DATA,855212,20-Jul-22,2227.4,0,181129,Older People Placements - East,DIRECT PAYMENTS,R,2022,4
1012,Community and Housing,Community Equipment Services,9100000619,18-Jul-22,630,105,181238,Pooled Equipment,410000              Social Community Care Supplies & Services,A,2022,4
1013,Community and Housing,Community Equipment Services,9100000621,21-Jul-22,621090,103515,181238,Pooled Equipment,410000              Social Community Care Supplies & Services,A,2022,4
1014,Community and Housing,REDACTED PERSONAL DATA,855329,20-Jul-22,1400.08,0,181418,Phys/Sens Placements - East,DIRECT PAYMENTS,R,2022,4
1015,Corporate Services, LoCTA Limited,B10072,12-Jul-22,3780,630,181509,Local Taxation Services,270000              Information Communication Technology,A,2022,4
1016,Corporate Services,PSW PAPER AND PRINT LTD,INV110650,01-Aug-22,719.84,119.98,181895,PrintUnit-HighVolPhtcopying,190000              Facilities & Management Services,A,2022,4
1017,"Children, Schools and Family",LOVE LANE DAY NURSERY,2,27-Jul-22,1367,0,181933,Non-Delegated Statements,200000              Financial Services,A,2022,4
1018,Environment and Regeneration,METIS CONSULTANTS LIMITED,3619,22-Jul-22,1950,325,181960,TRAF & HWYS CAPITAL PROJECTS,150000              Consultancy,A,2022,4
1019,Environment and Regeneration,METIS CONSULTANTS LIMITED,3388,06-Jul-22,3900,650,181960,TRAF & HWYS CAPITAL PROJECTS,150000              Consultancy,A,2022,4
1020,Environment and Regeneration,METIS CONSULTANTS LIMITED,3394,07-Jul-22,3600,600,181960,Highways Maintenance,150000              Consultancy,A,2022,4
1021,Community and Housing,REDACTED PERSONAL DATA,854839,20-Jul-22,519.52,0,182083,Learning Disabilities Placemnt,DIRECT PAYMENTS,R,2022,4
1022,Environment and Regeneration,NOAH'S ARK ENVIRONMENTAL SERV.,MT062022,25-Jul-22,1515.6,252.6,182143,Dog Control,180000              Environmental Services,A,2022,4
1023,Community and Housing,REDACTED PERSONAL DATA,854942,20-Jul-22,954.6,0,182317,Phys/Sens Placements - East,DIRECT PAYMENTS,R,2022,4
1024,Community and Housing,REDACTED PERSONAL DATA,854959,20-Jul-22,4454.8,0,182348,Older People Placements - East,DIRECT PAYMENTS,R,2022,4
1025,Corporate Services,PLEX DISPLAY LIMITED,281288,01-Aug-22,590.28,98.38,182403,Printing,190000              Facilities & Management Services,A,2022,4
1026,Community and Housing,BIRKIN CLEANING SERVICES LTD,24626,27-Jul-22,1840.44,306.74,182414,All Saints Day Centre,130000              Cleaning & Janitorial,A,2022,4
1027,"Children, Schools and Family",BIRKIN CLEANING SERVICES LTD,24624,27-Jul-22,1950.46,325.08,182414,Steers Mead BuildingManagement,130000              Cleaning & Janitorial,A,2022,4
1028,Corporate Services,BIRKIN CLEANING SERVICES LTD,24668,21-Jul-22,23443.57,3907.26,182414,Corporate Contracts - FM,130000              Cleaning & Janitorial,A,2022,4
1029,Community and Housing,BIRKIN CLEANING SERVICES LTD,21612,27-Jul-22,1544.29,257.38,182414,Morden Library,130000              Cleaning & Janitorial,A,2022,4
1030,Corporate Services,BIRKIN CLEANING SERVICES LTD,23533,21-Jul-22,4281.34,713.56,182414,Corporate Contracts - FM,130000              Cleaning & Janitorial,A,2022,4
1031,Environment and Regeneration,BIRKIN CLEANING SERVICES LTD,24135,01-Jul-22,599.63,99.94,182414,Durnsford industrial estate,130000              Cleaning & Janitorial,A,2022,4
1032,"Children, Schools and Family",BIRKIN CLEANING SERVICES LTD,25045,01-Jul-22,1302.7,217.12,182414,Brightwell,130000              Cleaning & Janitorial,A,2022,4
1033,Community and Housing,BIRKIN CLEANING SERVICES LTD,25046,01-Jul-22,1314.83,219.14,182414,Donald Hope Library,130000              Cleaning & Janitorial,A,2022,4
1034,Community and Housing,BIRKIN CLEANING SERVICES LTD,25040,14-Jul-22,1962.97,327.16,182414,JMC  Day Centre,130000              Cleaning & Janitorial,A,2022,4
1035,Community and Housing,BIRKIN CLEANING SERVICES LTD,25033,14-Jul-22,1920.73,320.12,182414,Pollards Hill Library,130000              Cleaning & Janitorial,A,2022,4
1036,Environment and Regeneration,BIRKIN CLEANING SERVICES LTD,25028,15-Jul-22,632.6,105.43,182414,Durnsford industrial estate,130000              Cleaning & Janitorial,A,2022,4
1037,Corporate Services,BIRKIN CLEANING SERVICES LTD,25026,15-Jul-22,1312.31,218.72,182414,Corporate Contracts - FM,130000              Cleaning & Janitorial,A,2022,4
1038,Community and Housing,BIRKIN CLEANING SERVICES LTD,25034,15-Jul-22,950.88,158.48,182414,Raynes Park Library,130000              Cleaning & Janitorial,A,2022,4
1039,"Children, Schools and Family",BIRKIN CLEANING SERVICES LTD,25036,15-Jul-22,683.54,113.92,182414,Merton Youth Centres.,130000              Cleaning & Janitorial,A,2022,4
1040,Community and Housing,BIRKIN CLEANING SERVICES LTD,25032,15-Jul-22,1585.7,264.28,182414,Mitcham Library,130000              Cleaning & Janitorial,A,2022,4
1041,Environment and Regeneration,BIRKIN CLEANING SERVICES LTD,25027,15-Jul-22,2894.94,482.49,182414,Vestry Hall,130000              Cleaning & Janitorial,A,2022,4
1042,Corporate Services,BIRKIN CLEANING SERVICES LTD,25025,15-Jul-22,2213.82,368.97,182414,Corporate Contracts - FM,130000              Cleaning & Janitorial,A,2022,4
1043,Corporate Services,BIRKIN CLEANING SERVICES LTD,25029,15-Jul-22,7869.83,1311.64,182414,Corporate Contracts - FM,130000              Cleaning & Janitorial,A,2022,4
1044,Corporate Services,BIRKIN CLEANING SERVICES LTD,25023,15-Jul-22,24732.96,4122.16,182414,Corporate Contracts - FM,130000              Cleaning & Janitorial,A,2022,4
1045,Environment and Regeneration,BIRKIN CLEANING SERVICES LTD,25379,15-Jul-22,632.6,105.43,182414,Durnsford industrial estate,130000              Cleaning & Janitorial,A,2022,4
1046,Corporate Services,BIRKIN CLEANING SERVICES LTD,25377,15-Jul-22,1312.31,218.72,182414,Corporate Contracts - FM,130000              Cleaning & Janitorial,A,2022,4
1047,Community and Housing,BIRKIN CLEANING SERVICES LTD,25390,15-Jul-22,697.76,116.29,182414,Eastway Day Centre,130000              Cleaning & Janitorial,A,2022,4
1048,Community and Housing,BIRKIN CLEANING SERVICES LTD,25386,15-Jul-22,558.96,93.16,182414,West Barnes Lib,130000              Cleaning & Janitorial,A,2022,4
1049,Community and Housing,BIRKIN CLEANING SERVICES LTD,25385,15-Jul-22,950.88,158.48,182414,Raynes Park Library,130000              Cleaning & Janitorial,A,2022,4
1050,Community and Housing,BIRKIN CLEANING SERVICES LTD,25382,15-Jul-22,966.26,161.04,182414,Wimbledon Library,130000              Cleaning & Janitorial,A,2022,4
1051,"Children, Schools and Family",BIRKIN CLEANING SERVICES LTD,25387,15-Jul-22,683.54,113.92,182414,Merton Youth Centres.,130000              Cleaning & Janitorial,A,2022,4
1052,Community and Housing,BIRKIN CLEANING SERVICES LTD,25383,15-Jul-22,1585.7,264.28,182414,Mitcham Library,130000              Cleaning & Janitorial,A,2022,4
1053,Community and Housing,BIRKIN CLEANING SERVICES LTD,25375,15-Jul-22,1629.23,271.54,182414,Morden Library,130000              Cleaning & Janitorial,A,2022,4
1054,Environment and Regeneration,BIRKIN CLEANING SERVICES LTD,25378,15-Jul-22,2894.94,482.49,182414,Vestry Hall,130000              Cleaning & Janitorial,A,2022,4
1055,Corporate Services,BIRKIN CLEANING SERVICES LTD,25380,15-Jul-22,7869.83,1311.64,182414,Corporate Contracts - FM,130000              Cleaning & Janitorial,A,2022,4
1056,Community and Housing,BIRKIN CLEANING SERVICES LTD,25389,15-Jul-22,1941.66,323.61,182414,All Saints Day Centre,130000              Cleaning & Janitorial,A,2022,4
1057,Corporate Services,BIRKIN CLEANING SERVICES LTD,25374,18-Jul-22,24732.96,4122.16,182414,Corporate Contracts - FM,130000              Cleaning & Janitorial,A,2022,4
1058,Community and Housing,BIRKIN CLEANING SERVICES LTD,25381,15-Jul-22,3193.69,532.28,182414,Wimbledon Library,130000              Cleaning & Janitorial,A,2022,4
1059,Community and Housing,BIRKIN CLEANING SERVICES LTD,25384,15-Jul-22,1920.73,320.12,182414,Pollards Hill Library,130000              Cleaning & Janitorial,A,2022,4
1060,Environment and Regeneration,BIRKIN CLEANING SERVICES LTD,25397,15-Jul-22,817.45,136.24,182414,Transport-Contract Hire,130000              Cleaning & Janitorial,A,2022,4
1061,Community and Housing,BIRKIN CLEANING SERVICES LTD,25398,15-Jul-22,1668.67,278.11,182414,Highpath (DayCentre) Leyton Rd,130000              Cleaning & Janitorial,A,2022,4
1062,"Children, Schools and Family",BIRKIN CLEANING SERVICES LTD,25392,18-Jul-22,1334.64,222.44,182414,Acacia IGC Building Management,130000              Cleaning & Janitorial,A,2022,4
1063,"Children, Schools and Family",BIRKIN CLEANING SERVICES LTD,25394,20-Jul-22,1302.7,217.12,182414,Brightwell,130000              Cleaning & Janitorial,A,2022,4
1064,Community and Housing,BIRKIN CLEANING SERVICES LTD,25395,20-Jul-22,1314.83,219.14,182414,Donald Hope Library,130000              Cleaning & Janitorial,A,2022,4
1065,"Children, Schools and Family",BIRKIN CLEANING SERVICES LTD,25393,18-Jul-22,683.65,113.94,182414,Adventure Playground Project,130000              Cleaning & Janitorial,A,2022,4
1066,Community and Housing,BIRKIN CLEANING SERVICES LTD,25391,18-Jul-22,1962.97,327.16,182414,JMC  Day Centre,130000              Cleaning & Janitorial,A,2022,4
1067,"Children, Schools and Family",BIRKIN CLEANING SERVICES LTD,25043,20-Jul-22,2057.74,342.96,182414,Steers Mead BuildingManagement,130000              Cleaning & Janitorial,A,2022,4
1068,"Children, Schools and Family",BIRKIN CLEANING SERVICES LTD,25450,20-Jul-22,2233.45,372.24,182414,Steers Mead BuildingManagement,130000              Cleaning & Janitorial,A,2022,4
1069,"Children, Schools and Family",BIRKIN CLEANING SERVICES LTD,25044,20-Jul-22,654.77,109.13,182414,London Road BuildingManagement,130000              Cleaning & Janitorial,A,2022,4
1070,Corporate Services,BIRKIN CLEANING SERVICES LTD,25376,20-Jul-22,2213.82,368.97,182414,Corporate Contracts - FM,130000              Cleaning & Janitorial,A,2022,4
1071,Environment and Regeneration,BIRKIN CLEANING SERVICES LTD,25048,21-Jul-22,817.45,136.24,182414,Transport-Contract Hire,130000              Cleaning & Janitorial,A,2022,4
1072,"Children, Schools and Family",BIRKIN CLEANING SERVICES LTD,25041,21-Jul-22,1334.64,222.44,182414,Acacia IGC Building Management,130000              Cleaning & Janitorial,A,2022,4
1073,Community and Housing,BIRKIN CLEANING SERVICES LTD,25039,21-Jul-22,697.76,116.29,182414,Eastway Day Centre,130000              Cleaning & Janitorial,A,2022,4
1074,"Children, Schools and Family",BIRKIN CLEANING SERVICES LTD,25037,21-Jul-22,679.97,113.33,182414,Merton Youth Centres.,130000              Cleaning & Janitorial,A,2022,4
1075,Community and Housing,BIRKIN CLEANING SERVICES LTD,25031,21-Jul-22,966.26,161.04,182414,Wimbledon Library,130000              Cleaning & Janitorial,A,2022,4
1076,"Children, Schools and Family",BIRKIN CLEANING SERVICES LTD,25042,21-Jul-22,683.65,113.94,182414,Adventure Playground Project,130000              Cleaning & Janitorial,A,2022,4
1077,Community and Housing,BIRKIN CLEANING SERVICES LTD,25024,21-Jul-22,1629.23,271.54,182414,Morden Library,130000              Cleaning & Janitorial,A,2022,4
1078,Community and Housing,BIRKIN CLEANING SERVICES LTD,25049,21-Jul-22,1668.67,278.11,182414,Highpath (DayCentre) Leyton Rd,130000              Cleaning & Janitorial,A,2022,4
1079,Community and Housing,BIRKIN CLEANING SERVICES LTD,25038,21-Jul-22,1941.66,323.61,182414,All Saints Day Centre,130000              Cleaning & Janitorial,A,2022,4
1080,Community and Housing,BIRKIN CLEANING SERVICES LTD,25030,21-Jul-22,3193.69,532.28,182414,Wimbledon Library,130000              Cleaning & Janitorial,A,2022,4
1081,Corporate Services,BIRKIN CLEANING SERVICES LTD,2000002641,22-Jul-22,4095.17,682.53,182414,Corporate Contracts - FM,130000              Cleaning & Janitorial,A,2022,4
1082,Community and Housing,VENTURE HOUSING(LONDON)LTD,VHG/A313520,15-Jul-22,21878,0,182482,Bed & Breakfast - accomm,321000              Social Community Care Supplies & Services - Adult,A,2022,4
1083,"Children, Schools and Family",REDACTED PERSONAL DATA,859575,29-Jul-22,684,0,182558,UASC LAC Under 18,321100              Social Community Care Supplies & Services - Children,R,2022,4
1084,"Children, Schools and Family",REDACTED PERSONAL DATA,859607,29-Jul-22,684,0,182558,Placements Under 18,321100              Social Community Care Supplies & Services - Children,R,2022,4
1085,Community and Housing,REDACTED PERSONAL DATA,855119,20-Jul-22,1877.4,0,182584,Phys/Sens Placements - East,DIRECT PAYMENTS,R,2022,4
1086,"Children, Schools and Family",REDACTED PERSONAL DATA,848061,01-Jul-22,695.22,0,182648,Placements Under 18,321100              Social Community Care Supplies & Services - Children,R,2022,4
1087,"Children, Schools and Family",REDACTED PERSONAL DATA,852848,08-Jul-22,695.22,0,182648,Placements Under 18,321100              Social Community Care Supplies & Services - Children,R,2022,4
1088,"Children, Schools and Family",REDACTED PERSONAL DATA,854622,15-Jul-22,695.22,0,182648,Placements Under 18,321100              Social Community Care Supplies & Services - Children,R,2022,4
1089,"Children, Schools and Family",REDACTED PERSONAL DATA,858003,21-Jul-22,695.22,0,182648,Placements Under 18,321100              Social Community Care Supplies & Services - Children,R,2022,4
1090,"Children, Schools and Family",REDACTED PERSONAL DATA,859655,29-Jul-22,895.22,0,182648,Placements Under 18,321100              Social Community Care Supplies & Services - Children,R,2022,4
1091,Community and Housing,REDACTED PERSONAL DATA,855600,20-Jul-22,5223.56,0,182894,Learning Disabilities Placemnt,DIRECT PAYMENTS,R,2022,4
1092,Community and Housing,REDACTED PERSONAL DATA,854951,20-Jul-22,4103.12,0,183167,Older People Placements - East,DIRECT PAYMENTS,R,2022,4
1093,Community and Housing,ST ANTONYS CARE HOME,847545,05-Jul-22,2838.12,0,183206,Older People Placements - East,321017              Nursing & Residential Care Homes,A,2022,4
1094,Community and Housing,ST ANTONYS CARE HOME,847558,05-Jul-22,2838.12,0,183206,Older People Placements - East,321017              Nursing & Residential Care Homes,A,2022,4
1095,Community and Housing,ST ANTONYS CARE HOME,847776,05-Jul-22,3071.12,0,183206,Older People Placements - East,321017              Nursing & Residential Care Homes,A,2022,4
1096,Community and Housing,ST ANTONYS CARE HOME,847838,05-Jul-22,2617.84,0,183206,Older People Placements - East,321017              Nursing & Residential Care Homes,A,2022,4
1097,Community and Housing,ST ANTONYS CARE HOME,849808,05-Jul-22,678.57,0,183206,Older People Placements - East,321017              Nursing & Residential Care Homes,A,2022,4
1098,Community and Housing,REDACTED PERSONAL DATA,854915,20-Jul-22,1170.44,0,183460,Learning Disabilities Placemnt,DIRECT PAYMENTS,R,2022,4
1099,Community and Housing,REDACTED PERSONAL DATA,854719,20-Jul-22,795.52,0,183464,Phys/Sens Placements - East,DIRECT PAYMENTS,R,2022,4
1100,Community and Housing,CREST MANOR LTD,CM0768,12-Jul-22,7807.5,0,183548,Bed & Breakfast - accomm,250000              Housing Management,A,2022,4
1101,"Children, Schools and Family",REDACTED PERSONAL DATA,853114,12-Jul-22,530.1,0,183558,Child Disabilities - Placement,CSF-DIRECT PAYMENTS,R,2022,4
1102,"Children, Schools and Family",REDACTED PERSONAL DATA,856787,21-Jul-22,1368,0,183558,Child Disabilities - Placement,CSF-DIRECT PAYMENTS,R,2022,4
1103,Community and Housing,Kent House Care Home,847714,05-Jul-22,2884,0,183560,Older People Placements - East,321017              Nursing & Residential Care Homes,A,2022,4
1104,Environment and Regeneration,GAZPROM MARKETING AND TRADING LTD,INV02376465,19-Jul-22,4215.5,702.58,183658,Leisure Centres - Client Side,370000              Utilities,A,2022,4
1105,Environment and Regeneration,SCOTTISH POWER,108299819,11-Jul-22,517.76,24.66,183660,Street Lighting,370000              Utilities,A,2022,4
1106,Corporate Services,SCOTTISH POWER,108298394,13-Jul-22,36596.89,6019.38,183660,Utilities Recharge,370000              Utilities,A,2022,4
1107,Environment and Regeneration,SCOTTISH POWER,108201579,13-Jul-22,198464.04,33077.34,183660,Street Lighting,370000              Utilities,A,2022,4
1108,Environment and Regeneration,SCOTTISH POWER,108351138,19-Jul-22,1636.75,77.94,183660,Street Lighting,370000              Utilities,A,2022,4
1109,"Children, Schools and Family",SOUTHAMPTON UNIVERSITY,44261676,28-Jul-22,35000,0,183682, Education Psychology,260000              Human Resources,A,2022,4
1110,"Children, Schools and Family",SOUTHAMPTON UNIVERSITY,44261675,28-Jul-22,35000,0,183682, Education Psychology,260000              Human Resources,A,2022,4
1111,Community and Housing,REDACTED PERSONAL DATA,855383,20-Jul-22,890.96,0,183690,Older People Placements - East,DIRECT PAYMENTS,R,2022,4
1112,Corporate Services,HSBC INVOICE FINANCE (UK) LTD,31150,28-Jul-22,826.24,137.71,183697,Local Taxation Bailiffs,140000              Clothing,A,2022,4
1113,Community and Housing,HOUNSLOW AND RICHM'D COMM H'CARE,HI21009,25-Jul-22,16617.5,0,183949,PH - Prevention,310000              Healthcare,A,2022,4
1114,Community and Housing,REDACTED PERSONAL DATA,855596,20-Jul-22,679.2,0,184011,Older People Placements - East,DIRECT PAYMENTS,R,2022,4
1115,Community and Housing,NHS MERTON CCG,847588,12-Jul-22,1620,0,184012,Mental Health Placements,310000              Healthcare,A,2022,4
1116,Community and Housing,NHS MERTON CCG,847674,12-Jul-22,3462.48,0,184012,Mental Health Placements,310000              Healthcare,A,2022,4
1117,"Children, Schools and Family",LEXTOX,260066,15-Jul-22,549.6,91.6,184053,Child Disabilities - Placement,280000              Legal Services,A,2022,4
1118,Community and Housing,REDACTED PERSONAL DATA,855213,20-Jul-22,2542.08,0,184175,Older People Placements - East,DIRECT PAYMENTS,R,2022,4
1119,Community and Housing,CROWNWISE LTD,SH/167/088,19-Jul-22,2437.5,0,184360,Mental Health Placements,321000              Social Community Care Supplies & Services - Adult,A,2022,4
1120,Community and Housing,CROWNWISE LTD,MP/167/102,19-Jul-22,1450,0,184360,Mental Health Placements,321000              Social Community Care Supplies & Services - Adult,A,2022,4
1121,Community and Housing,MARIAN HOUSE NURSING HOME,847492,05-Jul-22,2834.56,0,184385,Older People Placements - East,321017              Nursing & Residential Care Homes,A,2022,4
1122,"Children, Schools and Family",REDACTED PERSONAL DATA,852850,08-Jul-22,863.67,0,184386,Placements Under 18,321100              Social Community Care Supplies & Services - Children,R,2022,4
1123,"Children, Schools and Family",REDACTED PERSONAL DATA,854624,15-Jul-22,549.61,0,184386,Placements Under 18,321100              Social Community Care Supplies & Services - Children,R,2022,4
1124,"Children, Schools and Family",REDACTED PERSONAL DATA,858005,21-Jul-22,549.61,0,184386,Placements Under 18,321100              Social Community Care Supplies & Services - Children,R,2022,4
1125,"Children, Schools and Family",REDACTED PERSONAL DATA,859647,29-Jul-22,634.75,0,184386,Placements Under 18,321100              Social Community Care Supplies & Services - Children,R,2022,4
1126,"Children, Schools and Family",REDACTED PERSONAL DATA,859657,29-Jul-22,749.61,0,184386,Placements Under 18,321100              Social Community Care Supplies & Services - Children,R,2022,4
1127,Community and Housing,REDACTED PERSONAL DATA,855272,20-Jul-22,4109.84,0,184580,Older People Placements - East,DIRECT PAYMENTS,R,2022,4
1128,Community and Housing,REDACTED PERSONAL DATA,855094,20-Jul-22,802.6,0,184608,Older People Placements - East,DIRECT PAYMENTS,R,2022,4
1129,Corporate Services,SEARCHFLOW LTD,INV9208399,27-Jul-22,554.26,86.38,184757,SLLP - Disbursements,190000              Facilities & Management Services,A,2022,4
1130,Corporate Services,SEARCHFLOW LTD,INV9163681,14-Jul-22,548.45,91.41,184757,SLLP - Disbursements,190000              Facilities & Management Services,A,2022,4
1131,Community and Housing,SK HOUSING LTD,6032,12-Jul-22,7610.4,1268.4,184774,Bed & Breakfast - accomm,321000              Social Community Care Supplies & Services - Adult,A,2022,4
1132,Community and Housing,CROHAM PLACE,847444,05-Jul-22,9007.52,0,184807,Learning Disabilities Placemnt,321017              Nursing & Residential Care Homes,A,2022,4
1133,Community and Housing,REDACTED PERSONAL DATA,854859,20-Jul-22,898.32,0,184819,Older People Placements - East,DIRECT PAYMENTS,R,2022,4
1134,"Children, Schools and Family",HIGHER LEVEL CARE (HLC) LTD,13984,08-Jul-22,1900,0,184822,UASC Care Leavers Over 18,321100              Social Community Care Supplies & Services - Children Residential,A,2022,4
1135,"Children, Schools and Family",HIGHER LEVEL CARE (HLC) LTD,13987,08-Jul-22,2357.1,0,184822,UASC Care Leavers Over 18,321100              Social Community Care Supplies & Services - Children Residential,A,2022,4
1136,"Children, Schools and Family",HIGHER LEVEL CARE (HLC) LTD,13986,08-Jul-22,3717.85,0,184822,Placements Under 18,321100              Social Community Care Supplies & Services - Children Residential,A,2022,4
1137,"Children, Schools and Family",HIGHER LEVEL CARE (HLC) LTD,13986A,08-Jul-22,3717.65,0,184822,Placements Under 18,321100              Social Community Care Supplies & Services - Children Residential,A,2022,4
1138,"Children, Schools and Family",HIGHER LEVEL CARE (HLC) LTD,13983,08-Jul-22,2357.1,0,184822,UASC Care Leavers Over 18,321100              Social Community Care Supplies & Services - Children Residential,A,2022,4
1139,"Children, Schools and Family",HIGHER LEVEL CARE (HLC) LTD,13981,08-Jul-22,1928.57,0,184822,UASC Care Leavers Over 18,321100              Social Community Care Supplies & Services - Children Residential,A,2022,4
1140,Community and Housing,QUARTZ PROPERTIES,LBM105,12-Jul-22,10297.7,0,184919,Bed & Breakfast - accomm,321000              Social Community Care Supplies & Services - Adult,A,2022,4
1141,Community and Housing,REDACTED PERSONAL DATA,854963,20-Jul-22,572.76,0,184950,Phys/Sens Placements - East,DIRECT PAYMENTS,R,2022,4
1142,Community and Housing,LONDON CARE LTD,016-5177416,15-Jul-22,4454.8,0,185026,Older People Placements - East,321000              Social Community Care Supplies & Services - Adult,A,2022,4
1143,Community and Housing,LONDON CARE LTD,1111/28,20-Jul-22,627.41,0,185026,Older People Placements - East,321000              Social Community Care Supplies & Services - Adult,A,2022,4
1144,Community and Housing,LONDON CARE LTD,1111/18,20-Jul-22,2650.02,0,185026,Older People Placements - East,321000              Social Community Care Supplies & Services - Adult,A,2022,4
1145,Community and Housing,LONDON CARE LTD,1111/17,20-Jul-22,724.2,0,185026,Older People Placements - East,321000              Social Community Care Supplies & Services - Adult,A,2022,4
1146,Community and Housing,LONDON CARE LTD,1111/40,20-Jul-22,1976.5,0,185026,Older People Placements - East,321000              Social Community Care Supplies & Services - Adult,A,2022,4
1147,Community and Housing,LONDON CARE LTD,1111/23,20-Jul-22,800.78,0,185026,Older People Placements - East,321000              Social Community Care Supplies & Services - Adult,A,2022,4
1148,Community and Housing,LONDON CARE LTD,1111/39,20-Jul-22,929.86,0,185026,Older People Placements - East,321000              Social Community Care Supplies & Services - Adult,A,2022,4
1149,Community and Housing,LONDON CARE LTD,1111/22,20-Jul-22,727.97,0,185026,Older People Placements - East,321000              Social Community Care Supplies & Services - Adult,A,2022,4
1150,Community and Housing,LONDON CARE LTD,1111/34,20-Jul-22,801.75,0,185026,Older People Placements - East,321000              Social Community Care Supplies & Services - Adult,A,2022,4
1151,Community and Housing,LONDON CARE LTD,1111/44,20-Jul-22,741.03,0,185026,Older People Placements - East,321000              Social Community Care Supplies & Services - Adult,A,2022,4
1152,Community and Housing,LONDON CARE LTD,1111/42,20-Jul-22,1001.66,0,185026,Older People Placements - East,321000              Social Community Care Supplies & Services - Adult,A,2022,4
1153,Community and Housing,LONDON CARE LTD,1111/1,20-Jul-22,899.25,0,185026,Older People Placements - East,321000              Social Community Care Supplies & Services - Adult,A,2022,4
1154,Community and Housing,LONDON CARE LTD,1111/14,20-Jul-22,740.92,0,185026,Older People Placements - East,321000              Social Community Care Supplies & Services - Adult,A,2022,4
1155,Community and Housing,LONDON CARE LTD,1111/31,20-Jul-22,1259.92,0,185026,Older People Placements - East,321000              Social Community Care Supplies & Services - Adult,A,2022,4
1156,Community and Housing,LONDON CARE LTD,1111/4,20-Jul-22,1387.07,0,185026,Older People Placements - East,321000              Social Community Care Supplies & Services - Adult,A,2022,4
1157,Community and Housing,LONDON CARE LTD,1111/47,20-Jul-22,2148.71,0,185026,Older People Placements - East,321000              Social Community Care Supplies & Services - Adult,A,2022,4
1158,Community and Housing,LONDON CARE LTD,1111/32,20-Jul-22,629.93,0,185026,Older People Placements - East,321000              Social Community Care Supplies & Services - Adult,A,2022,4
1159,Community and Housing,LONDON CARE LTD,1111/20,20-Jul-22,511.44,0,185026,Phys/Sens Placements - East,321000              Social Community Care Supplies & Services - Adult,A,2022,4
1160,Community and Housing,LONDON CARE LTD,1111/21,20-Jul-22,877.7,0,185026,Older People Placements - East,321000              Social Community Care Supplies & Services - Adult,A,2022,4
1161,Community and Housing,LONDON CARE LTD,1111/43,20-Jul-22,598.28,0,185026,Older People Placements - East,321000              Social Community Care Supplies & Services - Adult,A,2022,4
1162,Community and Housing,LONDON CARE LTD,1111/35,20-Jul-22,1036.37,0,185026,Older People Placements - East,321000              Social Community Care Supplies & Services - Adult,A,2022,4
1163,Community and Housing,REDACTED PERSONAL DATA,854749,20-Jul-22,1877.4,0,185066,Older People Placements - East,DIRECT PAYMENTS,R,2022,4
1164,Community and Housing,CHELSEA AND WESTMINSTER HOSPITAL,N0049733,06-Jul-22,766.17,0,185106,PH - Sexual Health,310000              Healthcare,A,2022,4
1165,Community and Housing,CHELSEA AND WESTMINSTER HOSPITAL,N0049279,22-Jul-22,17383.05,0,185106,PH - Sexual Health,310000              Healthcare,A,2022,4
1166,Community and Housing,CHELSEA AND WESTMINSTER HOSPITAL,N0049799,22-Jul-22,17383.05,0,185106,PH - Sexual Health,310000              Healthcare,A,2022,4
1167,Community and Housing,CHELSEA AND WESTMINSTER HOSPITAL,N0050111,22-Jul-22,17383.05,0,185106,PH - Sexual Health,310000              Healthcare,A,2022,4
1168,Corporate Services,NERCON LTD,177287,08-Jul-22,858,143,185192,Buildings Maintenance,130000              Cleaning & Janitorial,A,2022,4
1169,Corporate Services,NERCON LTD,177584,01-Aug-22,1062,177,185192,Buildings Maintenance,130000              Cleaning & Janitorial,A,2022,4
1170,Community and Housing,REDACTED PERSONAL DATA,854866,20-Jul-22,1295.13,0,185250,Older People Placements - East,DIRECT PAYMENTS,R,2022,4
1171,Community and Housing,ORCHARD HILL COLLEGE,1004498,05-Jul-22,720,0,185253,Learning Disabilities Placemnt,170000              Education,A,2022,4
1172,Community and Housing,ROOMS AND  STUDIOS MANAGEMENT,1218,14-Jul-22,127920,21320,185280,Bed & Breakfast - accomm,321000              Social Community Care Supplies & Services - Adult,A,2022,4
1173,Community and Housing,ROOMS AND  STUDIOS MANAGEMENT,1219,15-Jul-22,5976,996,185280,Bed & Breakfast - accomm,321000              Social Community Care Supplies & Services - Adult,A,2022,4
1174,Community and Housing,REDACTED PERSONAL DATA,854695,20-Jul-22,1369.4,0,185353,Mental Health Placements,DIRECT PAYMENTS,R,2022,4
1175,Corporate Services,REDACTED PERSONAL DATA,INV/JDO23,07-Jul-22,1026,171,185360,SLLP - Disbursements,280000              Legal Services                                                                            Confirmed,R,2022,4
1176,Corporate Services,REDACTED PERSONAL DATA,INV/JDO26,01-Aug-22,1020,170,185360,SLLP - Disbursements,280000              Legal Services                                                                            Confirmed,R,2022,4
1177,Community and Housing,WISDOM SUPPORT SERVICES LTD,12222,19-Jul-22,1320.48,0,185366,Learning Disabilities Placemnt,321000              Social Community Care Supplies & Services - Adult,A,2022,4
1178,Community and Housing,WISDOM SUPPORT SERVICES LTD,12239,19-Jul-22,4088.88,0,185366,Learning Disabilities Placemnt,321000              Social Community Care Supplies & Services - Adult,A,2022,4
1179,Community and Housing,WISDOM SUPPORT SERVICES LTD,12240,19-Jul-22,10886.96,0,185366,Learning Disabilities Placemnt,321000              Social Community Care Supplies & Services - Adult,A,2022,4
1180,Community and Housing,WISDOM SUPPORT SERVICES LTD,12241,19-Jul-22,1514.4,0,185366,Older People Placements - East,321000              Social Community Care Supplies & Services - Adult,A,2022,4
